{"text_format":"1","workbook":"xlsx","n_sheets":8,"sheets":["EUMED","ANTWORT-ANTWOORD-RÉPONSE","lijsten_oud","L","V","capaciteit_Kapazität_capacité","CONTACT","Loodsposten-Lotsenstellen-eurog"],"not_rendered":{"charts":0,"images":23,"macros":1,"external_links":2,"defined_names":57,"comments":0,"pivot_tables":0},"unopened":[],"bounds":{"document_bytes":16777216,"sheet_cells":100000,"rows_first":2000,"rows_last":500,"rows_between":2000,"halvings":0,"cell_chars":16384,"cell_head_chars":4096},"cells_cut":0,"cells_raw":0,"read":"whole","date_system":"1900"}

{"sheet":"EUMED","index":0,"n_rows":59,"n_cols":20,"rows_kept":59,"cut":false,"hidden":false,"merged":[[31,6,31,7],[26,6,26,7],[27,6,27,7],[28,6,28,7],[29,6,29,7],[30,6,30,7],[19,7,19,14],[20,7,20,14],[19,1,19,6],[20,1,20,6],[35,17,36,19],[21,7,21,14],[36,7,36,14],[34,7,34,14],[21,1,21,6],[35,1,35,6],[36,1,36,6],[20,17,21,19],[35,7,35,14],[23,6,23,7],[24,6,24,7],[25,6,25,7],[0,0,0,14],[2,0,2,14],[1,8,1,14],[18,7,18,14],[3,8,3,14],[16,8,16,12],[3,1,3,6],[18,1,18,6],[8,1,8,14],[13,1,13,14],[11,2,11,14],[14,1,14,14],[6,1,6,14],[58,7,58,14],[59,0,59,14],[50,13,53,13],[46,2,46,7],[39,7,39,15],[42,1,42,6],[43,1,43,6],[58,1,58,6],[56,0,56,14],[39,1,39,6],[44,7,44,15],[42,8,42,15],[37,1,37,6],[43,7,43,15],[41,7,41,15],[41,1,41,6],[37,7,37,14],[28,8,28,13],[29,8,29,13],[30,8,30,13],[31,8,31,13],[23,8,23,13],[24,8,24,13],[25,8,25,13],[26,8,26,13],[27,8,27,13]]}
[]
[null,"© EMRIC 2019"]
[]
[null,"Sprache / Taal / Langue:",null,null,null,null,null,"Nederlands"]
[null,null,null,null,null,null,null,null,null,null,null,null,null,null,null,null,null,null,{"$f":"V!F115","v":"Versie"},"2019-05-02"]
[null,{"$f":"L!F1","v":"OEFENING - OEFENING - OEFENING - OEFENING - OEFENING - OEFENING"}]
[null,{"$f":"IF($H$4=\"Deutsch\",\"Bitte um euregionale Hilfeleistung EUMED\",IF($H$4=\"Nederlands\",\"Verzoek tot euregionale bijstand EUMED\",IF($H$4=\"Français\",\"Demande d'aide euregionale EUMED\")))","v":"Verzoek tot euregionale bijstand EUMED"}]
[]
[null,{"$f":"IF(EUMED!$H$4=\"Deutsch\",V!B94,IF(EUMED!$H$4=\"Nederlands\",V!B95,IF(EUMED!$H$4=\"Français\",V!B96)))","v":"PROCEDURE"}]
[null,"1.",{"$f":"V!$F$94","v":"Telefonische melding incident"}]
[null,"2.",{"$f":"V!$F$95","v":"Formulier per mail sturen (of per fax)"}]
[null,"3.",{"$f":"V!$F$98","v":"Antwoord afwachten"}]
[null,{"$f":"V!F102","v":"OPMERKINGEN"}]
[null,{"$f":"V!F99","v":"Het rode tabblad dient ingevuld te worden. Blauwe tabbladen zijn uitsluitend ter informatie. \nHet groene tabblad wordt ingevuld door de ontvanger en teruggestuurd."}]
[null,{"$f":"V!F100","v":"Dit formulier maakt gebruik van macros. Het formulier moet echter zonder macros worden opgeslagen, om te voorkomen dat het bij het versturen per e-mail in de spamfilter terecht komt. \nLet u hierbij alstublieft op de volgende instructies:\n1. Het oorspronkelijke sjabloon dient altijd ingevuld te worden! Bij een ingevuld en opgeslagen formulier werken een aantal functies niet meer correct. Opent u alstublieft het bestand middels dubbelklikken; hierdoor wordt automatisch een kopie van het bestand geopend zonder het originele sjabloon te wijzigen.\n2. Het formulier moet als normaal Excel-bestand zonder macros worden opgeslagen. Bij het opslaan geeft Excel de melding dat het VB-project niet kan worden opgeslagen; klikt u hier alstublieft op “JA”."}]
[]
[null,null,null,null,null,null,null,{"$f":"IF($H$4=\"Deutsch\",\"Datum:\",IF($H$4=\"Nederlands\",\"Datum:\",IF($H$4=\"Français\",\"Date:\")))","v":"Datum:"},"dd/mm/yy",null,null,null,null,{"$f":"IF($H$4=\"Deutsch\",\"Uhrzeit:\",IF($H$4=\"Nederlands\",\"Tijd:\",IF($H$4=\"Français\",\"Heure:\")))","v":"Tijd:"},"00:00:00"]
[]
[null,{"$f":"IF($H$4=\"Deutsch\",\"ABSENDER:\",IF($H$4=\"Nederlands\",\"VAN:\",IF($H$4=\"Français\",\"PAR:\")))","v":"VAN:"}]
[null,"E-mail ",null,null,null,null,null,{"$f":"\nIF(L!$E$12=1,\"\",\nIF(L!$E$12=2,CONTACT!C2,\nIF(L!$E$12=3,CONTACT!C3,\nIF(L!$E$12=4,CONTACT!C4,\nIF(L!$E$12=5,CONTACT!C5,\nIF(L!$E$12=6,CONTACT!C6,\nIF(L!$E$12=7,CONTACT!C7,\nIF(L!$E$12=8,CONTACT!C8,\nIF(L!$E$12=9,CONTACT!C9)))))))))","v":""}]
[null,"Tel. ",null,null,null,null,null,{"$f":"\nIF(L!$E$12=1,\"\",\nIF(L!$E$12=2,CONTACT!B2,\nIF(L!$E$12=3,CONTACT!B3,\nIF(L!$E$12=4,CONTACT!B4,\nIF(L!$E$12=5,CONTACT!B5,\nIF(L!$E$12=6,CONTACT!B6,\nIF(L!$E$12=7,CONTACT!B7,\nIF(L!$E$12=8,CONTACT!B8,\nIF(L!$E$12=9,CONTACT!B9)))))))))","v":""}]
[null,"Fax.",null,null,null,null,null,{"$f":"\nIF(L!$E$12=1,\"\",\nIF(L!$E$12=2,CONTACT!D2,\nIF(L!$E$12=3,CONTACT!D3,\nIF(L!$E$12=4,CONTACT!D4,\nIF(L!$E$12=5,CONTACT!D5,\nIF(L!$E$12=6,CONTACT!D6,\nIF(L!$E$12=7,CONTACT!D7,\nIF(L!$E$12=8,CONTACT!D8,\nIF(L!$E$12=9,CONTACT!D9)))))))))","v":""}]
[]
[null,{"$f":"IF($H$4=\"Deutsch\",\"Erbetene Unterstützung:\",IF($H$4=\"Nederlands\",\"Gewenste bijstand:\",IF($H$4=\"Français\",\"Aide demandée:\")))","v":"Gewenste bijstand:"},null,null,null,null,{"$f":"IF(EUMED!$H$4=\"Deutsch\",\"Eumed Pakete\",IF(EUMED!$H$4=\"Nederlands\",\"Eumed pakketten\", IF(EUMED!$H$4=\"Français\",\"Paquets Eumed\")))","v":"Eumed pakketten"},null,{"$f":"IF(EUMED!$H$4=\"Deutsch\",V!B67,IF(EUMED!$H$4=\"Nederlands\",V!B68,IF(EUMED!$H$4=\"Français\",V!B69)))","v":"VOERTUIGEN:"}]
[null,{"$f":"CONTACT!A2","v":"CS 112 Luik (B)"}]
[null,{"$f":"CONTACT!A3","v":"CS 112 Limburg (B)"}]
[null,{"$f":"CONTACT!A4","v":"Zone-meldkamer Oost-Limburg (B)"}]
[null,{"$f":"CONTACT!A5","v":"Meldkamer Stad/StädteRegion Aken (D)"}]
[null,{"$f":"CONTACT!A6","v":"Meldkamer Kreis Düren (D)"}]
[null,{"$f":"CONTACT!A7","v":"Meldkamer Kreis Euskirchen (D)"}]
[null,{"$f":"CONTACT!A8","v":"Meldkamer Kreis Heinsberg (D)"}]
[null,{"$f":"CONTACT!A9","v":"Meldkamer Ambulancezorg Limburg (NL)"}]
[]
[]
[null,{"$f":"IF($H$4=\"Deutsch\",V!B6,IF($H$4=\"Nederlands\",V!B7,IF($H$4=\"Français\",V!B8)))","v":"SOORT INCIDENT:"}]
[null,null,null,null,null,null,null,{"$f":"IF(L!H21=18,V!F24,\"\")","v":""}]
[null,{"$f":"IF($H$4=\"Deutsch\",\"Besonderheiten:\",IF($H$4=\"Nederlands\",\"Bijzonderheden:\",IF($H$4=\"Français\",\"Particularités:\")))","v":"Bijzonderheden:"}]
[null,{"$f":"IF($H$4=\"Deutsch\",\"Allgemeine Hilfeleistungsfrage:\",IF($H$4=\"Nederlands\",\"Algemene hulpvraag:\",IF($H$4=\"Français\",\"Demande générale d’aide:\")))","v":"Algemene hulpvraag:"}]
[]
[null,{"$f":"IF($H$4=\"Deutsch\",\"Einsatzort (GPS / UTM / Adresse):\",IF($H$4=\"Nederlands\",\"Plaats van het incident (GPS / UTM / adres):\",IF($H$4=\"Français\",\"Lieu d’incident (GPS / UTM / adresse):\")))","v":"Plaats van het incident (GPS / UTM / adres):"},null,null,null,null,null,{"$f":"V!F24","v":"invoeren s.v.p."}]
[null,{"$f":"IF($H$4=\"Deutsch\",\"Lotsenstelle:\",IF($H$4=\"Nederlands\",\"Loodspost:\",IF($H$4=\"Français\",\"Euroguide:\")))","v":"Loodspost:"}]
[null,{"$f":"IF(EUMED!$H$4=\"Deutsch\",V!C65,IF(EUMED!$H$4=\"Nederlands\",V!D65,IF(EUMED!$H$4=\"Français\",V!E65)))","v":"omschrijving:"},null,null,null,null,null,{"$f":"IF(OR(ISNA(L!F15),L!F15=0),\"\",L!F15)","v":""}]
[null,{"$f":"IF($H$4=\"Nederlands\",\"GPS-coördinaten\",IF($H$4=\"Deutsch\",\"GPS-Koordinaten\",IF($H$4=\"Français\",\"GPS-coordonneés\")))","v":"GPS-coördinaten"},null,null,null,null,null,{"$f":"\nIF(H42=\"\",\"\",\nIF(H42='Loodsposten-Lotsenstellen-eurog'!B68,'Loodsposten-Lotsenstellen-eurog'!C68,\nIF(H42='Loodsposten-Lotsenstellen-eurog'!B69,'Loodsposten-Lotsenstellen-eurog'!C69,\nIF(H42='Loodsposten-Lotsenstellen-eurog'!B70,'Loodsposten-Lotsenstellen-eurog'!C70,\nIF(H42='Loodsposten-Lotsenstellen-eurog'!B71,'Loodsposten-Lotsenstellen-eurog'!C71,\nIF(H42='Loodsposten-Lotsenstellen-eurog'!B72,'Loodsposten-Lotsenstellen-eurog'!C72,\nIF(H42='Loodsposten-Lotsenstellen-eurog'!B73,'Loodsposten-Lotsenstellen-eurog'!C73,\nIF(H42='Loodsposten-Lotsenstellen-eurog'!B74,'Loodsposten-Lotsenstellen-eurog'!C74,\nIF(H42='Loodsposten-Lotsenstellen-eurog'!B75,'Loodsposten-Lotsenstellen-eurog'!C75,\nIF(H42='Loodsposten-Lotsenstellen-eurog'!B76,'Loodsposten-Lotsenstellen-eurog'!C76,\nIF(H42='Loodsposten-Lotsenstellen-eurog'!B62,'Loodsposten-Lotsenstellen-eurog'!C62,\nIF(H42='Loodsposten-Lotsenstellen-eurog'!B54,'Loodsposten-Lotsenstellen-eurog'!C54,\nIF(H42='Loodsposten-Lotsenstellen-eurog'!B55,'Loodsposten-Lotsenstellen-eurog'!C55,\nIF(H42='Loodsposten-Lotsenstellen-eurog'!B56,'Loodsposten-Lotsenstellen-eurog'!C56,\nIF(H42='Loodsposten-Lotsenstellen-eurog'!B36,'Loodsposten-Lotsenstellen-eurog'!C36,\nIF(H42='Loodsposten-Lotsenstellen-eurog'!B37,'Loodsposten-Lotsenstellen-eurog'!C37,\nIF(H42='Loodsposten-Lotsenstellen-eurog'!B38,'Loodsposten-Lotsenstellen-eurog'!C38,\nIF(H42='Loodsposten-Lotsenstellen-eurog'!B39,'Loodsposten-Lotsenstellen-eurog'!C39,\nIF(H42='Loodsposten-Lotsenstellen-eurog'!B40,'Loodsposten-Lotsenstellen-eurog'!C40,\nIF(H42='Loodsposten-Lotsenstellen-eurog'!B41,'Loodsposten-Lotsenstellen-eurog'!C41,\nIF(H42='Loodsposten-Lotsenstellen-eurog'!B42,'Loodsposten-Lotsenstellen-eurog'!C42,\nIF(H42='Loodsposten-Lotsenstellen-eurog'!B43,'Loodsposten-Lotsenstellen-eurog'!C43,\nIF(H42='Loodsposten-Lotsenstellen-eurog'!B44,'Loodsposten-Lotsenstellen-eurog'!C44,\nIF(H42='Loodsposten-Lotsenstellen-eurog'!B45,'Loodsposten-Lotsenstellen-eurog'!C45,\nIF(H42='Loodsposten-Lotsenstellen-eurog'!B46,'Loodsposten-Lotsenstellen-eurog'!C46,\nIF(H42='Loodsposten-Lotsenstellen-eurog'!B47,'Loodsposten-Lotsenstellen-eurog'!C47,\nIF(H42='Loodsposten-Lotsenstellen-eurog'!B48,'Loodsposten-Lotsenstellen-eurog'!C48,\nIF(H42='Loodsposten-Lotsenstellen-eurog'!B24,'Loodsposten-Lotsenstellen-eurog'!C24,\nIF(H42='Loodsposten-Lotsenstellen-eurog'!B25,'Loodsposten-Lotsenstellen-eurog'!C25,\nIF(H42='Loodsposten-Lotsenstellen-eurog'!B26,'Loodsposten-Lotsenstellen-eurog'!C26,\nIF(H42='Loodsposten-Lotsenstellen-eurog'!B27,'Loodsposten-Lotsenstellen-eurog'!C27,\nIF(H42='Loodsposten-Lotsenstellen-eurog'!B28,'Loodsposten-Lotsenstellen-eurog'!C28,\nIF(H42='Loodsposten-Lotsenstellen-eurog'!B29,'Loodsposten-Lotsenstellen-eurog'!C29,\nIF(H42='Loodsposten-Lotsenstellen-eurog'!B30,'Loodsposten-Lotsenstellen-eurog'!C30,\nIF(H42='Loodsposten-Lotsenstellen-eurog'!B82,'Loodsposten-Lotsenstellen-eurog'!C82,\nIF(H42='Loodsposten-Lotsenstellen-eurog'!B83,'Loodsposten-Lotsenstellen-eurog'!C83,\nIF(H42='Loodsposten-Lotsenstellen-eurog'!B84,'Loodsposten-Lotsenstellen-eurog'!C84,\nIF(H42='Loodsposten-Lotsenstellen-eurog'!B85,'Loodsposten-Lotsenstellen-eurog'!C85,\nIF(H42='Loodsposten-Lotsenstellen-eurog'!B86,'Loodsposten-Lotsenstellen-eurog'!C86,\nIF(H42='Loodsposten-Lotsenstellen-eurog'!B87,'Loodsposten-Lotsenstellen-eurog'!C87,\nIF(H42='Loodsposten-Lotsenstellen-eurog'!B88,'Loodsposten-Lotsenstellen-eurog'!C88,\nIF(H42='Loodsposten-Lotsenstellen-eurog'!B89,'Loodsposten-Lotsenstellen-eurog'!C89,\nIF(H42='Loodsposten-Lotsenstellen-eurog'!B7,'Loodsposten-Lotsenstellen-eurog'!C7,\nIF(H42='Loodsposten-Lotsenstellen-eurog'!B8,'Loodsposten-Lotsenstellen-eurog'!C8,\nIF(H42='Loodsposten-Lotsenstellen-eurog'!B9,'Loodsposten-Lotsenstellen-eurog'!C9,\nIF(H42='Loodsposten-Lotsenstellen-eurog'!B10,'Loodsposten-Lotsenstellen-eurog'!C10,\nIF(H42='Loodsposten-Lotsenstellen-eurog'!B11,'Loodsposten-Lotsenstellen-eurog'!C11,\nIF(H42='Loodsposten-Lotsenstellen-eurog'!B12,'Loodsposten-Lotsenstellen-eurog'!C12,\nIF(H42='Loodsposten-Lotsenstellen-eurog'!B18,'Loodsposten-Lotsenstellen-eurog'!C18,\n)))))))))))))))))))))))))))))))))))))))))))))))))","v":""},{"$f":"\nIF(H42=\"\",\"\",\nIF(H42='Loodsposten-Lotsenstellen-eurog'!B68,'Loodsposten-Lotsenstellen-eurog'!D68,\nIF(H42='Loodsposten-Lotsenstellen-eurog'!B69,'Loodsposten-Lotsenstellen-eurog'!D69,\nIF(H42='Loodsposten-Lotsenstellen-eurog'!B70,'Loodsposten-Lotsenstellen-eurog'!D70,\nIF(H42='Loodsposten-Lotsenstellen-eurog'!B71,'Loodsposten-Lotsenstellen-eurog'!D71,\nIF(H42='Loodsposten-Lotsenstellen-eurog'!B72,'Loodsposten-Lotsenstellen-eurog'!D72,\nIF(H42='Loodsposten-Lotsenstellen-eurog'!B73,'Loodsposten-Lotsenstellen-eurog'!D73,\nIF(H42='Loodsposten-Lotsenstellen-eurog'!B74,'Loodsposten-Lotsenstellen-eurog'!D74,\nIF(H42='Loodsposten-Lotsenstellen-eurog'!B75,'Loodsposten-Lotsenstellen-eurog'!D75,\nIF(H42='Loodsposten-Lotsenstellen-eurog'!B76,'Loodsposten-Lotsenstellen-eurog'!D76,\nIF(H42='Loodsposten-Lotsenstellen-eurog'!B62,'Loodsposten-Lotsenstellen-eurog'!D62,\nIF(H42='Loodsposten-Lotsenstellen-eurog'!B54,'Loodsposten-Lotsenstellen-eurog'!D54,\nIF(H42='Loodsposten-Lotsenstellen-eurog'!B55,'Loodsposten-Lotsenstellen-eurog'!D55,\nIF(H42='Loodsposten-Lotsenstellen-eurog'!B56,'Loodsposten-Lotsenstellen-eurog'!D56,\nIF(H42='Loodsposten-Lotsenstellen-eurog'!B36,'Loodsposten-Lotsenstellen-eurog'!D36,\nIF(H42='Loodsposten-Lotsenstellen-eurog'!B37,'Loodsposten-Lotsenstellen-eurog'!D37,\nIF(H42='Loodsposten-Lotsenstellen-eurog'!B38,'Loodsposten-Lotsenstellen-eurog'!D38,\nIF(H42='Loodsposten-Lotsenstellen-eurog'!B39,'Loodsposten-Lotsenstellen-eurog'!D39,\nIF(H42='Loodsposten-Lotsenstellen-eurog'!B40,'Loodsposten-Lotsenstellen-eurog'!D40,\nIF(H42='Loodsposten-Lotsenstellen-eurog'!B41,'Loodsposten-Lotsenstellen-eurog'!D41,\nIF(H42='Loodsposten-Lotsenstellen-eurog'!B42,'Loodsposten-Lotsenstellen-eurog'!D42,\nIF(H42='Loodsposten-Lotsenstellen-eurog'!B43,'Loodsposten-Lotsenstellen-eurog'!D43,\nIF(H42='Loodsposten-Lotsenstellen-eurog'!B44,'Loodsposten-Lotsenstellen-eurog'!D44,\nIF(H42='Loodsposten-Lotsenstellen-eurog'!B45,'Loodsposten-Lotsenstellen-eurog'!D45,\nIF(H42='Loodsposten-Lotsenstellen-eurog'!B46,'Loodsposten-Lotsenstellen-eurog'!D46,\nIF(H42='Loodsposten-Lotsenstellen-eurog'!B47,'Loodsposten-Lotsenstellen-eurog'!D47,\nIF(H42='Loodsposten-Lotsenstellen-eurog'!B48,'Loodsposten-Lotsenstellen-eurog'!D48,\nIF(H42='Loodsposten-Lotsenstellen-eurog'!B24,'Loodsposten-Lotsenstellen-eurog'!D24,\nIF(H42='Loodsposten-Lotsenstellen-eurog'!B25,'Loodsposten-Lotsenstellen-eurog'!D25,\nIF(H42='Loodsposten-Lotsenstellen-eurog'!B26,'Loodsposten-Lotsenstellen-eurog'!D26,\nIF(H42='Loodsposten-Lotsenstellen-eurog'!B27,'Loodsposten-Lotsenstellen-eurog'!D27,\nIF(H42='Loodsposten-Lotsenstellen-eurog'!B28,'Loodsposten-Lotsenstellen-eurog'!D28,\nIF(H42='Loodsposten-Lotsenstellen-eurog'!B29,'Loodsposten-Lotsenstellen-eurog'!D29,\nIF(H42='Loodsposten-Lotsenstellen-eurog'!B30,'Loodsposten-Lotsenstellen-eurog'!D30,\nIF(H42='Loodsposten-Lotsenstellen-eurog'!B82,'Loodsposten-Lotsenstellen-eurog'!D82,\nIF(H42='Loodsposten-Lotsenstellen-eurog'!B83,'Loodsposten-Lotsenstellen-eurog'!D83,\nIF(H42='Loodsposten-Lotsenstellen-eurog'!B84,'Loodsposten-Lotsenstellen-eurog'!D84,\nIF(H42='Loodsposten-Lotsenstellen-eurog'!B85,'Loodsposten-Lotsenstellen-eurog'!D85,\nIF(H42='Loodsposten-Lotsenstellen-eurog'!B86,'Loodsposten-Lotsenstellen-eurog'!D86,\nIF(H42='Loodsposten-Lotsenstellen-eurog'!B87,'Loodsposten-Lotsenstellen-eurog'!D87,\nIF(H42='Loodsposten-Lotsenstellen-eurog'!B88,'Loodsposten-Lotsenstellen-eurog'!D88,\nIF(H42='Loodsposten-Lotsenstellen-eurog'!B89,'Loodsposten-Lotsenstellen-eurog'!D89,\nIF(H42='Loodsposten-Lotsenstellen-eurog'!B7,'Loodsposten-Lotsenstellen-eurog'!D7,\nIF(H42='Loodsposten-Lotsenstellen-eurog'!B8,'Loodsposten-Lotsenstellen-eurog'!D8,\nIF(H42='Loodsposten-Lotsenstellen-eurog'!B9,'Loodsposten-Lotsenstellen-eurog'!D9,\nIF(H42='Loodsposten-Lotsenstellen-eurog'!B10,'Loodsposten-Lotsenstellen-eurog'!D10,\nIF(H42='Loodsposten-Lotsenstellen-eurog'!B11,'Loodsposten-Lotsenstellen-eurog'!D11,\nIF(H42='Loodsposten-Lotsenstellen-eurog'!B12,'Loodsposten-Lotsenstellen-eurog'!D12,\nIF(H42='Loodsposten-Lotsenstellen-eurog'!B18,'Loodsposten-Lotsenstellen-eurog'!D18,\n)))))))))))))))))))))))))))))))))))))))))))))))))","v":""}]
[null,{"$f":"V!F107","v":"handmatig invullen indien nodig"},null,null,null,null,null,{"$f":"IF($H$4=\"Nederlands\",\"[omschrijving]\",IF($H$4=\"Deutsch\",\"[Beschreibung]\",IF($H$4=\"Français\",\"[description]\")))","v":"[omschrijving]"}]
[null,null,null,null,null,null,null,{"$f":"IF($H$4=\"Nederlands\",\"[GPS-coördinaten]\",IF($H$4=\"Deutsch\",\"[GPS-Koordinaten]\",IF($H$4=\"Français\",\"[GPS-coordonneés]\")))","v":"[GPS-coördinaten]"}]
[]
[null,null,{"$f":"IF($H$4=\"Deutsch\",V!B27,IF($H$4=\"Nederlands\",V!B28,IF($H$4=\"Français\",V!B29)))","v":"GEVAREN:"}]
[]
[null,null,null,{"$f":"V!F27","v":"brand"},null,null,null,{"$f":"V!F31","v":"radioactieve straling"},null,null,null,null,null,{"$f":"V!F37","v":"overstroming"}]
[null,null,null,{"$f":"V!F28","v":"rookwolk"},null,null,null,{"$f":"V!F33","v":"gifwolk"},null,null,null,null,null,{"$f":"V!F40","v":"anders, namelijk…"}]
[null,null,null,{"$f":"V!F30","v":"explosiegevaar"},null,null,null,{"$f":"V!F36","v":"infectiegevaar"}]
[]
[null,null,null,{"$f":"V!F29","v":"instortingsgevaar"},null,null,null,{"$f":"V!F32","v":"luchtverontreiniging"}]
[null,null,null,{"$f":"V!F38","v":"aardverschuiving"},null,null,null,{"$f":"V!F34","v":"bodemvervuiling"}]
[null,null,null,{"$f":"V!F39","v":"bodemverzakking"},null,null,null,{"$f":"V!F35","v":"vervuiling van het (binnen)water"}]
[]
[]
[]
[null,{"$f":"IF($H$4=\"Deutsch\",\"Name Disponent:\",IF($H$4=\"Nederlands\",\"Naam centralist:\",IF($H$4=\"Français\",\"Nom centraliste:\")))","v":"Naam centralist:"},null,null,null,null,null,{"$f":"V!F24","v":"invoeren s.v.p."}]

{"sheet":"ANTWORT-ANTWOORD-RÉPONSE","index":1,"n_rows":25,"n_cols":8,"rows_kept":25,"cut":false,"hidden":false,"merged":[[25,1,33,11],[22,4,22,6],[15,7,15,9],[16,7,16,9],[17,7,17,9],[18,7,18,9],[19,7,19,9],[20,7,20,9],[21,7,21,9],[22,7,22,9],[17,4,17,6],[18,4,18,6],[19,4,19,6],[20,4,20,6],[21,4,21,6],[3,7,3,8],[3,2,3,4],[5,6,5,7],[15,1,15,3],[16,1,16,3],[17,1,17,3],[18,1,18,3],[19,1,19,3],[20,1,20,3],[21,1,21,3],[22,1,22,3],[14,4,14,6],[14,7,14,9],[15,4,15,6],[16,4,16,6]]}
[]
[null,{"$f":"IF(EUMED!$H$4=\"Deutsch\",\"Bitte um euregionale Hilfeleistung EUMED\",IF(EUMED!$H$4=\"Nederlands\",\"Verzoek tot euregionale bijstand EUMED\",IF(EUMED!$H$4=\"Français\",\"Demande d'aide euregionale EUMED\")))","v":"Verzoek tot euregionale bijstand EUMED"}]
[null,{"$f":"L!F1","v":"OEFENING - OEFENING - OEFENING - OEFENING - OEFENING - OEFENING"}]
[null,{"$f":"IF(EUMED!$H$4=\"Deutsch\",\"Datum:\",IF(EUMED!$H$4=\"Nederlands\",\"Datum:\",IF(EUMED!$H$4=\"Français\",\"Date:\")))","v":"Datum:"},{"$f":"EUMED!I17","v":"dd/mm/yy"},null,null,null,{"$f":"IF(EUMED!$H$4=\"Deutsch\",\"Uhrzeit:\",IF(EUMED!$H$4=\"Nederlands\",\"Tijd:\",IF(EUMED!$H$4=\"Français\",\"Heure:\")))","v":"Tijd:"},{"$f":"EUMED!O17","v":"00:00:00"}]
[]
[null,{"$f":"V!F104","v":"Geschatte aankomsttijd op de loodspost:"},null,null,null,null,"00:00:00"]
[]
[null,{"$f":"IF(EUMED!$H$4=\"Deutsch\",\"ABSENDER:\",IF(EUMED!$H$4=\"Nederlands\",\"VAN:\",IF(EUMED!$H$4=\"Français\",\"PAR:\")))","v":"VAN:"}]
[null,"E-mail ",null,null,{"$f":"\nIF(L!$E$13=1,\"\",\nIF(L!$E$13=2,CONTACT!C2,\nIF(L!$E$13=3,CONTACT!C3,\nIF(L!$E$13=4,CONTACT!C4,\nIF(L!$E$13=5,CONTACT!C5,\nIF(L!$E$13=6,CONTACT!C6,\nIF(L!$E$13=7,CONTACT!C7,\nIF(L!$E$13=8,CONTACT!C8,\nIF(L!$E$13=9,CONTACT!C9)))))))))","v":""}]
[null,"Tel. ",null,null,{"$f":"\nIF(L!$E$13=1,\"\",\nIF(L!$E$13=2,CONTACT!B2,\nIF(L!$E$13=3,CONTACT!B3,\nIF(L!$E$13=4,CONTACT!B4,\nIF(L!$E$13=5,CONTACT!B5,\nIF(L!$E$13=6,CONTACT!B6,\nIF(L!$E$13=7,CONTACT!B7,\nIF(L!$E$13=8,CONTACT!B8,\nIF(L!$E$13=9,CONTACT!B9)))))))))","v":""}]
[null,"Fax.",null,null,{"$f":"\nIF(L!$E$13=1,\"\",\nIF(L!$E$13=2,CONTACT!D2,\nIF(L!$E$13=3,CONTACT!D3,\nIF(L!$E$13=4,CONTACT!D4,\nIF(L!$E$13=5,CONTACT!D5,\nIF(L!$E$13=6,CONTACT!D6,\nIF(L!$E$13=7,CONTACT!D7,\nIF(L!$E$13=8,CONTACT!D8,\nIF(L!$E$13=9,CONTACT!D9)))))))))","v":""}]
[]
[null,{"$f":"V!F117","v":"Aangevraagde bijstand:"}]
[]
[null,null,null,null,{"$f":"IF(EUMED!$H$4=\"Deutsch\",\"Eumed Pakete\",IF(EUMED!$H$4=\"Nederlands\",\"Eumed pakketten\", IF(EUMED!$H$4=\"Français\",\"Paquets Eumed\")))","v":"Eumed pakketten"},null,null,{"$f":"IF(EUMED!$H$4=\"Deutsch\",V!B67,IF(EUMED!$H$4=\"Nederlands\",V!B68,IF(EUMED!$H$4=\"Français\",V!B69)))","v":"VOERTUIGEN:"}]
[null,{"$f":"CONTACT!A2","v":"CS 112 Luik (B)"},null,null,{"$f":"IF(L!A40=1,\"\",IF(L!A40=2,L!B40,IF(L!A40=3,L!B40,IF(L!A40=4,L!B40))))","v":""},null,null,{"$f":"IF(L!A98=1,\"\",IF(L!A98=2,L!B98,IF(L!A98=3,L!B98,IF(L!A98=4,L!B98,IF(L!A98=5,L!B98)))))","v":""}]
[null,{"$f":"CONTACT!A3","v":"CS 112 Limburg (B)"},null,null,{"$f":"IF(L!A33=1,\"\",IF(L!A33=2,L!B33,IF(L!A33=3,L!B33,IF(L!A33=4,L!B33))))","v":""},null,null,{"$f":"IF(L!A90=1,\"\",IF(L!A90=2,L!B90,IF(L!A90=3,L!B90,IF(L!A90=4,L!B90,IF(L!A90=5,L!B90)))))","v":""}]
[null,{"$f":"CONTACT!A4","v":"Zone-meldkamer Oost-Limburg (B)"},null,null,{"$f":"IF(L!A47=1,\"\",IF(L!A47=2,L!B47,IF(L!A47=3,L!B47,IF(L!A47=4,L!B47))))","v":""},null,null,{"$f":"IF(L!A105=1,\"\",IF(L!A105=2,L!B105,IF(L!A105=3,L!B105,IF(L!A105=4,L!B105,IF(L!A105=5,L!B105)))))","v":""}]
[null,{"$f":"CONTACT!A5","v":"Meldkamer Stad/StädteRegion Aken (D)"},null,null,{"$f":"IF(L!A54=1,\"\",IF(L!A54=2,L!B54,IF(L!A54=3,L!B54,IF(L!A54=4,L!B54))))","v":""},null,null,{"$f":"IF(L!A112=1,\"\",IF(L!A112=2,L!B112,IF(L!A112=3,L!B112,IF(L!A112=4,L!B112,IF(L!A112=5,L!B112)))))","v":""}]
[null,{"$f":"CONTACT!A6","v":"Meldkamer Kreis Düren (D)"},null,null,{"$f":"IF(L!A61=1,\"\",IF(L!A61=2,L!B61,IF(L!A61=3,L!B61,IF(L!A61=4,L!B61))))","v":""},null,null,{"$f":"IF(L!A119=1,\"\",IF(L!A119=2,L!B119,IF(L!A119=3,L!B119,IF(L!A119=4,L!B119,IF(L!A119=5,L!B119)))))","v":""}]
[null,{"$f":"CONTACT!A7","v":"Meldkamer Kreis Euskirchen (D)"},null,null,{"$f":"IF(L!A68=1,\"\",IF(L!A68=2,L!B68,IF(L!A68=3,L!B68,IF(L!A68=4,L!B68))))","v":""},null,null,{"$f":"IF(L!A126=1,\"\",IF(L!A126=2,L!B126,IF(L!A126=3,L!B126,IF(L!A126=4,L!B126,IF(L!A126=5,L!B126)))))","v":""}]
[null,{"$f":"CONTACT!A8","v":"Meldkamer Kreis Heinsberg (D)"},null,null,{"$f":"IF(L!A75=1,\"\",IF(L!A75=2,L!B75,IF(L!A75=3,L!B75,IF(L!A75=4,L!B75))))","v":""},null,null,{"$f":"IF(L!A133=1,\"\",IF(L!A133=2,L!B133,IF(L!A133=3,L!B133,IF(L!A133=4,L!B133,IF(L!A133=5,L!B133)))))","v":""}]
[null,{"$f":"CONTACT!A9","v":"Meldkamer Ambulancezorg Limburg (NL)"},null,null,{"$f":"IF(L!A82=1,\"\",IF(L!A82=2,L!B82,IF(L!A82=3,L!B82,IF(L!A82=4,L!B82))))","v":""},null,null,{"$f":"IF(L!A140=1,\"\",IF(L!A140=2,L!B140,IF(L!A140=3,L!B140,IF(L!A140=4,L!B140,IF(L!A140=5,L!B140)))))","v":""}]
[]
[null,{"$f":"V!F118","v":"De volgende bijstand kan geleverd worden:"}]

{"sheet":"lijsten_oud","index":2,"n_rows":84,"n_cols":8,"rows_kept":84,"cut":false,"hidden":true,"merged":[]}
["Meldkamers:"]
["_______________","_______________","_______________"]
["Leitstelle_Aachen","Städteregion_Aachen","Stadt_Aachen"]
["Leitstelle_Heinsberg","Kreis_Heinsberg"]
["Meldkamer_Limburg_Maastricht","Veiligheidsregio_Zuid_Limburg"]
["Centrale_alerte_Liège","Province_de_Liège"]
["Meldkamer_Limburg_Hasselt","Provincie_Limburg_BE"]
["Leitstelle_Euskirchen","Kreis_Euskirchen"]
["Leitstelle_Düren","Kreis_Düren"]
[]
[]
[]
[]
["Kreis_Heinsberg","Städteregion_Aachen","Stadt_Aachen","Veiligheidsregio_Zuid_Limburg","Province_de_Liège","Provincie_Limburg_BE","Kreis_Euskirchen","Kreis_Düren"]
["HS 1 - B221 Höhe Ortschaft Arsbeck","Kr.AC B1 - Eschweiler, Am Kraftwerk 17 (A4 / L 241 Weisweiler, Parkplatz RWE-Power)","ACS LS 1 - Eschweiler, BAB4 Raststätte Aachener Land Nord (20 Fahrzeuge),","NL-ZL 1 - A2 - (E25) Eindhoven->Maastricht, Esso-tankstation/ parkeerplaats Het Anker","1 - A3/E40 Aachen-> Bruxelles | Lichtenbusch | Station Essence TOTAL",null,"EUS 1 - Bundesstraße B265/ Parkplatz Am Weisser Stein, Hellenthal-Udenbreth"]
["HS 2 - BAB 46 Parkplatz Herrather Linde","Kr.AC LS 2 - Baesweiler, Hauptstr. (B 57 / B 56 Baesweiler, Puffendorferkreuzung)","ACS LS 2 - Aachen, BAB 4 Zollamt Vetschau","NL-ZL 2 - Hotel Stein (van derValk, Urmond) Mauritslaan 65, 6129 EL Urmond, direct aan A2 - (E25) Eindhoven<->Maastricht","2 - A3/E40 Aachen-> Bruxelles | Barchon | Station essence SHELL (BK 102,2)"]
["HS 3 - Hückelhoven-Baal, Lövenicher Str. 40, Grundschule","Kr.AC LS 3 - Alsdorf, L 240 (A44 / L 240 AS Alsdorf)","ACS LS 3 - Aachen, BAB 44 Zollamt Lichtenbusch","NL-ZL 3 - Apple Park (Geusselt stadion) Stadionplein, Maastricht. Direct aan N2  (E 25) ","3 - A25/E25 Maastricht-> Liège | Air de repos de Visé (BK 0,8)"]
["HS 4 - Parkplatz B56 vor Abfahrt L42","Kr.AC LS 4 - Eschweiler, Am Kraftwerk - K 35 (A4 / L 241 AS Weisweiler)","ACS LP 4 - Würselen, BAB 44 Ausfahrt Broichweiden","NL-ZL 4 - Eindhoven<->Maastricht","4 - A13/E313 Hasselt-> Liège | Air de repos de Slins (BK 103,3)"]
["HS 5 - Übach-Palenberg > Geilenkirchen Parkplatz, B221","Kr.AC LS 5 - Eschweiler, Kölnerstraße (B 264 Eschweiler-Weisweiler, Langerweher Str., Ortseingang)","ACS LP 5 - Aachen, Vaalserquartier, Vaalserstr. Grenzübergang","NL-ZL 5 - A2 - (E 25) Luik-> Maastricht, BP tankstation, parkeerplaats Patiel","5 - A3/E40 Bruxelles-> Liège | Aire de repos de Louhin à Crisnée (BK 78,9)"]
["HS 6 - Gangelt Kreisverkehr L410/ B56","Kr.AC LS 6 - Simmerath, Jägerhausstraße (B 399 Simmerath- Lammersdorf, Forsthaus Jägerhaus)","ACS LP 6 - Aachen, Lütticher Straße Grenzübergang Bildchen, Parkstreifen","NL-ZL 6 - A 76- - (E 314) Aken -> Heerlen, Esso tankstation/ parkeerplaats, Langveld","6 - A15/E42 Namur-> Liège | Aire de repos de Verlaine | Station Essence Q8 (BK 15,9)"]
["HS 7 - Grenzübergang Selfkant B56n / N297","Kr.AC LS 7 - Simmerath, Kölnerstraße (L 246 Simmerath- Strauch,Gerstenhof)","ACS LP 7 - Aachen, Trierer Straße Richtung AC Busspur zw. Debeystr. und Triererplatz","NL-ZL 7 - Bloemendalstraat 150, Vaals. Hotel Kasteel Bloemendal"]
["HS 8 - Grenzübergang Waldfeucht Brabanter Str.","Kr.AC LS 8 - Simmerath B 266, Rurstraße (B 266 Simmerath- Einruhr /Obersee)"]
["HS 9 - Grenzübergang Rothenbach L117","Kr.AC LS 9 - Monschau, Hauptstraße (B 258 Monschau- Höfen,Bratherhof)"]
[null,"Kr.AC LS 10 - Monschau, Malmedyerstraße (B 399 / N 669 Monschau-Kalterherberg Grenzübergang, Malmedyerstr.)"]
[null,"Kr.AC LS 11 - Monschau, Eupenerstraße (L 214 / N 67d Monschau- Mützenich Grenzübergang, Eupener Str.)"]
[null,"Kr.AC LS 12 - Aachen, Monschauerstr./Schleidenerstr. (B 258 Aachen, Relais Königsberg)"]
[null,"Kr.AC LS 13 - Geilenkirchenerstraße (B 221 / L 232 Herzogenrath-Merkstein (Geilenkirchener Str.))"]
[]
[]
["________________"]
[{"$f":"IF(EUMED!$H$4=\"Nederlands\",D31,IF(EUMED!$H$4=\"Deutsch\",B31,IF(EUMED!$H$4=\"Français\",C31)))","v":"brand"},"Brand","incendie","brand"]
[{"$f":"IF(EUMED!$H$4=\"Nederlands\",D32,IF(EUMED!$H$4=\"Deutsch\",B32,IF(EUMED!$H$4=\"Français\",C32)))","v":"ongeval met gevaarlijke stoffen"},"Gefahrguteinsatz","intervention avec substances dangereuses","ongeval met gevaarlijke stoffen"]
[{"$f":"IF(EUMED!$H$4=\"Nederlands\",D33,IF(EUMED!$H$4=\"Deutsch\",B33,IF(EUMED!$H$4=\"Français\",C33)))","v":"waterongeval"},"Wasserunfall","accident sur l'eau","waterongeval"]
[{"$f":"IF(EUMED!$H$4=\"Nederlands\",D34,IF(EUMED!$H$4=\"Deutsch\",B34,IF(EUMED!$H$4=\"Français\",C34)))","v":"verkeersongeval"},"Verkehrsunfall","accident de la route","verkeersongeval"]
[{"$f":"IF(EUMED!$H$4=\"Nederlands\",D35,IF(EUMED!$H$4=\"Deutsch\",B35,IF(EUMED!$H$4=\"Français\",C35)))","v":"hoogteredding"},"Höhenrettung","sauvetage de altitude","hoogteredding"]
[{"$f":"IF(EUMED!$H$4=\"Nederlands\",D36,IF(EUMED!$H$4=\"Deutsch\",B36,IF(EUMED!$H$4=\"Français\",C36)))","v":"hoogwater"},"Hochwasser","hautes eaux","hoogwater"]
[{"$f":"IF(EUMED!$H$4=\"Nederlands\",D37,IF(EUMED!$H$4=\"Deutsch\",B37,IF(EUMED!$H$4=\"Français\",C37)))","v":"storm"},"Unwetter","tempête","storm"]
[{"$f":"IF(EUMED!$H$4=\"Nederlands\",D38,IF(EUMED!$H$4=\"Deutsch\",B38,IF(EUMED!$H$4=\"Français\",C38)))","v":"bosbrand"},"Waldbrand","feu de fôret","bosbrand"]
[{"$f":"IF(EUMED!$H$4=\"Nederlands\",D39,IF(EUMED!$H$4=\"Deutsch\",B39,IF(EUMED!$H$4=\"Français\",C39)))","v":"buitenbrand"},"Flächenbrand","feu à l'extérieur","buitenbrand"]
[{"$f":"IF(EUMED!$H$4=\"Nederlands\",D40,IF(EUMED!$H$4=\"Deutsch\",B40,IF(EUMED!$H$4=\"Français\",C40)))","v":"veenbrand"},"Vennbrand","feu de fagnes","veenbrand"]
[{"$f":"IF(EUMED!$H$4=\"Nederlands\",D41,IF(EUMED!$H$4=\"Deutsch\",B41,IF(EUMED!$H$4=\"Français\",C41)))","v":"vliegtuigongeval"},"Flugzeugunglück","accident d'aviation","vliegtuigongeval"]
[{"$f":"IF(EUMED!$H$4=\"Nederlands\",D42,IF(EUMED!$H$4=\"Deutsch\",B42,IF(EUMED!$H$4=\"Français\",C42)))","v":"explosie"},"Explosion","explosion","explosie"]
[{"$f":"IF(EUMED!$H$4=\"Nederlands\",D43,IF(EUMED!$H$4=\"Deutsch\",B43,IF(EUMED!$H$4=\"Français\",C43)))","v":"instorting"},"Einsturz","effondrement","instorting"]
[{"$f":"IF(EUMED!$H$4=\"Nederlands\",D44,IF(EUMED!$H$4=\"Deutsch\",B44,IF(EUMED!$H$4=\"Français\",C44)))","v":"treinongeval"},"Zugunglück","accident de train","treinongeval"]
[{"$f":"IF(EUMED!$H$4=\"Nederlands\",D45,IF(EUMED!$H$4=\"Deutsch\",B45,IF(EUMED!$H$4=\"Français\",C45)))","v":"industriebrand"},"Industriebrand","feu industriel","industriebrand"]
[{"$f":"IF(EUMED!$H$4=\"Nederlands\",D46,IF(EUMED!$H$4=\"Deutsch\",B46,IF(EUMED!$H$4=\"Français\",C46)))","v":"woningbrand"},"Wohungsbrand","feu d'habitation","woningbrand"]
[{"$f":"IF(EUMED!$H$4=\"Nederlands\",D47,IF(EUMED!$H$4=\"Deutsch\",B47,IF(EUMED!$H$4=\"Français\",C47)))","v":"anders, namelijk..."},"anderes, nämlich...","autre à savoir...","anders, namelijk..."]
[]
[]
[]
["Datum"]
["Maand","Dag","Jaar"]
["__________________________","_______________________________","____________________________"]
[{"$f":"IF(EUMED!$H$4=\"Deutsch\",\"Januar\",IF(EUMED!$H$4=\"Nederlands\",\"januari\",IF(EUMED!$H$4=\"Français\",\"janvier\")))","v":"januari"},1,2016]
[{"$f":"IF(EUMED!$H$4=\"Deutsch\",\"Februar\",IF(EUMED!$H$4=\"Nederlands\",\"februari\",IF(EUMED!$H$4=\"Français\",\"février\")))","v":"februari"},2,2017]
[{"$f":"IF(EUMED!$H$4=\"Deutsch\",\"März\",IF(EUMED!$H$4=\"Nederlands\",\"maart\",IF(EUMED!$H$4=\"Français\",\"mars\")))","v":"maart"},3,2018]
[{"$f":"IF(EUMED!$H$4=\"Deutsch\",\"April\",IF(EUMED!$H$4=\"Nederlands\",\"april\",IF(EUMED!$H$4=\"Français\",\"avril\")))","v":"april"},4,2019]
[{"$f":"IF(EUMED!$H$4=\"Deutsch\",\"Mai\",IF(EUMED!$H$4=\"Nederlands\",\"mei\",IF(EUMED!$H$4=\"Français\",\"mai\")))","v":"mei"},5,2020]
[{"$f":"IF(EUMED!$H$4=\"Deutsch\",\"Juni\",IF(EUMED!$H$4=\"Nederlands\",\"juni\",IF(EUMED!$H$4=\"Français\",\"juin\")))","v":"juni"},6,2021]
[{"$f":"IF(EUMED!$H$4=\"Deutsch\",\"Juli\",IF(EUMED!$H$4=\"Nederlands\",\"juli\",IF(EUMED!$H$4=\"Français\",\"juillet\")))","v":"juli"},7,2022]
[{"$f":"IF(EUMED!$H$4=\"Deutsch\",\"August\",IF(EUMED!$H$4=\"Nederlands\",\"augustus\",IF(EUMED!$H$4=\"Français\",\"août\")))","v":"augustus"},8]
[{"$f":"IF(EUMED!$H$4=\"Deutsch\",\"September\",IF(EUMED!$H$4=\"Nederlands\",\"september\",IF(EUMED!$H$4=\"Français\",\"septembre\")))","v":"september"},9]
[{"$f":"IF(EUMED!$H$4=\"Deutsch\",\"Oktober\",IF(EUMED!$H$4=\"Nederlands\",\"oktober\",IF(EUMED!$H$4=\"Français\",\"octobre\")))","v":"oktober"},10]
[{"$f":"IF(EUMED!$H$4=\"Deutsch\",\"November\",IF(EUMED!$H$4=\"Nederlands\",\"november\",IF(EUMED!$H$4=\"Français\",\"novembre\")))","v":"november"},11]
[{"$f":"IF(EUMED!$H$4=\"Deutsch\",\"Dezember\",IF(EUMED!$H$4=\"Nederlands\",\"december\",IF(EUMED!$H$4=\"Français\",\"décembre\")))","v":"december"},12]
[null,13]
[null,14]
[null,15]
[null,16]
[null,17]
[null,18]
[null,19]
[null,20]
[null,21]
[null,22]
[null,23]
[null,24]
[null,25]
[null,26]
[null,27]
[null,28]
[null,29]
[null,30]
[null,31]

{"sheet":"L","index":3,"n_rows":140,"n_cols":9,"rows_kept":140,"cut":false,"hidden":true,"merged":[[0,5,0,21]]}
[{"$f":"IF(EUMED!$H$4=\"Deutsch\",,IF(EUMED!$H$4=\"Nederlands\",,IF(EUMED!$H$4=\"Français\",)))","v":0},null,null,null,null,{"$f":"IF(EUMED!$H$4=\"Deutsch\",\"ÜBUNG - ÜBUNG - ÜBUNG - ÜBUNG - ÜBUNG - ÜBUNG - ÜBUNG - ÜBUNG\",IF(EUMED!$H$4=\"Nederlands\",\"OEFENING - OEFENING - OEFENING - OEFENING - OEFENING - OEFENING\",IF(EUMED!$H$4=\"Français\",\"EXERCICE - EXERCICE - EXERCICE - EXERCICE - EXERCICE - EXERCICE\")))","v":"OEFENING - OEFENING - OEFENING - OEFENING - OEFENING - OEFENING"}]
[null,"Deutsch",null,null,null,"Leitstellen",null,null,"Art"]
[null,"Nederlands",null,null,1,{"$f":"V!F25","v":"kiezen s.v.p."},null,1,{"$f":"V!F25","v":"kiezen s.v.p."}]
[null,"Français",null,null,2,{"$f":"V!F85","v":"CS 112 Luik (B)"},null,2,{"$f":"IF(EUMED!$H$4=L!$B$2,V!C6,\nIF(EUMED!$H$4=L!$B$3,V!D6,\nIF(EUMED!H$4=L!$B$4,V!E6)))","v":"brand"}]
[null,null,null,null,3,{"$f":"V!F86","v":"CS 112 Limburg (B)"},null,3,{"$f":"IF(EUMED!$H$4=L!$B$2,V!C7,\nIF(EUMED!$H$4=L!$B$3,V!D7,\nIF(EUMED!H$4=L!$B$4,V!E7)))","v":"ongeval met gevaarlijke stoffen"}]
[1,{"$f":"V!F25","v":"kiezen s.v.p."},null,null,4,{"$f":"V!F87","v":"Zone-meldkamer Oost-Limburg (B)"},null,4,{"$f":"IF(EUMED!$H$4=L!$B$2,V!C8,\nIF(EUMED!$H$4=L!$B$3,V!D8,\nIF(EUMED!H$4=L!$B$4,V!E8)))","v":"waterongeval"}]
[2,"Stadt",null,null,5,{"$f":"V!F88","v":"Meldkamer Stad/StädteRegion Aken (D)"},null,5,{"$f":"IF(EUMED!$H$4=L!$B$2,V!C9,\nIF(EUMED!$H$4=L!$B$3,V!D9,\nIF(EUMED!H$4=L!$B$4,V!E9)))","v":"verkeersongeval"}]
[3,"Städteregion",null,null,6,{"$f":"V!F89","v":"Meldkamer Kreis Düren (D)"},null,6,{"$f":"IF(EUMED!$H$4=L!$B$2,V!C10,\nIF(EUMED!$H$4=L!$B$3,V!D10,\nIF(EUMED!H$4=L!$B$4,V!E10)))","v":"hoogteredding"}]
[1,{"$f":"IF(A9=1,B6,IF(A9=2,B7,IF(A9=3,B8)))","v":"kiezen s.v.p."},null,null,7,{"$f":"V!F90","v":"Meldkamer Kreis Euskirchen (D)"},null,7,{"$f":"IF(EUMED!$H$4=L!$B$2,V!C11,\nIF(EUMED!$H$4=L!$B$3,V!D11,\nIF(EUMED!H$4=L!$B$4,V!E11)))","v":"hoogwater"}]
[null,null,null,null,8,{"$f":"V!F91","v":"Meldkamer Kreis Heinsberg (D)"},null,8,{"$f":"IF(EUMED!$H$4=L!$B$2,V!C12,\nIF(EUMED!$H$4=L!$B$3,V!D12,\nIF(EUMED!H$4=L!$B$4,V!E12)))","v":"storm"}]
[null,null,null,null,9,{"$f":"V!F92","v":"Meldkamer Ambulancezorg Limburg (NL)"},null,9,{"$f":"IF(EUMED!$H$4=L!$B$2,V!C13,\nIF(EUMED!$H$4=L!$B$3,V!D13,\nIF(EUMED!H$4=L!$B$4,V!E13)))","v":"bosbrand"}]
[null,null,null,"Abs.",1,{"$f":"IF(E12=1,F3,IF(E12=2,F4,IF(E12=3,F5,IF(E12=4,F6,IF(E12=5,F7,IF(E12=6,F8,IF(E12=7,F9,IF(E12=8,F10,IF(E12=9,F11)))))))))","v":"kiezen s.v.p."},null,10,{"$f":"IF(EUMED!$H$4=L!$B$2,V!C14,\nIF(EUMED!$H$4=L!$B$3,V!D14,\nIF(EUMED!H$4=L!$B$4,V!E14)))","v":"buitenbrand"}]
[null,null,null,"Empf.",1,{"$f":"IF(E13=1,F3,IF(E13=2,F4,IF(E13=3,F5,IF(E13=4,F6,IF(E13=5,F7,IF(E13=6,F8,IF(E13=7,F9,IF(E13=8,F10,IF(E13=9,F11)))))))))","v":"kiezen s.v.p."},null,11,{"$f":"IF(EUMED!$H$4=L!$B$2,V!C15,\nIF(EUMED!$H$4=L!$B$3,V!D15,\nIF(EUMED!H$4=L!$B$4,V!E15)))","v":"veenbrand"}]
[null,null,null,null,null,null,null,12,{"$f":"IF(EUMED!$H$4=L!$B$2,V!C16,\nIF(EUMED!$H$4=L!$B$3,V!D16,\nIF(EUMED!H$4=L!$B$4,V!E16)))","v":"vliegtuigongeval"}]
[null,null,null,"Lotsenstelle",null,null,null,13,{"$f":"IF(EUMED!$H$4=L!$B$2,V!C17,\nIF(EUMED!$H$4=L!$B$3,V!D17,\nIF(EUMED!H$4=L!$B$4,V!E17)))","v":"explosie"}]
[null,null,null,null,null,null,null,14,{"$f":"IF(EUMED!$H$4=L!$B$2,V!C18,\nIF(EUMED!$H$4=L!$B$3,V!D18,\nIF(EUMED!H$4=L!$B$4,V!E18)))","v":"instorting"}]
[null,null,null,null,null,null,null,15,{"$f":"IF(EUMED!$H$4=L!$B$2,V!C19,\nIF(EUMED!$H$4=L!$B$3,V!D19,\nIF(EUMED!H$4=L!$B$4,V!E19)))","v":"treinongeval"}]
[{"$f":"IF(V!G67=TRUE,TRUE,FALSE)","v":false},{"$f":"V!$F$67","v":"ambulance"},null,null,null,{"$f":"IF(V!L67=TRUE,TRUE,FALSE)","v":false},null,16,{"$f":"IF(EUMED!$H$4=L!$B$2,V!C20,\nIF(EUMED!$H$4=L!$B$3,V!D20,\nIF(EUMED!H$4=L!$B$4,V!E20)))","v":"industriebrand"}]
[{"$f":"IF(V!G68=TRUE,TRUE,FALSE)","v":false},{"$f":"V!$F$68","v":"MUG (in NL niet beschikbaar)"},null,null,null,{"$f":"IF(V!G68=TRUE,TRUE,FALSE)","v":false},null,17,{"$f":"IF(EUMED!$H$4=L!$B$2,V!C21,\nIF(EUMED!$H$4=L!$B$3,V!D21,\nIF(EUMED!H$4=L!$B$4,V!E21)))","v":"woningbrand"}]
[{"$f":"IF(V!G69=TRUE,TRUE,FALSE)","v":false},{"$f":"V!$F$69","v":"helicopter"},null,null,null,{"$f":"IF(V!G69=TRUE,TRUE,FALSE)","v":false},null,18,{"$f":"IF(EUMED!$H$4=L!$B$2,V!C22,\nIF(EUMED!$H$4=L!$B$3,V!D22,\nIF(EUMED!H$4=L!$B$4,V!E22)))","v":"anders, namelijk..."}]
[{"$f":"IF(V!G70=TRUE,TRUE,FALSE)","v":false},{"$f":"V!$F$70","v":"MICU (in B niet beschikbaar)"},null,null,null,{"$f":"IF(V!G70=TRUE,TRUE,FALSE)","v":false},null,1,{"$f":"IF(H21=1,I3,\nIF(H21=2,I4,\nIF(H21=3,I5,\nIF(H21=4,I6,\nIF(H21=5,I7,\nIF(H21=6,I8,\nIF(H21=7,I9,\nIF(H21=8,I10,\nIF(H21=9,I11,\nIF(H21=10,I12,\nIF(H21=11,I13,\nIF(H21=12,I14,\nIF(H21=13,I15,\nIF(H21=14,I16,\nIF(H21=15,I17,\nIF(H21=16,I18,\nIF(H21=17,I19,\nIF(H21=18,I20))))))))))))))))))","v":"kiezen s.v.p."}]
[]
[]
[{"$f":"IF(V!G42=TRUE,TRUE,FALSE)","v":false},{"$f":"V!$F$42","v":"niet gewenst"},null,null,null,{"$f":"IF(V!G42=TRUE,TRUE,FALSE)","v":false}]
[{"$f":"IF(V!G43=TRUE,TRUE,FALSE)","v":false},{"$f":"V!$F$43","v":"gewenst (meldkamer)"},null,null,null,{"$f":"IF(V!L43=TRUE,TRUE,FALSE)","v":false}]
[{"$f":"IF(V!G44=TRUE,TRUE,FALSE)","v":false},{"$f":"V!$F$44","v":"gewenst (plaats incident)"},null,null,null,{"$f":"IF(V!G44=TRUE,TRUE,FALSE)","v":false}]
[]
["CS112 Hasselt"]
[1,{"$f":"V!$F$25","v":"kiezen s.v.p."}]
[2,"EUMED 1"]
[3,"EUMED 2"]
[4,"EUMED 3"]
[1,{"$f":"IF(A33=1,B29,IF(A33=2,B30,IF(A33=3,B31,IF(A33=4,B32))))","v":"kiezen s.v.p."}]
[]
["CS112 Luik"]
[1,{"$f":"V!$F$25","v":"kiezen s.v.p."}]
[2,"EUMED 1"]
[3,"EUMED 2"]
[4,"EUMED 3"]
[1,{"$f":"IF(A40=1,B36,IF(A40=2,B37,IF(A40=3,B38,IF(A40=4,B39))))","v":"kiezen s.v.p."}]
[]
["ZOL"]
[1,{"$f":"V!$F$25","v":"kiezen s.v.p."}]
[2,"EUMED 1"]
[3,"EUMED 2"]
[4,"EUMED 3"]
[1,{"$f":"IF(A47=1,B43,IF(A47=2,B44,IF(A47=3,B45,IF(A47=4,B46))))","v":"kiezen s.v.p."}]
[]
["SRA"]
[1,{"$f":"V!$F$25","v":"kiezen s.v.p."}]
[2,"EUMED 1"]
[3,"EUMED 2"]
[4,"EUMED 3"]
[1,{"$f":"IF(A54=1,B50,IF(A54=2,B51,IF(A54=3,B52,IF(A54=4,B53))))","v":"kiezen s.v.p."}]
[]
["Düren"]
[1,{"$f":"V!$F$25","v":"kiezen s.v.p."}]
[2,"EUMED 1"]
[3,"EUMED 2"]
[4,"EUMED 3"]
[1,{"$f":"IF(A61=1,B57,IF(A61=2,B58,IF(A61=3,B59,IF(A61=4,B60))))","v":"kiezen s.v.p."}]
[]
["Euskirchen"]
[1,{"$f":"V!$F$25","v":"kiezen s.v.p."}]
[2,"EUMED 1"]
[3,"EUMED 2"]
[4,"EUMED 3"]
[1,{"$f":"IF(A68=1,B64,IF(A68=2,B65,IF(A68=3,B66,IF(A68=4,B67))))","v":"kiezen s.v.p."}]
[]
["Heinsberg"]
[1,{"$f":"V!$F$25","v":"kiezen s.v.p."}]
[2,"EUMED 1"]
[3,"EUMED 2"]
[4,"EUMED 3"]
[1,{"$f":"IF(A75=1,B71,IF(A75=2,B72,IF(A75=3,B73,IF(A75=4,B74))))","v":"kiezen s.v.p."}]
[]
["MKA"]
[1,{"$f":"V!$F$25","v":"kiezen s.v.p."}]
[2,"EUMED 1"]
[3,"EUMED 2"]
[4,"EUMED 3"]
[1,{"$f":"IF(A82=1,B78,IF(A82=2,B79,IF(A82=3,B80,IF(A82=4,B81))))","v":"kiezen s.v.p."}]
[]
["CS112 Hasselt"]
[1,{"$f":"V!$F$25","v":"kiezen s.v.p."}]
[2,{"$f":"V!$F$67","v":"ambulance"}]
[3,{"$f":"V!$F$68","v":"MUG (in NL niet beschikbaar)"}]
[4,{"$f":"V!$F$69","v":"helicopter"}]
[5,{"$f":"V!$F$70","v":"MICU (in B niet beschikbaar)"}]
[1,{"$f":"IF(A90=1,B85,IF(A90=2,B86,IF(A90=3,B87,IF(A90=4,B88,IF(A90=5,B89)))))","v":"kiezen s.v.p."}]
[]
["CS112 Luik"]
[1,{"$f":"V!$F$25","v":"kiezen s.v.p."}]
[2,{"$f":"V!$F$67","v":"ambulance"}]
[3,{"$f":"V!$F$68","v":"MUG (in NL niet beschikbaar)"}]
[4,{"$f":"V!$F$69","v":"helicopter"}]
[5,{"$f":"V!$F$70","v":"MICU (in B niet beschikbaar)"}]
[1,{"$f":"IF(A98=1,B93,IF(A98=2,B94,IF(A98=3,B95,IF(A98=4,B96,IF(A98=5,B97)))))","v":"kiezen s.v.p."}]
["ZOL"]
[1,{"$f":"V!$F$25","v":"kiezen s.v.p."}]
[2,{"$f":"V!$F$67","v":"ambulance"}]
[3,{"$f":"V!$F$68","v":"MUG (in NL niet beschikbaar)"}]
[4,{"$f":"V!$F$69","v":"helicopter"}]
[5,{"$f":"V!$F$70","v":"MICU (in B niet beschikbaar)"}]
[1,{"$f":"IF(A105=1,B100,IF(A105=2,B101,IF(A105=3,B102,IF(A105=4,B103,IF(A105=5,B104)))))","v":"kiezen s.v.p."}]
["SRA"]
[1,{"$f":"V!$F$25","v":"kiezen s.v.p."}]
[2,{"$f":"V!$F$67","v":"ambulance"}]
[3,{"$f":"V!$F$68","v":"MUG (in NL niet beschikbaar)"}]
[4,{"$f":"V!$F$69","v":"helicopter"}]
[5,{"$f":"V!$F$70","v":"MICU (in B niet beschikbaar)"}]
[1,{"$f":"IF(A112=1,B107,IF(A112=2,B108,IF(A112=3,B109,IF(A112=4,B110,IF(A112=5,B111)))))","v":"kiezen s.v.p."}]
["Düren"]
[1,{"$f":"V!$F$25","v":"kiezen s.v.p."}]
[2,{"$f":"V!$F$67","v":"ambulance"}]
[3,{"$f":"V!$F$68","v":"MUG (in NL niet beschikbaar)"}]
[4,{"$f":"V!$F$69","v":"helicopter"}]
[5,{"$f":"V!$F$70","v":"MICU (in B niet beschikbaar)"}]
[1,{"$f":"IF(A119=1,B114,IF(A119=2,B115,IF(A119=3,B116,IF(A119=4,B117,IF(A119=5,B118)))))","v":"kiezen s.v.p."}]
["Euskirchen"]
[1,{"$f":"V!$F$25","v":"kiezen s.v.p."}]
[2,{"$f":"V!$F$67","v":"ambulance"}]
[3,{"$f":"V!$F$68","v":"MUG (in NL niet beschikbaar)"}]
[4,{"$f":"V!$F$69","v":"helicopter"}]
[5,{"$f":"V!$F$70","v":"MICU (in B niet beschikbaar)"}]
[1,{"$f":"IF(A126=1,B121,IF(A126=2,B122,IF(A126=3,B123,IF(A126=4,B124,IF(A126=5,B125)))))","v":"kiezen s.v.p."}]
["Heinsberg"]
[1,{"$f":"V!$F$25","v":"kiezen s.v.p."}]
[2,{"$f":"V!$F$67","v":"ambulance"}]
[3,{"$f":"V!$F$68","v":"MUG (in NL niet beschikbaar)"}]
[4,{"$f":"V!$F$69","v":"helicopter"}]
[5,{"$f":"V!$F$70","v":"MICU (in B niet beschikbaar)"}]
[1,{"$f":"IF(A133=1,B128,IF(A133=2,B129,IF(A133=3,B130,IF(A133=4,B131,IF(A133=5,B132)))))","v":"kiezen s.v.p."}]
["MKA"]
[1,{"$f":"V!$F$25","v":"kiezen s.v.p."}]
[2,{"$f":"V!$F$67","v":"ambulance"}]
[3,{"$f":"V!$F$68","v":"MUG (in NL niet beschikbaar)"}]
[4,{"$f":"V!$F$69","v":"helicopter"}]
[5,{"$f":"V!$F$70","v":"MICU (in B niet beschikbaar)"}]
[1,{"$f":"IF(A140=1,B135,IF(A140=2,B136,IF(A140=3,B137,IF(A140=4,B138,IF(A140=5,B139)))))","v":"kiezen s.v.p."}]

{"sheet":"V","index":4,"n_rows":1212,"n_cols":9,"rows_kept":1212,"cut":false,"hidden":true,"merged":[]}
[1,null,"Deutsch","Nederlands","Français"]
[2,null,"Deutsch"]
[3,null,"Nederlands"]
[4,null,"Français"]
[5]
[6,"ART DES VORFALLS:","Brand","brand","incendie",{"$f":"IF(EUMED!$H$4=\"Deutsch\",C6,IF(EUMED!$H$4=\"Nederlands\",D6,IF(EUMED!$H$4=\"Français\",E6)))","v":"brand"}]
[7,"SOORT INCIDENT:","Gefahrguteinsatz","ongeval met gevaarlijke stoffen","intervention avec substances dangereuses",{"$f":"IF(EUMED!$H$4=\"Deutsch\",C7,IF(EUMED!$H$4=\"Nederlands\",D7,IF(EUMED!$H$4=\"Français\",E7)))","v":"ongeval met gevaarlijke stoffen"}]
[8,"SORTE D'INCIDENT:","Wasserunfall","waterongeval","accident sur l'eau",{"$f":"IF(EUMED!$H$4=\"Deutsch\",C8,IF(EUMED!$H$4=\"Nederlands\",D8,IF(EUMED!$H$4=\"Français\",E8)))","v":"waterongeval"}]
[9,null,"Verkehrsunfall","verkeersongeval","accident de la route",{"$f":"IF(EUMED!$H$4=\"Deutsch\",C9,IF(EUMED!$H$4=\"Nederlands\",D9,IF(EUMED!$H$4=\"Français\",E9)))","v":"verkeersongeval"}]
[10,null,"Höhenrettung","hoogteredding","sauvetage de altitude",{"$f":"IF(EUMED!$H$4=\"Deutsch\",C10,IF(EUMED!$H$4=\"Nederlands\",D10,IF(EUMED!$H$4=\"Français\",E10)))","v":"hoogteredding"}]
[11,null,"Hochwasser","hoogwater","hautes eaux",{"$f":"IF(EUMED!$H$4=\"Deutsch\",C11,IF(EUMED!$H$4=\"Nederlands\",D11,IF(EUMED!$H$4=\"Français\",E11)))","v":"hoogwater"}]
[12,null,"Unwetter","storm","tempête",{"$f":"IF(EUMED!$H$4=\"Deutsch\",C12,IF(EUMED!$H$4=\"Nederlands\",D12,IF(EUMED!$H$4=\"Français\",E12)))","v":"storm"}]
[13,null,"Waldbrand","bosbrand","feu de fôret",{"$f":"IF(EUMED!$H$4=\"Deutsch\",C13,IF(EUMED!$H$4=\"Nederlands\",D13,IF(EUMED!$H$4=\"Français\",E13)))","v":"bosbrand"}]
[14,null,"Flächenbrand","buitenbrand","feu à l'extérieur",{"$f":"IF(EUMED!$H$4=\"Deutsch\",C14,IF(EUMED!$H$4=\"Nederlands\",D14,IF(EUMED!$H$4=\"Français\",E14)))","v":"buitenbrand"}]
[15,null,"Vennbrand","veenbrand","feu de fagnes",{"$f":"IF(EUMED!$H$4=\"Deutsch\",C15,IF(EUMED!$H$4=\"Nederlands\",D15,IF(EUMED!$H$4=\"Français\",E15)))","v":"veenbrand"}]
[16,null,"Flugzeugunglück","vliegtuigongeval","accident d'aviation",{"$f":"IF(EUMED!$H$4=\"Deutsch\",C16,IF(EUMED!$H$4=\"Nederlands\",D16,IF(EUMED!$H$4=\"Français\",E16)))","v":"vliegtuigongeval"}]
[17,null,"Explosion","explosie","explosion",{"$f":"IF(EUMED!$H$4=\"Deutsch\",C17,IF(EUMED!$H$4=\"Nederlands\",D17,IF(EUMED!$H$4=\"Français\",E17)))","v":"explosie"}]
[18,null,"Einsturz","instorting","effondrement",{"$f":"IF(EUMED!$H$4=\"Deutsch\",C18,IF(EUMED!$H$4=\"Nederlands\",D18,IF(EUMED!$H$4=\"Français\",E18)))","v":"instorting"}]
[19,null,"Zugunglück","treinongeval","accident de train",{"$f":"IF(EUMED!$H$4=\"Deutsch\",C19,IF(EUMED!$H$4=\"Nederlands\",D19,IF(EUMED!$H$4=\"Français\",E19)))","v":"treinongeval"}]
[20,null,"Industriebrand","industriebrand","feu industriel",{"$f":"IF(EUMED!$H$4=\"Deutsch\",C20,IF(EUMED!$H$4=\"Nederlands\",D20,IF(EUMED!$H$4=\"Français\",E20)))","v":"industriebrand"}]
[21,null,"Wohnungsbrand","woningbrand","feu d'habitation",{"$f":"IF(EUMED!$H$4=\"Deutsch\",C21,IF(EUMED!$H$4=\"Nederlands\",D21,IF(EUMED!$H$4=\"Français\",E21)))","v":"woningbrand"}]
[22,null,"anderes, nämlich...","anders, namelijk...","autre à savoir...",{"$f":"IF(EUMED!$H$4=\"Deutsch\",C22,IF(EUMED!$H$4=\"Nederlands\",D22,IF(EUMED!$H$4=\"Français\",E22)))","v":"anders, namelijk..."}]
[23]
[24,null,"bitte ausfüllen","invoeren s.v.p.","complétez s.v.p.",{"$f":"IF(EUMED!$H$4=\"Deutsch\",C24,IF(EUMED!$H$4=\"Nederlands\",D24,IF(EUMED!$H$4=\"Français\",E24)))","v":"invoeren s.v.p."}]
[25,null,"bitte auswählen","kiezen s.v.p.","sélectionnez s.v.p.",{"$f":"IF(EUMED!$H$4=\"Deutsch\",C25,IF(EUMED!$H$4=\"Nederlands\",D25,IF(EUMED!$H$4=\"Français\",E25)))","v":"kiezen s.v.p."}]
[26]
[27,"GEFAHREN:","Feuer","brand","incendie",{"$f":"IF(EUMED!$H$4=\"Deutsch\",C27,IF(EUMED!$H$4=\"Nederlands\",D27,IF(EUMED!$H$4=\"Français\",E27)))","v":"brand"},false]
[28,"GEVAREN:","Rauchwolke","rookwolk","fumée",{"$f":"IF(EUMED!$H$4=\"Deutsch\",C28,IF(EUMED!$H$4=\"Nederlands\",D28,IF(EUMED!$H$4=\"Français\",E28)))","v":"rookwolk"},false]
[29,"DANGERS:","Einsturzgefahr","instortingsgevaar","danger d'effondrement de bâtiment",{"$f":"IF(EUMED!$H$4=\"Deutsch\",C29,IF(EUMED!$H$4=\"Nederlands\",D29,IF(EUMED!$H$4=\"Français\",E29)))","v":"instortingsgevaar"},false]
[30,null,"Explosionsgefahr","explosiegevaar","danger d'explosion",{"$f":"IF(EUMED!$H$4=\"Deutsch\",C30,IF(EUMED!$H$4=\"Nederlands\",D30,IF(EUMED!$H$4=\"Français\",E30)))","v":"explosiegevaar"},false]
[31,null,"Radioaktive Strahlung","radioactieve straling","radiation ",{"$f":"IF(EUMED!$H$4=\"Deutsch\",C31,IF(EUMED!$H$4=\"Nederlands\",D31,IF(EUMED!$H$4=\"Français\",E31)))","v":"radioactieve straling"},false]
[32,null,"Luftverschmutzung","luchtverontreiniging","pollution de l'air",{"$f":"IF(EUMED!$H$4=\"Deutsch\",C32,IF(EUMED!$H$4=\"Nederlands\",D32,IF(EUMED!$H$4=\"Français\",E32)))","v":"luchtverontreiniging"},false]
[33,null,"Giftwolke","gifwolk","nuage toxique",{"$f":"IF(EUMED!$H$4=\"Deutsch\",C33,IF(EUMED!$H$4=\"Nederlands\",D33,IF(EUMED!$H$4=\"Français\",E33)))","v":"gifwolk"},false]
[34,null,"Bodenverschmutzung","bodemvervuiling","pollution du sol",{"$f":"IF(EUMED!$H$4=\"Deutsch\",C34,IF(EUMED!$H$4=\"Nederlands\",D34,IF(EUMED!$H$4=\"Français\",E34)))","v":"bodemvervuiling"},false]
[35,null,"Verschmutzung von (Binnen-)Gewässern","vervuiling van het (binnen)water","pollution des cours d'eau ",{"$f":"IF(EUMED!$H$4=\"Deutsch\",C35,IF(EUMED!$H$4=\"Nederlands\",D35,IF(EUMED!$H$4=\"Français\",E35)))","v":"vervuiling van het (binnen)water"},false]
[36,null,"Infektionsgefahr","infectiegevaar","danger d'infection",{"$f":"IF(EUMED!$H$4=\"Deutsch\",C36,IF(EUMED!$H$4=\"Nederlands\",D36,IF(EUMED!$H$4=\"Français\",E36)))","v":"infectiegevaar"},false]
[37,null,"Überschwemmung","overstroming","inondation",{"$f":"IF(EUMED!$H$4=\"Deutsch\",C37,IF(EUMED!$H$4=\"Nederlands\",D37,IF(EUMED!$H$4=\"Français\",E37)))","v":"overstroming"},false]
[38,null,"Erdrutschgefahr","aardverschuiving","glissement de terrain",{"$f":"IF(EUMED!$H$4=\"Deutsch\",C38,IF(EUMED!$H$4=\"Nederlands\",D38,IF(EUMED!$H$4=\"Français\",E38)))","v":"aardverschuiving"},false]
[39,null,"Tagebruchgefahr","bodemverzakking","effondrement de terre",{"$f":"IF(EUMED!$H$4=\"Deutsch\",C39,IF(EUMED!$H$4=\"Nederlands\",D39,IF(EUMED!$H$4=\"Français\",E39)))","v":"bodemverzakking"},false]
[40,null,"Sonstige, nämlich…","anders, namelijk…","autre, à savoir…",{"$f":"IF(EUMED!$H$4=\"Deutsch\",C40,IF(EUMED!$H$4=\"Nederlands\",D40,IF(EUMED!$H$4=\"Français\",E40)))","v":"anders, namelijk…"},false]
[41]
[42,"VERBINDUNGSBEAMTER:","nicht gewünscht","niet gewenst","pas voulu",{"$f":"IF(EUMED!$H$4=\"Deutsch\",C42,IF(EUMED!$H$4=\"Nederlands\",D42,IF(EUMED!$H$4=\"Français\",E42)))","v":"niet gewenst"},false]
[43,"LIAISON:","gewünscht (Leitstelle)","gewenst (meldkamer)","voulu (centrale d'alerte)",{"$f":"IF(EUMED!$H$4=\"Deutsch\",C43,IF(EUMED!$H$4=\"Nederlands\",D43,IF(EUMED!$H$4=\"Français\",E43)))","v":"gewenst (meldkamer)"},false]
[44,"LIAISON:","gewünscht (Einsatzort)","gewenst (plaats incident)","voulu (sur le terrein)",{"$f":"IF(EUMED!$H$4=\"Deutsch\",C44,IF(EUMED!$H$4=\"Nederlands\",D44,IF(EUMED!$H$4=\"Français\",E44)))","v":"gewenst (plaats incident)"},false]
[45]
[46,null,"CBRN-MESSUNG:","CBRN-METING:","MESURE CBRN:",{"$f":"IF(EUMED!$H$4=\"Deutsch\",C46,IF(EUMED!$H$4=\"Nederlands\",D46,IF(EUMED!$H$4=\"Français\",E46)))","v":"CBRN-METING:"}]
[47]
[48,"EUMED 1","Nachbarschaftshilfe (klein bis mittelgroß) und/oder spezifische Hilfeleistung","Burenhulp specifieke eenheden (klein tot middelgroot incident)","Aide voisine (petit à moyen accident) et/ou aide spécialiste",{"$f":"IF(EUMED!$H$4=\"Deutsch\",C48,IF(EUMED!$H$4=\"Nederlands\",D48,IF(EUMED!$H$4=\"Français\",E48)))","v":"Burenhulp specifieke eenheden (klein tot middelgroot incident)"}]
[49,"EUMED 2","Hilfe für große bis sehr große Ereignisse","Burenhulp groot tot zeer groot incident","Aide voisine grand à très grand accident",{"$f":"IF(EUMED!$H$4=\"Deutsch\",C49,IF(EUMED!$H$4=\"Nederlands\",D49,IF(EUMED!$H$4=\"Français\",E49)))","v":"Burenhulp groot tot zeer groot incident"}]
[50,"EUMED 3","Hilfe bei Großschadensereignis","Burenhulp ramp","Aide voisine catastrophe",{"$f":"IF(EUMED!$H$4=\"Deutsch\",C50,IF(EUMED!$H$4=\"Nederlands\",D50,IF(EUMED!$H$4=\"Français\",E50)))","v":"Burenhulp ramp"}]
[51]
[52,"EUMED 1","1 - 3 LF","1 - 3 TS","1 - 3 autopompe(s)",{"$f":"IF(EUMED!$H$4=\"Deutsch\",C52,IF(EUMED!$H$4=\"Nederlands\",D52,IF(EUMED!$H$4=\"Français\",E52)))","v":"1 - 3 TS"}]
[53,null,"Spezifische Hilfeleistung (siehe Liste Seite 2)","Eenheid of materiaal (Zie lijst blad 2)","Aide spécialiste (Voyez liste page 2)",{"$f":"IF(EUMED!$H$4=\"Deutsch\",C53,IF(EUMED!$H$4=\"Nederlands\",D53,IF(EUMED!$H$4=\"Français\",E53)))","v":"Eenheid of materiaal (Zie lijst blad 2)"}]
[54,"EUMED 2","Kommandofahrzeug + 4 LF","4 TS + verplaatsingscommandant + coördinatie","Commandement + 4 autopompes",{"$f":"IF(EUMED!$H$4=\"Deutsch\",C54,IF(EUMED!$H$4=\"Nederlands\",D54,IF(EUMED!$H$4=\"Français\",E54)))","v":"4 TS + verplaatsingscommandant + coördinatie"}]
[55,null,"Zusatzmodul(e)","aanvullende modules","module(s) complémentaire",{"$f":"IF(EUMED!$H$4=\"Deutsch\",C55,IF(EUMED!$H$4=\"Nederlands\",D55,IF(EUMED!$H$4=\"Français\",E55)))","v":"aanvullende modules"}]
[56,"EUMED 3","Kommandofahrzeug + 8 LF","8 TS + verplaatsingscommandant + coördinatie","Commandement + 8 autopompes",{"$f":"IF(EUMED!$H$4=\"Deutsch\",C56,IF(EUMED!$H$4=\"Nederlands\",D56,IF(EUMED!$H$4=\"Français\",E56)))","v":"8 TS + verplaatsingscommandant + coördinatie"}]
[57,null,"Zusatzmodul(e)","aanvullende modules","module(s) complémentaire",{"$f":"IF(EUMED!$H$4=\"Deutsch\",C57,IF(EUMED!$H$4=\"Nederlands\",D57,IF(EUMED!$H$4=\"Français\",E57)))","v":"aanvullende modules"}]
[58]
[59,"ZUSATZMODUL(E):","Brandbekämpfung","Brandbestrijding","Lutte contre l'incendie",{"$f":"IF(EUMED!$H$4=\"Deutsch\",C59,IF(EUMED!$H$4=\"Nederlands\",D59,IF(EUMED!$H$4=\"Français\",E59)))","v":"Brandbestrijding"}]
[60,"AANVULLENDE MODULES:","Waldbrand","Natuurbrand","Feu de fôrets",{"$f":"IF(EUMED!$H$4=\"Deutsch\",C60,IF(EUMED!$H$4=\"Nederlands\",D60,IF(EUMED!$H$4=\"Français\",E60)))","v":"Natuurbrand"}]
[61,"MODULE(S) COMPLEMENTAIRE:","Technische Rettung","Technische hulpverlening","Sauvetage",{"$f":"IF(EUMED!$H$4=\"Deutsch\",C61,IF(EUMED!$H$4=\"Nederlands\",D61,IF(EUMED!$H$4=\"Français\",E61)))","v":"Technische hulpverlening"}]
[62,null,"Gefahrguteinsatz","Ongeval gevaarlijke stoffen","L'accident produits dangereux",{"$f":"IF(EUMED!$H$4=\"Deutsch\",C62,IF(EUMED!$H$4=\"Nederlands\",D62,IF(EUMED!$H$4=\"Français\",E62)))","v":"Ongeval gevaarlijke stoffen"}]
[63,"EMRIC 2 / EMRIC 3","Hochwasserschutz","Hoog water","Hautes eaux",{"$f":"IF(EUMED!$H$4=\"Deutsch\",C63,IF(EUMED!$H$4=\"Nederlands\",D63,IF(EUMED!$H$4=\"Français\",E63)))","v":"Hoog water"}]
[64]
[65,null,"Umschreibung:","omschrijving:","description:",{"$f":"IF(EUMED!$H$4=\"Deutsch\",C65,IF(EUMED!$H$4=\"Nederlands\",D65,IF(EUMED!$H$4=\"Français\",E65)))","v":"omschrijving:"}]
[66]
[67,"FAHRZEUGE:","Rettungswagen","ambulance","ambulance",{"$f":"IF(EUMED!$H$4=\"Deutsch\",C67,IF(EUMED!$H$4=\"Nederlands\",D67,IF(EUMED!$H$4=\"Français\",E67)))","v":"ambulance"},false]
[68,"VOERTUIGEN:","Notarzt (in NL nicht verfügbar)","MUG (in NL niet beschikbaar)","SMUR (pas aux Pays-Bas)",{"$f":"IF(EUMED!$H$4=\"Deutsch\",C68,IF(EUMED!$H$4=\"Nederlands\",D68,IF(EUMED!$H$4=\"Français\",E68)))","v":"MUG (in NL niet beschikbaar)"},false]
[69,"VÉHICULES:","RTH","helicopter","hélicoptère",{"$f":"IF(EUMED!$H$4=\"Deutsch\",C69,IF(EUMED!$H$4=\"Nederlands\",D69,IF(EUMED!$H$4=\"Français\",E69)))","v":"helicopter"},false]
[70,null,"ITW (in B nicht verfügbar)","MICU (in B niet beschikbaar)","MICU/ITW (pas en Belgique)",{"$f":"IF(EUMED!$H$4=\"Deutsch\",C70,IF(EUMED!$H$4=\"Nederlands\",D70,IF(EUMED!$H$4=\"Français\",E70)))","v":"MICU (in B niet beschikbaar)"},false]
[71,null,null,null,null,null,false]
[72,null,"Hilfsfrist:","aanrijtijd:","délai:",{"$f":"IF(EUMED!$H$4=\"Deutsch\",C72,IF(EUMED!$H$4=\"Nederlands\",D72,IF(EUMED!$H$4=\"Français\",E72)))","v":"aanrijtijd:"},false]
[73,null,"Patient","patiënt","victime",{"$f":"IF(EUMED!$H$4=\"Deutsch\",C73,IF(EUMED!$H$4=\"Nederlands\",D73,IF(EUMED!$H$4=\"Français\",E73)))","v":"patiënt"},false]
[74,null,"Patienten","patiënten","victimes",{"$f":"IF(EUMED!$H$4=\"Deutsch\",C74,IF(EUMED!$H$4=\"Nederlands\",D74,IF(EUMED!$H$4=\"Français\",E74)))","v":"patiënten"},false]
[75,null,"Wenn Eumed 2 angefragt worden ist, kann Eumed 3 nicht mehr geliefert werden durch die deutsche Leitstellen","Als Eumed 2 aangevraagd is, kan Eumed 3 niet geleverd worden door de Duitse meldkamers","Les centrales d’alerte en Allemagne ne pourront pas livré Eumed  3 , si Eumed 2 a déjà été demandé.",{"$f":"IF(EUMED!$H$4=\"Deutsch\",C75,IF(EUMED!$H$4=\"Nederlands\",D75,IF(EUMED!$H$4=\"Français\",E75)))","v":"Als Eumed 2 aangevraagd is, kan Eumed 3 niet geleverd worden door de Duitse meldkamers"}]
[76]
[77,null,"Hilfsfrist < 30 Minuten","aanrijtijd < 30 minuten","délai < 30 minutes",{"$f":"IF(EUMED!$H$4=\"Deutsch\",C77,IF(EUMED!$H$4=\"Nederlands\",D77,IF(EUMED!$H$4=\"Français\",E77)))","v":"aanrijtijd < 30 minuten"}]
[78,null,"Hilfsfrist < 60 Minuten","aanrijtijd < 60 minuten","délai < 60 minutes",{"$f":"IF(EUMED!$H$4=\"Deutsch\",C78,IF(EUMED!$H$4=\"Nederlands\",D78,IF(EUMED!$H$4=\"Français\",E78)))","v":"aanrijtijd < 60 minuten"}]
[79,null,"Hilfsfrist > 60 Minuten","aanrijtijd > 60 minuten","délai > 60 minutes",{"$f":"IF(EUMED!$H$4=\"Deutsch\",C79,IF(EUMED!$H$4=\"Nederlands\",D79,IF(EUMED!$H$4=\"Français\",E79)))","v":"aanrijtijd > 60 minuten"}]
[80,null,"bis zu 3 Patienten","tot 3 patiënten","jusqu'à 3 victimes",{"$f":"IF(EUMED!$H$4=\"Deutsch\",C80,IF(EUMED!$H$4=\"Nederlands\",D80,IF(EUMED!$H$4=\"Français\",E80)))","v":"tot 3 patiënten"}]
[81,null,"bis zu 18 Patienten","tot 18 patiënten","jusqu'à 18 victimes",{"$f":"IF(EUMED!$H$4=\"Deutsch\",C81,IF(EUMED!$H$4=\"Nederlands\",D81,IF(EUMED!$H$4=\"Français\",E81)))","v":"tot 18 patiënten"}]
[82,null,"bis zu 50 Patienten","tot 50 patiënten","jusqu'à 50 victimes",{"$f":"IF(EUMED!$H$4=\"Deutsch\",C82,IF(EUMED!$H$4=\"Nederlands\",D82,IF(EUMED!$H$4=\"Français\",E82)))","v":"tot 50 patiënten"}]
[83,null,"für genaue Kapazitäten pro Partner siehe Reiter \"Kapazität\"","voor capaciteiten per partner zie tabblad \"capaciteit\"","Les capacités exactes par partenaire sont expliquées dans l'index \"capacité\"",{"$f":"IF(EUMED!$H$4=\"Deutsch\",C83,IF(EUMED!$H$4=\"Nederlands\",D83,IF(EUMED!$H$4=\"Français\",E83)))","v":"voor capaciteiten per partner zie tabblad \"capaciteit\""}]
[84]
[85,"LEITSTELLEN","CS 112 Lüttich (B)","CS 112 Luik (B)","CS 112 Liège (B)",{"$f":"IF(EUMED!$H$4=\"Deutsch\",C85,IF(EUMED!$H$4=\"Nederlands\",D85,IF(EUMED!$H$4=\"Français\",E85)))","v":"CS 112 Luik (B)"},false]
[86,"MELDKAMERS","CS 112 Limburg (B)","CS 112 Limburg (B)","CS 112 Limburg (B)",{"$f":"IF(EUMED!$H$4=\"Deutsch\",C86,IF(EUMED!$H$4=\"Nederlands\",D86,IF(EUMED!$H$4=\"Français\",E86)))","v":"CS 112 Limburg (B)"},false]
[87,"CENTRALES D'ALERTE","Zonen-Leitstelle Oost-Limburg (B)","Zone-meldkamer Oost-Limburg (B)","Centrale d'alerte Zone Oost-Limburg (B)",{"$f":"IF(EUMED!$H$4=\"Deutsch\",C87,IF(EUMED!$H$4=\"Nederlands\",D87,IF(EUMED!$H$4=\"Français\",E87)))","v":"Zone-meldkamer Oost-Limburg (B)"},false]
[88,null,"Leitstelle Stadt/StädteRegion Aachen (D)","Meldkamer Stad/StädteRegion Aken (D)","Centrale d'alerte Aix + région (D)",{"$f":"IF(EUMED!$H$4=\"Deutsch\",C88,IF(EUMED!$H$4=\"Nederlands\",D88,IF(EUMED!$H$4=\"Français\",E88)))","v":"Meldkamer Stad/StädteRegion Aken (D)"},false]
[89,null,"Leitstelle Kreis Düren (D)","Meldkamer Kreis Düren (D)","Centrale d'alerte Kreis Düren (D)",{"$f":"IF(EUMED!$H$4=\"Deutsch\",C89,IF(EUMED!$H$4=\"Nederlands\",D89,IF(EUMED!$H$4=\"Français\",E89)))","v":"Meldkamer Kreis Düren (D)"},false]
[90,null,"Leitstelle Kreis Euskirchen (D)","Meldkamer Kreis Euskirchen (D)","Centrale d'alerte Kreis Euskirchen (D)",{"$f":"IF(EUMED!$H$4=\"Deutsch\",C90,IF(EUMED!$H$4=\"Nederlands\",D90,IF(EUMED!$H$4=\"Français\",E90)))","v":"Meldkamer Kreis Euskirchen (D)"},false]
[91,null,"Leitstelle Kreis Heinsberg (D)","Meldkamer Kreis Heinsberg (D)","Centrale d'alerte Kreis Heinsberg (D)",{"$f":"IF(EUMED!$H$4=\"Deutsch\",C91,IF(EUMED!$H$4=\"Nederlands\",D91,IF(EUMED!$H$4=\"Français\",E91)))","v":"Meldkamer Kreis Heinsberg (D)"},false]
[92,null,"Medizinische Leitstelle Limburg (NL)","Meldkamer Ambulancezorg Limburg (NL)","Centrale d'alerte médicale Limburg (NL)",{"$f":"IF(EUMED!$H$4=\"Deutsch\",C92,IF(EUMED!$H$4=\"Nederlands\",D92,IF(EUMED!$H$4=\"Français\",E92)))","v":"Meldkamer Ambulancezorg Limburg (NL)"},false,null,false]
[93]
[94,"ABLAUF","Telefonische Meldung des Ereignisses","Telefonische melding incident","Notification d'une situation d'urgence",{"$f":"IF(EUMED!$H$4=\"Deutsch\",C94,IF(EUMED!$H$4=\"Nederlands\",D94,IF(EUMED!$H$4=\"Français\",E94)))","v":"Telefonische melding incident"}]
[95,"PROCEDURE","Formular per Mail (oder per Fax) schicken","Formulier per mail sturen (of per fax)","Envoi du formulaire par mail (ou par fax)",{"$f":"IF(EUMED!$H$4=\"Deutsch\",C95,IF(EUMED!$H$4=\"Nederlands\",D95,IF(EUMED!$H$4=\"Français\",E95)))","v":"Formulier per mail sturen (of per fax)"}]
[96,"DÉROULEMENT","Die Kontaktdaten der als Empfänger ausgewählten Leitstellen werden im Reiter \"CONTACT\" automatisch gelb markiert.","De contactgegevens van de ontvangers, die gekozen zijn, worden bij \"CONTACT\" geel weergegeven.","Les coordonnées des récepteurs choisis, sont marqués en jaune dans l'index \"CONTACT\"",{"$f":"IF(EUMED!$H$4=\"Deutsch\",C96,IF(EUMED!$H$4=\"Nederlands\",D96,IF(EUMED!$H$4=\"Français\",E96)))","v":"De contactgegevens van de ontvangers, die gekozen zijn, worden bij \"CONTACT\" geel weergegeven."}]
[97,null,"(Falls Mail nicht möglich per Fax)","(Indien mail niet mogelijk per fax)","(Si mail n'est pas possible, envoi par fax",{"$f":"IF(EUMED!$H$4=\"Deutsch\",C97,IF(EUMED!$H$4=\"Nederlands\",D97,IF(EUMED!$H$4=\"Français\",E97)))","v":"(Indien mail niet mogelijk per fax)"}]
[98,null,"Rückmeldung abwarten","Antwoord afwachten","Attendez la réponse",{"$f":"IF(EUMED!$H$4=\"Deutsch\",C98,IF(EUMED!$H$4=\"Nederlands\",D98,IF(EUMED!$H$4=\"Français\",E98)))","v":"Antwoord afwachten"}]
[99,null,"Der rote Reiter muss ausgefüllt werden. Blaue Reiter dienen ausschließlich zur Information.\nDer grüne Antwort-Reiter wird von der Leitstelle, von der Hilfe erbeten wird, ausgefüllt und zurückgeschickt.","Het rode tabblad dient ingevuld te worden. Blauwe tabbladen zijn uitsluitend ter informatie. \nHet groene tabblad wordt ingevuld door de ontvanger en teruggestuurd.","L'index rouge doit être rempli. Les index bleus présentent des informations supplémentaires. L'index vert est à remplir par le récepteur.",{"$f":"IF(EUMED!$H$4=\"Deutsch\",C99,IF(EUMED!$H$4=\"Nederlands\",D99,IF(EUMED!$H$4=\"Français\",E99)))","v":"Het rode tabblad dient ingevuld te worden. Blauwe tabbladen zijn uitsluitend ter informatie. \nHet groene tabblad wordt ingevuld door de ontvanger en teruggestuurd."}]
[100,null,"Dieses Formular arbeitet mit Makros, muss aber ohne Makros gespeichert werden um zu vermeiden, dass es beim Verschicken per Mail eventuell als Spam eingestuft wird.\nBitte beachten Sie daher unbedingt die folgenden zwei Hinweise:\n1. Es muss immer die ursprüngliche Vorlage ausgefüllt werden! Bei einem ausgefüllt gespeicherten Formular funktionieren die Funktionen teilweise nicht mehr richtig. Bitte öffnen Sie die Datei per Doppelklick; so wird automatisch eine Kopie der Datei geöffnet und die Vorlage bleibt unverändert.\n2. Das Formular muss als normale Excel-Datei ohne Makros gespeichert werden. Bei der durch Doppelklick erstellte Kopie geschieht dies automatisch . Excel weist dann beim Speichern darauf hin, dass das VB-Projekt nicht gespeichert werden kann; bitte klicken Sie hier auf \"JA\".","Dit formulier maakt gebruik van macros. Het formulier moet echter zonder macros worden opgeslagen, om te voorkomen dat het bij het versturen per e-mail in de spamfilter terecht komt. \nLet u hierbij alstublieft op de volgende instructies:\n1. Het oorspronkelijke sjabloon dient altijd ingevuld te worden! Bij een ingevuld en opgeslagen formulier werken een aantal functies niet meer correct. Opent u alstublieft het bestand middels dubbelklikken; hierdoor wordt automatisch een kopie van het bestand geopend zonder het originele sjabloon te wijzigen.\n2. Het formulier moet als normaal Excel-bestand zonder macros worden opgeslagen. Bij het opslaan geeft Excel de melding dat het VB-project niet kan worden opgeslagen; klikt u hier alstublieft op “JA”.","Ce formulaire travaille avec des macros, mais doit être enregistré sans macros pour éviter une classification comme spam lors de l’envoi.\nVeuillez s.v.p. tenir compte des deux points suivants:\n1. Le modèle initial doit toujours être rempli! Avec un formulaire enregistré, les fonctions ne fonctionnent partiellement plus. Veuillez s.v.p. ouvrir le fichier par\ndouble-clic; une copie du fichier sera ouvert par conséquent et le modèle restera inchangé.\n2. Le formulaire doit être enregistré comme fichier exel normal  sans macros. Ceci se passe automatiquement avec la copie créée par double-clic. Exel indique conséquemment\nlors de l’enregistrement que le projet VB ne peut pas être enregistré; veuillez cliquer sur “OUI”.",{"$f":"IF(EUMED!$H$4=\"Deutsch\",C100,IF(EUMED!$H$4=\"Nederlands\",D100,IF(EUMED!$H$4=\"Français\",E100)))","v":"Dit formulier maakt gebruik van macros. Het formulier moet echter zonder macros worden opgeslagen, om te voorkomen dat het bij het versturen per e-mail in de spamfilter terecht komt. \nLet u hierbij alstublieft op de volgende instructies:\n1. Het oorspronkelijke sjabloon dient altijd ingevuld te worden! Bij een ingevuld en opgeslagen formulier werken een aantal functies niet meer correct. Opent u alstublieft het bestand middels dubbelklikken; hierdoor wordt automatisch een kopie van het bestand geopend zonder het originele sjabloon te wijzigen.\n2. Het formulier moet als normaal Excel-bestand zonder macros worden opgeslagen. Bij het opslaan geeft Excel de melding dat het VB-project niet kan worden opgeslagen; klikt u hier alstublieft op “JA”."}]
[101,null,"(E-Mail-Adressen werden anhand der ausgewählten Empfänger automatisch eingetragen)","(Mailadressen worden automatisch ingevuld afhankelijk van de gekozen geadresseerden)","(Les adresses email sont remplies automatiquement suivant les destinataires choisis)",{"$f":"IF(EUMED!$H$4=\"Deutsch\",C101,IF(EUMED!$H$4=\"Nederlands\",D101,IF(EUMED!$H$4=\"Français\",E101)))","v":"(Mailadressen worden automatisch ingevuld afhankelijk van de gekozen geadresseerden)"}]
[102,null,"HINWEISE","OPMERKINGEN","REMARQUES",{"$f":"IF(EUMED!$H$4=\"Deutsch\",C102,IF(EUMED!$H$4=\"Nederlands\",D102,IF(EUMED!$H$4=\"Français\",E102)))","v":"OPMERKINGEN"}]
[103,null,null,null,null,{"$f":"IF(EUMED!$H$4=\"Deutsch\",C103,IF(EUMED!$H$4=\"Nederlands\",D103,IF(EUMED!$H$4=\"Français\",E103)))","v":0}]
[104,null,"Geschätzte Ankunft an der Lotsenstelle:","Geschatte aankomsttijd op de loodspost:","Estimation de l'heure d'arrivée sur l'euroguide:",{"$f":"IF(EUMED!$H$4=\"Deutsch\",C104,IF(EUMED!$H$4=\"Nederlands\",D104,IF(EUMED!$H$4=\"Français\",E104)))","v":"Geschatte aankomsttijd op de loodspost:"}]
[105,null,"(Bitte ggf. die angeforderte Anzahl durch die Anzahl ersetzen, die geleistet werden kann.)","(Gelieve eventueel het gevraagde aantal door het aantal vervangen, dat geleverd kan worden)","(Prière de remplacer le nombre demandé par le nombre, qui peut être livré)",{"$f":"IF(EUMED!$H$4=\"Deutsch\",C105,IF(EUMED!$H$4=\"Nederlands\",D105,IF(EUMED!$H$4=\"Français\",E105)))","v":"(Gelieve eventueel het gevraagde aantal door het aantal vervangen, dat geleverd kan worden)"}]
[106,null,null,null,null,{"$f":"IF(EUMED!$H$4=\"Deutsch\",C106,IF(EUMED!$H$4=\"Nederlands\",D106,IF(EUMED!$H$4=\"Français\",E106)))","v":0}]
[107,null,"falls nötig bitte von Hand ausfüllen","handmatig invullen indien nodig","si nécessaire remplir à la main s.v.p.",{"$f":"IF(EUMED!$H$4=\"Deutsch\",C107,IF(EUMED!$H$4=\"Nederlands\",D107,IF(EUMED!$H$4=\"Français\",E107)))","v":"handmatig invullen indien nodig"}]
[108,null,null,null,null,{"$f":"IF(EUMED!$H$4=\"Deutsch\",C108,IF(EUMED!$H$4=\"Nederlands\",D108,IF(EUMED!$H$4=\"Français\",E108)))","v":0}]
[109,null,"alle auswählen","allen selecteren","sélectionnez tous",{"$f":"IF(EUMED!$H$4=\"Deutsch\",C109,IF(EUMED!$H$4=\"Nederlands\",D109,IF(EUMED!$H$4=\"Français\",E109)))","v":"allen selecteren"}]
[110,null,"Auswahl aufheben","selectie wissen","effacez la sélection",{"$f":"IF(EUMED!$H$4=\"Deutsch\",C110,IF(EUMED!$H$4=\"Nederlands\",D110,IF(EUMED!$H$4=\"Français\",E110)))","v":"selectie wissen"}]
[111]
[112,null,"geheime Nummer für Leitstellen in der EMR","geheim nummer voor meldkamers in de EMR","Numéro secrèt pour centrales d'alerte dans l'EMR",{"$f":"IF(EUMED!$H$4=\"Deutsch\",C112,IF(EUMED!$H$4=\"Nederlands\",D112,IF(EUMED!$H$4=\"Français\",E112)))","v":"geheim nummer voor meldkamers in de EMR"}]
[113,null,"spezielle Nummer für Leitstellen in der EMR","speciaal nummer voor meldkamers in de EMR","Numéro spécial pour centrales d'alerte dans l'EMR",{"$f":"IF(EUMED!$H$4=\"Deutsch\",C113,IF(EUMED!$H$4=\"Nederlands\",D113,IF(EUMED!$H$4=\"Français\",E113)))","v":"speciaal nummer voor meldkamers in de EMR"}]
[114,null,null,null,null,{"$f":"IF(EUMED!$H$4=\"Deutsch\",C114,IF(EUMED!$H$4=\"Nederlands\",D114,IF(EUMED!$H$4=\"Français\",E114)))","v":0}]
[115,null,"Version","Versie","Version",{"$f":"IF(EUMED!$H$4=\"Deutsch\",C115,IF(EUMED!$H$4=\"Nederlands\",D115,IF(EUMED!$H$4=\"Français\",E115)))","v":"Versie"}]
[116,null,null,null,null,{"$f":"IF(EUMED!$H$4=\"Deutsch\",C116,IF(EUMED!$H$4=\"Nederlands\",D116,IF(EUMED!$H$4=\"Français\",E116)))","v":0}]
[117,null,"Angeforderte Hilfe:","Aangevraagde bijstand:","Aide demandée:",{"$f":"IF(EUMED!$H$4=\"Deutsch\",C117,IF(EUMED!$H$4=\"Nederlands\",D117,IF(EUMED!$H$4=\"Français\",E117)))","v":"Aangevraagde bijstand:"}]
[118,null,"Die folgende Hilfe kann geliefert werden:","De volgende bijstand kan geleverd worden:","L’aide suivante peut être fournie:",{"$f":"IF(EUMED!$H$4=\"Deutsch\",C118,IF(EUMED!$H$4=\"Nederlands\",D118,IF(EUMED!$H$4=\"Français\",E118)))","v":"De volgende bijstand kan geleverd worden:"}]
[119,null,null,null,null,{"$f":"IF(EUMED!$H$4=\"Deutsch\",C119,IF(EUMED!$H$4=\"Nederlands\",D119,IF(EUMED!$H$4=\"Français\",E119)))","v":0}]
[120,null,null,null,null,{"$f":"IF(EUMED!$H$4=\"Deutsch\",C120,IF(EUMED!$H$4=\"Nederlands\",D120,IF(EUMED!$H$4=\"Français\",E120)))","v":0}]
[121,null,null,null,null,{"$f":"IF(EUMED!$H$4=\"Deutsch\",C121,IF(EUMED!$H$4=\"Nederlands\",D121,IF(EUMED!$H$4=\"Français\",E121)))","v":0}]
[122,null,null,null,null,{"$f":"IF(EUMED!$H$4=\"Deutsch\",C122,IF(EUMED!$H$4=\"Nederlands\",D122,IF(EUMED!$H$4=\"Français\",E122)))","v":0}]
[123,null,null,null,null,{"$f":"IF(EUMED!$H$4=\"Deutsch\",C123,IF(EUMED!$H$4=\"Nederlands\",D123,IF(EUMED!$H$4=\"Français\",E123)))","v":0}]
[124,null,null,null,null,{"$f":"IF(EUMED!$H$4=\"Deutsch\",C124,IF(EUMED!$H$4=\"Nederlands\",D124,IF(EUMED!$H$4=\"Français\",E124)))","v":0}]
[125,null,null,null,null,{"$f":"IF(EUMED!$H$4=\"Deutsch\",C125,IF(EUMED!$H$4=\"Nederlands\",D125,IF(EUMED!$H$4=\"Français\",E125)))","v":0}]
[126,null,null,null,null,{"$f":"IF(EUMED!$H$4=\"Deutsch\",C126,IF(EUMED!$H$4=\"Nederlands\",D126,IF(EUMED!$H$4=\"Français\",E126)))","v":0}]
[127,null,null,null,null,{"$f":"IF(EUMED!$H$4=\"Deutsch\",C127,IF(EUMED!$H$4=\"Nederlands\",D127,IF(EUMED!$H$4=\"Français\",E127)))","v":0}]
[128,null,null,null,null,{"$f":"IF(EUMED!$H$4=\"Deutsch\",C128,IF(EUMED!$H$4=\"Nederlands\",D128,IF(EUMED!$H$4=\"Français\",E128)))","v":0}]
[129,null,null,null,null,{"$f":"IF(EUMED!$H$4=\"Deutsch\",C129,IF(EUMED!$H$4=\"Nederlands\",D129,IF(EUMED!$H$4=\"Français\",E129)))","v":0}]
[130,null,null,null,null,{"$f":"IF(EUMED!$H$4=\"Deutsch\",C130,IF(EUMED!$H$4=\"Nederlands\",D130,IF(EUMED!$H$4=\"Français\",E130)))","v":0}]
[131,null,null,null,null,{"$f":"IF(EUMED!$H$4=\"Deutsch\",C131,IF(EUMED!$H$4=\"Nederlands\",D131,IF(EUMED!$H$4=\"Français\",E131)))","v":0}]
[132,null,null,null,null,{"$f":"IF(EUMED!$H$4=\"Deutsch\",C132,IF(EUMED!$H$4=\"Nederlands\",D132,IF(EUMED!$H$4=\"Français\",E132)))","v":0}]
[133,null,null,null,null,{"$f":"IF(EUMED!$H$4=\"Deutsch\",C133,IF(EUMED!$H$4=\"Nederlands\",D133,IF(EUMED!$H$4=\"Français\",E133)))","v":0}]
[134,null,null,null,null,{"$f":"IF(EUMED!$H$4=\"Deutsch\",C134,IF(EUMED!$H$4=\"Nederlands\",D134,IF(EUMED!$H$4=\"Français\",E134)))","v":0}]
[135,null,null,null,null,{"$f":"IF(EUMED!$H$4=\"Deutsch\",C135,IF(EUMED!$H$4=\"Nederlands\",D135,IF(EUMED!$H$4=\"Français\",E135)))","v":0}]
[136,null,null,null,null,{"$f":"IF(EUMED!$H$4=\"Deutsch\",C136,IF(EUMED!$H$4=\"Nederlands\",D136,IF(EUMED!$H$4=\"Français\",E136)))","v":0}]
[137,null,null,null,null,{"$f":"IF(EUMED!$H$4=\"Deutsch\",C137,IF(EUMED!$H$4=\"Nederlands\",D137,IF(EUMED!$H$4=\"Français\",E137)))","v":0}]
[138,null,null,null,null,{"$f":"IF(EUMED!$H$4=\"Deutsch\",C138,IF(EUMED!$H$4=\"Nederlands\",D138,IF(EUMED!$H$4=\"Français\",E138)))","v":0}]
[139,null,null,null,null,{"$f":"IF(EUMED!$H$4=\"Deutsch\",C139,IF(EUMED!$H$4=\"Nederlands\",D139,IF(EUMED!$H$4=\"Français\",E139)))","v":0}]
[140,null,null,null,null,{"$f":"IF(EUMED!$H$4=\"Deutsch\",C140,IF(EUMED!$H$4=\"Nederlands\",D140,IF(EUMED!$H$4=\"Français\",E140)))","v":0}]
[141,null,null,null,null,{"$f":"IF(EUMED!$H$4=\"Deutsch\",C141,IF(EUMED!$H$4=\"Nederlands\",D141,IF(EUMED!$H$4=\"Français\",E141)))","v":0}]
[142,null,null,null,null,{"$f":"IF(EUMED!$H$4=\"Deutsch\",C142,IF(EUMED!$H$4=\"Nederlands\",D142,IF(EUMED!$H$4=\"Français\",E142)))","v":0}]
[143,null,null,null,null,{"$f":"IF(EUMED!$H$4=\"Deutsch\",C143,IF(EUMED!$H$4=\"Nederlands\",D143,IF(EUMED!$H$4=\"Français\",E143)))","v":0}]
[144,null,null,null,null,{"$f":"IF(EUMED!$H$4=\"Deutsch\",C144,IF(EUMED!$H$4=\"Nederlands\",D144,IF(EUMED!$H$4=\"Français\",E144)))","v":0}]
[145,null,null,null,null,{"$f":"IF(EUMED!$H$4=\"Deutsch\",C145,IF(EUMED!$H$4=\"Nederlands\",D145,IF(EUMED!$H$4=\"Français\",E145)))","v":0}]
[146,null,null,null,null,{"$f":"IF(EUMED!$H$4=\"Deutsch\",C146,IF(EUMED!$H$4=\"Nederlands\",D146,IF(EUMED!$H$4=\"Français\",E146)))","v":0}]
[147,null,null,null,null,{"$f":"IF(EUMED!$H$4=\"Deutsch\",C147,IF(EUMED!$H$4=\"Nederlands\",D147,IF(EUMED!$H$4=\"Français\",E147)))","v":0}]
[148,null,null,null,null,{"$f":"IF(EUMED!$H$4=\"Deutsch\",C148,IF(EUMED!$H$4=\"Nederlands\",D148,IF(EUMED!$H$4=\"Français\",E148)))","v":0}]
[149,null,null,null,null,{"$f":"IF(EUMED!$H$4=\"Deutsch\",C149,IF(EUMED!$H$4=\"Nederlands\",D149,IF(EUMED!$H$4=\"Français\",E149)))","v":0}]
[150,null,null,null,null,{"$f":"IF(EUMED!$H$4=\"Deutsch\",C150,IF(EUMED!$H$4=\"Nederlands\",D150,IF(EUMED!$H$4=\"Français\",E150)))","v":0}]
[151,null,null,null,null,{"$f":"IF(EUMED!$H$4=\"Deutsch\",C151,IF(EUMED!$H$4=\"Nederlands\",D151,IF(EUMED!$H$4=\"Français\",E151)))","v":0}]
[152,null,null,null,null,{"$f":"IF(EUMED!$H$4=\"Deutsch\",C152,IF(EUMED!$H$4=\"Nederlands\",D152,IF(EUMED!$H$4=\"Français\",E152)))","v":0}]
[153,null,null,null,null,{"$f":"IF(EUMED!$H$4=\"Deutsch\",C153,IF(EUMED!$H$4=\"Nederlands\",D153,IF(EUMED!$H$4=\"Français\",E153)))","v":0}]
[154,null,null,null,null,{"$f":"IF(EUMED!$H$4=\"Deutsch\",C154,IF(EUMED!$H$4=\"Nederlands\",D154,IF(EUMED!$H$4=\"Français\",E154)))","v":0}]
[155,null,null,null,null,{"$f":"IF(EUMED!$H$4=\"Deutsch\",C155,IF(EUMED!$H$4=\"Nederlands\",D155,IF(EUMED!$H$4=\"Français\",E155)))","v":0}]
[156,null,null,null,null,{"$f":"IF(EUMED!$H$4=\"Deutsch\",C156,IF(EUMED!$H$4=\"Nederlands\",D156,IF(EUMED!$H$4=\"Français\",E156)))","v":0}]
[157,null,null,null,null,{"$f":"IF(EUMED!$H$4=\"Deutsch\",C157,IF(EUMED!$H$4=\"Nederlands\",D157,IF(EUMED!$H$4=\"Français\",E157)))","v":0}]
[158,null,null,null,null,{"$f":"IF(EUMED!$H$4=\"Deutsch\",C158,IF(EUMED!$H$4=\"Nederlands\",D158,IF(EUMED!$H$4=\"Français\",E158)))","v":0}]
[159,null,null,null,null,{"$f":"IF(EUMED!$H$4=\"Deutsch\",C159,IF(EUMED!$H$4=\"Nederlands\",D159,IF(EUMED!$H$4=\"Français\",E159)))","v":0}]
[160,null,null,null,null,{"$f":"IF(EUMED!$H$4=\"Deutsch\",C160,IF(EUMED!$H$4=\"Nederlands\",D160,IF(EUMED!$H$4=\"Français\",E160)))","v":0}]
[161,null,null,null,null,{"$f":"IF(EUMED!$H$4=\"Deutsch\",C161,IF(EUMED!$H$4=\"Nederlands\",D161,IF(EUMED!$H$4=\"Français\",E161)))","v":0}]
[162,null,null,null,null,{"$f":"IF(EUMED!$H$4=\"Deutsch\",C162,IF(EUMED!$H$4=\"Nederlands\",D162,IF(EUMED!$H$4=\"Français\",E162)))","v":0}]
[163,null,null,null,null,{"$f":"IF(EUMED!$H$4=\"Deutsch\",C163,IF(EUMED!$H$4=\"Nederlands\",D163,IF(EUMED!$H$4=\"Français\",E163)))","v":0}]
[164,null,null,null,null,{"$f":"IF(EUMED!$H$4=\"Deutsch\",C164,IF(EUMED!$H$4=\"Nederlands\",D164,IF(EUMED!$H$4=\"Français\",E164)))","v":0}]
[165,null,null,null,null,{"$f":"IF(EUMED!$H$4=\"Deutsch\",C165,IF(EUMED!$H$4=\"Nederlands\",D165,IF(EUMED!$H$4=\"Français\",E165)))","v":0}]
[166,null,null,null,null,{"$f":"IF(EUMED!$H$4=\"Deutsch\",C166,IF(EUMED!$H$4=\"Nederlands\",D166,IF(EUMED!$H$4=\"Français\",E166)))","v":0}]
[167,null,null,null,null,{"$f":"IF(EUMED!$H$4=\"Deutsch\",C167,IF(EUMED!$H$4=\"Nederlands\",D167,IF(EUMED!$H$4=\"Français\",E167)))","v":0}]
[168,null,null,null,null,{"$f":"IF(EUMED!$H$4=\"Deutsch\",C168,IF(EUMED!$H$4=\"Nederlands\",D168,IF(EUMED!$H$4=\"Français\",E168)))","v":0}]
[169,null,null,null,null,{"$f":"IF(EUMED!$H$4=\"Deutsch\",C169,IF(EUMED!$H$4=\"Nederlands\",D169,IF(EUMED!$H$4=\"Français\",E169)))","v":0}]
[170,null,null,null,null,{"$f":"IF(EUMED!$H$4=\"Deutsch\",C170,IF(EUMED!$H$4=\"Nederlands\",D170,IF(EUMED!$H$4=\"Français\",E170)))","v":0}]
[171,null,null,null,null,{"$f":"IF(EUMED!$H$4=\"Deutsch\",C171,IF(EUMED!$H$4=\"Nederlands\",D171,IF(EUMED!$H$4=\"Français\",E171)))","v":0}]
[172,null,null,null,null,{"$f":"IF(EUMED!$H$4=\"Deutsch\",C172,IF(EUMED!$H$4=\"Nederlands\",D172,IF(EUMED!$H$4=\"Français\",E172)))","v":0}]
[173,null,null,null,null,{"$f":"IF(EUMED!$H$4=\"Deutsch\",C173,IF(EUMED!$H$4=\"Nederlands\",D173,IF(EUMED!$H$4=\"Français\",E173)))","v":0}]
[174,null,null,null,null,{"$f":"IF(EUMED!$H$4=\"Deutsch\",C174,IF(EUMED!$H$4=\"Nederlands\",D174,IF(EUMED!$H$4=\"Français\",E174)))","v":0}]
[175,null,null,null,null,{"$f":"IF(EUMED!$H$4=\"Deutsch\",C175,IF(EUMED!$H$4=\"Nederlands\",D175,IF(EUMED!$H$4=\"Français\",E175)))","v":0}]
[176,null,null,null,null,{"$f":"IF(EUMED!$H$4=\"Deutsch\",C176,IF(EUMED!$H$4=\"Nederlands\",D176,IF(EUMED!$H$4=\"Français\",E176)))","v":0}]
[177,null,null,null,null,{"$f":"IF(EUMED!$H$4=\"Deutsch\",C177,IF(EUMED!$H$4=\"Nederlands\",D177,IF(EUMED!$H$4=\"Français\",E177)))","v":0}]
[178,null,null,null,null,{"$f":"IF(EUMED!$H$4=\"Deutsch\",C178,IF(EUMED!$H$4=\"Nederlands\",D178,IF(EUMED!$H$4=\"Français\",E178)))","v":0}]
[179,null,null,null,null,{"$f":"IF(EUMED!$H$4=\"Deutsch\",C179,IF(EUMED!$H$4=\"Nederlands\",D179,IF(EUMED!$H$4=\"Français\",E179)))","v":0}]
[180,null,null,null,null,{"$f":"IF(EUMED!$H$4=\"Deutsch\",C180,IF(EUMED!$H$4=\"Nederlands\",D180,IF(EUMED!$H$4=\"Français\",E180)))","v":0}]
[181,null,null,null,null,{"$f":"IF(EUMED!$H$4=\"Deutsch\",C181,IF(EUMED!$H$4=\"Nederlands\",D181,IF(EUMED!$H$4=\"Français\",E181)))","v":0}]
[182,null,null,null,null,{"$f":"IF(EUMED!$H$4=\"Deutsch\",C182,IF(EUMED!$H$4=\"Nederlands\",D182,IF(EUMED!$H$4=\"Français\",E182)))","v":0}]
[183,null,null,null,null,{"$f":"IF(EUMED!$H$4=\"Deutsch\",C183,IF(EUMED!$H$4=\"Nederlands\",D183,IF(EUMED!$H$4=\"Français\",E183)))","v":0}]
[184,null,null,null,null,{"$f":"IF(EUMED!$H$4=\"Deutsch\",C184,IF(EUMED!$H$4=\"Nederlands\",D184,IF(EUMED!$H$4=\"Français\",E184)))","v":0}]
[185,null,null,null,null,{"$f":"IF(EUMED!$H$4=\"Deutsch\",C185,IF(EUMED!$H$4=\"Nederlands\",D185,IF(EUMED!$H$4=\"Français\",E185)))","v":0}]
[186,null,null,null,null,{"$f":"IF(EUMED!$H$4=\"Deutsch\",C186,IF(EUMED!$H$4=\"Nederlands\",D186,IF(EUMED!$H$4=\"Français\",E186)))","v":0}]
[187,null,null,null,null,{"$f":"IF(EUMED!$H$4=\"Deutsch\",C187,IF(EUMED!$H$4=\"Nederlands\",D187,IF(EUMED!$H$4=\"Français\",E187)))","v":0}]
[188,null,null,null,null,{"$f":"IF(EUMED!$H$4=\"Deutsch\",C188,IF(EUMED!$H$4=\"Nederlands\",D188,IF(EUMED!$H$4=\"Français\",E188)))","v":0}]
[189,null,null,null,null,{"$f":"IF(EUMED!$H$4=\"Deutsch\",C189,IF(EUMED!$H$4=\"Nederlands\",D189,IF(EUMED!$H$4=\"Français\",E189)))","v":0}]
[190,null,null,null,null,{"$f":"IF(EUMED!$H$4=\"Deutsch\",C190,IF(EUMED!$H$4=\"Nederlands\",D190,IF(EUMED!$H$4=\"Français\",E190)))","v":0}]
[191,null,null,null,null,{"$f":"IF(EUMED!$H$4=\"Deutsch\",C191,IF(EUMED!$H$4=\"Nederlands\",D191,IF(EUMED!$H$4=\"Français\",E191)))","v":0}]
[192,null,null,null,null,{"$f":"IF(EUMED!$H$4=\"Deutsch\",C192,IF(EUMED!$H$4=\"Nederlands\",D192,IF(EUMED!$H$4=\"Français\",E192)))","v":0}]
[193,null,null,null,null,{"$f":"IF(EUMED!$H$4=\"Deutsch\",C193,IF(EUMED!$H$4=\"Nederlands\",D193,IF(EUMED!$H$4=\"Français\",E193)))","v":0}]
[194,null,null,null,null,{"$f":"IF(EUMED!$H$4=\"Deutsch\",C194,IF(EUMED!$H$4=\"Nederlands\",D194,IF(EUMED!$H$4=\"Français\",E194)))","v":0}]
[195,null,null,null,null,{"$f":"IF(EUMED!$H$4=\"Deutsch\",C195,IF(EUMED!$H$4=\"Nederlands\",D195,IF(EUMED!$H$4=\"Français\",E195)))","v":0}]
[196,null,null,null,null,{"$f":"IF(EUMED!$H$4=\"Deutsch\",C196,IF(EUMED!$H$4=\"Nederlands\",D196,IF(EUMED!$H$4=\"Français\",E196)))","v":0}]
[197,null,null,null,null,{"$f":"IF(EUMED!$H$4=\"Deutsch\",C197,IF(EUMED!$H$4=\"Nederlands\",D197,IF(EUMED!$H$4=\"Français\",E197)))","v":0}]
[198,null,null,null,null,{"$f":"IF(EUMED!$H$4=\"Deutsch\",C198,IF(EUMED!$H$4=\"Nederlands\",D198,IF(EUMED!$H$4=\"Français\",E198)))","v":0}]
[199,null,null,null,null,{"$f":"IF(EUMED!$H$4=\"Deutsch\",C199,IF(EUMED!$H$4=\"Nederlands\",D199,IF(EUMED!$H$4=\"Français\",E199)))","v":0}]
[200,null,null,null,null,{"$f":"IF(EUMED!$H$4=\"Deutsch\",C200,IF(EUMED!$H$4=\"Nederlands\",D200,IF(EUMED!$H$4=\"Français\",E200)))","v":0}]
[201,null,null,null,null,{"$f":"IF(EUMED!$H$4=\"Deutsch\",C201,IF(EUMED!$H$4=\"Nederlands\",D201,IF(EUMED!$H$4=\"Français\",E201)))","v":0}]
[202,null,null,null,null,{"$f":"IF(EUMED!$H$4=\"Deutsch\",C202,IF(EUMED!$H$4=\"Nederlands\",D202,IF(EUMED!$H$4=\"Français\",E202)))","v":0}]
[203,null,null,null,null,{"$f":"IF(EUMED!$H$4=\"Deutsch\",C203,IF(EUMED!$H$4=\"Nederlands\",D203,IF(EUMED!$H$4=\"Français\",E203)))","v":0}]
[204,null,null,null,null,{"$f":"IF(EUMED!$H$4=\"Deutsch\",C204,IF(EUMED!$H$4=\"Nederlands\",D204,IF(EUMED!$H$4=\"Français\",E204)))","v":0}]
[205,null,null,null,null,{"$f":"IF(EUMED!$H$4=\"Deutsch\",C205,IF(EUMED!$H$4=\"Nederlands\",D205,IF(EUMED!$H$4=\"Français\",E205)))","v":0}]
[206,null,null,null,null,{"$f":"IF(EUMED!$H$4=\"Deutsch\",C206,IF(EUMED!$H$4=\"Nederlands\",D206,IF(EUMED!$H$4=\"Français\",E206)))","v":0}]
[207,null,null,null,null,{"$f":"IF(EUMED!$H$4=\"Deutsch\",C207,IF(EUMED!$H$4=\"Nederlands\",D207,IF(EUMED!$H$4=\"Français\",E207)))","v":0}]
[208,null,null,null,null,{"$f":"IF(EUMED!$H$4=\"Deutsch\",C208,IF(EUMED!$H$4=\"Nederlands\",D208,IF(EUMED!$H$4=\"Français\",E208)))","v":0}]
[209,null,null,null,null,{"$f":"IF(EUMED!$H$4=\"Deutsch\",C209,IF(EUMED!$H$4=\"Nederlands\",D209,IF(EUMED!$H$4=\"Français\",E209)))","v":0}]
[210,null,null,null,null,{"$f":"IF(EUMED!$H$4=\"Deutsch\",C210,IF(EUMED!$H$4=\"Nederlands\",D210,IF(EUMED!$H$4=\"Français\",E210)))","v":0}]
[211,null,null,null,null,{"$f":"IF(EUMED!$H$4=\"Deutsch\",C211,IF(EUMED!$H$4=\"Nederlands\",D211,IF(EUMED!$H$4=\"Français\",E211)))","v":0}]
[212,null,null,null,null,{"$f":"IF(EUMED!$H$4=\"Deutsch\",C212,IF(EUMED!$H$4=\"Nederlands\",D212,IF(EUMED!$H$4=\"Français\",E212)))","v":0}]
[213,null,null,null,null,{"$f":"IF(EUMED!$H$4=\"Deutsch\",C213,IF(EUMED!$H$4=\"Nederlands\",D213,IF(EUMED!$H$4=\"Français\",E213)))","v":0}]
[214,null,null,null,null,{"$f":"IF(EUMED!$H$4=\"Deutsch\",C214,IF(EUMED!$H$4=\"Nederlands\",D214,IF(EUMED!$H$4=\"Français\",E214)))","v":0}]
[215,null,null,null,null,{"$f":"IF(EUMED!$H$4=\"Deutsch\",C215,IF(EUMED!$H$4=\"Nederlands\",D215,IF(EUMED!$H$4=\"Français\",E215)))","v":0}]
[216,null,null,null,null,{"$f":"IF(EUMED!$H$4=\"Deutsch\",C216,IF(EUMED!$H$4=\"Nederlands\",D216,IF(EUMED!$H$4=\"Français\",E216)))","v":0}]
[217,null,null,null,null,{"$f":"IF(EUMED!$H$4=\"Deutsch\",C217,IF(EUMED!$H$4=\"Nederlands\",D217,IF(EUMED!$H$4=\"Français\",E217)))","v":0}]
[218,null,null,null,null,{"$f":"IF(EUMED!$H$4=\"Deutsch\",C218,IF(EUMED!$H$4=\"Nederlands\",D218,IF(EUMED!$H$4=\"Français\",E218)))","v":0}]
[219,null,null,null,null,{"$f":"IF(EUMED!$H$4=\"Deutsch\",C219,IF(EUMED!$H$4=\"Nederlands\",D219,IF(EUMED!$H$4=\"Français\",E219)))","v":0}]
[220,null,null,null,null,{"$f":"IF(EUMED!$H$4=\"Deutsch\",C220,IF(EUMED!$H$4=\"Nederlands\",D220,IF(EUMED!$H$4=\"Français\",E220)))","v":0}]
[221,null,null,null,null,{"$f":"IF(EUMED!$H$4=\"Deutsch\",C221,IF(EUMED!$H$4=\"Nederlands\",D221,IF(EUMED!$H$4=\"Français\",E221)))","v":0}]
[222,null,null,null,null,{"$f":"IF(EUMED!$H$4=\"Deutsch\",C222,IF(EUMED!$H$4=\"Nederlands\",D222,IF(EUMED!$H$4=\"Français\",E222)))","v":0}]
[223,null,null,null,null,{"$f":"IF(EUMED!$H$4=\"Deutsch\",C223,IF(EUMED!$H$4=\"Nederlands\",D223,IF(EUMED!$H$4=\"Français\",E223)))","v":0}]
[224,null,null,null,null,{"$f":"IF(EUMED!$H$4=\"Deutsch\",C224,IF(EUMED!$H$4=\"Nederlands\",D224,IF(EUMED!$H$4=\"Français\",E224)))","v":0}]
[225,null,null,null,null,{"$f":"IF(EUMED!$H$4=\"Deutsch\",C225,IF(EUMED!$H$4=\"Nederlands\",D225,IF(EUMED!$H$4=\"Français\",E225)))","v":0}]
[226,null,null,null,null,{"$f":"IF(EUMED!$H$4=\"Deutsch\",C226,IF(EUMED!$H$4=\"Nederlands\",D226,IF(EUMED!$H$4=\"Français\",E226)))","v":0}]
[227,null,null,null,null,{"$f":"IF(EUMED!$H$4=\"Deutsch\",C227,IF(EUMED!$H$4=\"Nederlands\",D227,IF(EUMED!$H$4=\"Français\",E227)))","v":0}]
[228,null,null,null,null,{"$f":"IF(EUMED!$H$4=\"Deutsch\",C228,IF(EUMED!$H$4=\"Nederlands\",D228,IF(EUMED!$H$4=\"Français\",E228)))","v":0}]
[229,null,null,null,null,{"$f":"IF(EUMED!$H$4=\"Deutsch\",C229,IF(EUMED!$H$4=\"Nederlands\",D229,IF(EUMED!$H$4=\"Français\",E229)))","v":0}]
[230,null,null,null,null,{"$f":"IF(EUMED!$H$4=\"Deutsch\",C230,IF(EUMED!$H$4=\"Nederlands\",D230,IF(EUMED!$H$4=\"Français\",E230)))","v":0}]
[231,null,null,null,null,{"$f":"IF(EUMED!$H$4=\"Deutsch\",C231,IF(EUMED!$H$4=\"Nederlands\",D231,IF(EUMED!$H$4=\"Français\",E231)))","v":0}]
[232,null,null,null,null,{"$f":"IF(EUMED!$H$4=\"Deutsch\",C232,IF(EUMED!$H$4=\"Nederlands\",D232,IF(EUMED!$H$4=\"Français\",E232)))","v":0}]
[233,null,null,null,null,{"$f":"IF(EUMED!$H$4=\"Deutsch\",C233,IF(EUMED!$H$4=\"Nederlands\",D233,IF(EUMED!$H$4=\"Français\",E233)))","v":0}]
[234,null,null,null,null,{"$f":"IF(EUMED!$H$4=\"Deutsch\",C234,IF(EUMED!$H$4=\"Nederlands\",D234,IF(EUMED!$H$4=\"Français\",E234)))","v":0}]
[235,null,null,null,null,{"$f":"IF(EUMED!$H$4=\"Deutsch\",C235,IF(EUMED!$H$4=\"Nederlands\",D235,IF(EUMED!$H$4=\"Français\",E235)))","v":0}]
[236,null,null,null,null,{"$f":"IF(EUMED!$H$4=\"Deutsch\",C236,IF(EUMED!$H$4=\"Nederlands\",D236,IF(EUMED!$H$4=\"Français\",E236)))","v":0}]
[237,null,null,null,null,{"$f":"IF(EUMED!$H$4=\"Deutsch\",C237,IF(EUMED!$H$4=\"Nederlands\",D237,IF(EUMED!$H$4=\"Français\",E237)))","v":0}]
[238,null,null,null,null,{"$f":"IF(EUMED!$H$4=\"Deutsch\",C238,IF(EUMED!$H$4=\"Nederlands\",D238,IF(EUMED!$H$4=\"Français\",E238)))","v":0}]
[239,null,null,null,null,{"$f":"IF(EUMED!$H$4=\"Deutsch\",C239,IF(EUMED!$H$4=\"Nederlands\",D239,IF(EUMED!$H$4=\"Français\",E239)))","v":0}]
[240,null,null,null,null,{"$f":"IF(EUMED!$H$4=\"Deutsch\",C240,IF(EUMED!$H$4=\"Nederlands\",D240,IF(EUMED!$H$4=\"Français\",E240)))","v":0}]
[241,null,null,null,null,{"$f":"IF(EUMED!$H$4=\"Deutsch\",C241,IF(EUMED!$H$4=\"Nederlands\",D241,IF(EUMED!$H$4=\"Français\",E241)))","v":0}]
[242,null,null,null,null,{"$f":"IF(EUMED!$H$4=\"Deutsch\",C242,IF(EUMED!$H$4=\"Nederlands\",D242,IF(EUMED!$H$4=\"Français\",E242)))","v":0}]
[243,null,null,null,null,{"$f":"IF(EUMED!$H$4=\"Deutsch\",C243,IF(EUMED!$H$4=\"Nederlands\",D243,IF(EUMED!$H$4=\"Français\",E243)))","v":0}]
[244,null,null,null,null,{"$f":"IF(EUMED!$H$4=\"Deutsch\",C244,IF(EUMED!$H$4=\"Nederlands\",D244,IF(EUMED!$H$4=\"Français\",E244)))","v":0}]
[245,null,null,null,null,{"$f":"IF(EUMED!$H$4=\"Deutsch\",C245,IF(EUMED!$H$4=\"Nederlands\",D245,IF(EUMED!$H$4=\"Français\",E245)))","v":0}]
[246,null,null,null,null,{"$f":"IF(EUMED!$H$4=\"Deutsch\",C246,IF(EUMED!$H$4=\"Nederlands\",D246,IF(EUMED!$H$4=\"Français\",E246)))","v":0}]
[247,null,null,null,null,{"$f":"IF(EUMED!$H$4=\"Deutsch\",C247,IF(EUMED!$H$4=\"Nederlands\",D247,IF(EUMED!$H$4=\"Français\",E247)))","v":0}]
[248,null,null,null,null,{"$f":"IF(EUMED!$H$4=\"Deutsch\",C248,IF(EUMED!$H$4=\"Nederlands\",D248,IF(EUMED!$H$4=\"Français\",E248)))","v":0}]
[249,null,null,null,null,{"$f":"IF(EUMED!$H$4=\"Deutsch\",C249,IF(EUMED!$H$4=\"Nederlands\",D249,IF(EUMED!$H$4=\"Français\",E249)))","v":0}]
[250,null,null,null,null,{"$f":"IF(EUMED!$H$4=\"Deutsch\",C250,IF(EUMED!$H$4=\"Nederlands\",D250,IF(EUMED!$H$4=\"Français\",E250)))","v":0}]
[251,null,null,null,null,{"$f":"IF(EUMED!$H$4=\"Deutsch\",C251,IF(EUMED!$H$4=\"Nederlands\",D251,IF(EUMED!$H$4=\"Français\",E251)))","v":0}]
[252,null,null,null,null,{"$f":"IF(EUMED!$H$4=\"Deutsch\",C252,IF(EUMED!$H$4=\"Nederlands\",D252,IF(EUMED!$H$4=\"Français\",E252)))","v":0}]
[253,null,null,null,null,{"$f":"IF(EUMED!$H$4=\"Deutsch\",C253,IF(EUMED!$H$4=\"Nederlands\",D253,IF(EUMED!$H$4=\"Français\",E253)))","v":0}]
[254,null,null,null,null,{"$f":"IF(EUMED!$H$4=\"Deutsch\",C254,IF(EUMED!$H$4=\"Nederlands\",D254,IF(EUMED!$H$4=\"Français\",E254)))","v":0}]
[255,null,null,null,null,{"$f":"IF(EUMED!$H$4=\"Deutsch\",C255,IF(EUMED!$H$4=\"Nederlands\",D255,IF(EUMED!$H$4=\"Français\",E255)))","v":0}]
[256,null,null,null,null,{"$f":"IF(EUMED!$H$4=\"Deutsch\",C256,IF(EUMED!$H$4=\"Nederlands\",D256,IF(EUMED!$H$4=\"Français\",E256)))","v":0}]
[257,null,null,null,null,{"$f":"IF(EUMED!$H$4=\"Deutsch\",C257,IF(EUMED!$H$4=\"Nederlands\",D257,IF(EUMED!$H$4=\"Français\",E257)))","v":0}]
[258,null,null,null,null,{"$f":"IF(EUMED!$H$4=\"Deutsch\",C258,IF(EUMED!$H$4=\"Nederlands\",D258,IF(EUMED!$H$4=\"Français\",E258)))","v":0}]
[259,null,null,null,null,{"$f":"IF(EUMED!$H$4=\"Deutsch\",C259,IF(EUMED!$H$4=\"Nederlands\",D259,IF(EUMED!$H$4=\"Français\",E259)))","v":0}]
[260,null,null,null,null,{"$f":"IF(EUMED!$H$4=\"Deutsch\",C260,IF(EUMED!$H$4=\"Nederlands\",D260,IF(EUMED!$H$4=\"Français\",E260)))","v":0}]
[261,null,null,null,null,{"$f":"IF(EUMED!$H$4=\"Deutsch\",C261,IF(EUMED!$H$4=\"Nederlands\",D261,IF(EUMED!$H$4=\"Français\",E261)))","v":0}]
[262,null,null,null,null,{"$f":"IF(EUMED!$H$4=\"Deutsch\",C262,IF(EUMED!$H$4=\"Nederlands\",D262,IF(EUMED!$H$4=\"Français\",E262)))","v":0}]
[263,null,null,null,null,{"$f":"IF(EUMED!$H$4=\"Deutsch\",C263,IF(EUMED!$H$4=\"Nederlands\",D263,IF(EUMED!$H$4=\"Français\",E263)))","v":0}]
[264,null,null,null,null,{"$f":"IF(EUMED!$H$4=\"Deutsch\",C264,IF(EUMED!$H$4=\"Nederlands\",D264,IF(EUMED!$H$4=\"Français\",E264)))","v":0}]
[265,null,null,null,null,{"$f":"IF(EUMED!$H$4=\"Deutsch\",C265,IF(EUMED!$H$4=\"Nederlands\",D265,IF(EUMED!$H$4=\"Français\",E265)))","v":0}]
[266,null,null,null,null,{"$f":"IF(EUMED!$H$4=\"Deutsch\",C266,IF(EUMED!$H$4=\"Nederlands\",D266,IF(EUMED!$H$4=\"Français\",E266)))","v":0}]
[267,null,null,null,null,{"$f":"IF(EUMED!$H$4=\"Deutsch\",C267,IF(EUMED!$H$4=\"Nederlands\",D267,IF(EUMED!$H$4=\"Français\",E267)))","v":0}]
[268,null,null,null,null,{"$f":"IF(EUMED!$H$4=\"Deutsch\",C268,IF(EUMED!$H$4=\"Nederlands\",D268,IF(EUMED!$H$4=\"Français\",E268)))","v":0}]
[269,null,null,null,null,{"$f":"IF(EUMED!$H$4=\"Deutsch\",C269,IF(EUMED!$H$4=\"Nederlands\",D269,IF(EUMED!$H$4=\"Français\",E269)))","v":0}]
[270,null,null,null,null,{"$f":"IF(EUMED!$H$4=\"Deutsch\",C270,IF(EUMED!$H$4=\"Nederlands\",D270,IF(EUMED!$H$4=\"Français\",E270)))","v":0}]
[271,null,null,null,null,{"$f":"IF(EUMED!$H$4=\"Deutsch\",C271,IF(EUMED!$H$4=\"Nederlands\",D271,IF(EUMED!$H$4=\"Français\",E271)))","v":0}]
[272,null,null,null,null,{"$f":"IF(EUMED!$H$4=\"Deutsch\",C272,IF(EUMED!$H$4=\"Nederlands\",D272,IF(EUMED!$H$4=\"Français\",E272)))","v":0}]
[273,null,null,null,null,{"$f":"IF(EUMED!$H$4=\"Deutsch\",C273,IF(EUMED!$H$4=\"Nederlands\",D273,IF(EUMED!$H$4=\"Français\",E273)))","v":0}]
[274,null,null,null,null,{"$f":"IF(EUMED!$H$4=\"Deutsch\",C274,IF(EUMED!$H$4=\"Nederlands\",D274,IF(EUMED!$H$4=\"Français\",E274)))","v":0}]
[275,null,null,null,null,{"$f":"IF(EUMED!$H$4=\"Deutsch\",C275,IF(EUMED!$H$4=\"Nederlands\",D275,IF(EUMED!$H$4=\"Français\",E275)))","v":0}]
[276,null,null,null,null,{"$f":"IF(EUMED!$H$4=\"Deutsch\",C276,IF(EUMED!$H$4=\"Nederlands\",D276,IF(EUMED!$H$4=\"Français\",E276)))","v":0}]
[277,null,null,null,null,{"$f":"IF(EUMED!$H$4=\"Deutsch\",C277,IF(EUMED!$H$4=\"Nederlands\",D277,IF(EUMED!$H$4=\"Français\",E277)))","v":0}]
[278,null,null,null,null,{"$f":"IF(EUMED!$H$4=\"Deutsch\",C278,IF(EUMED!$H$4=\"Nederlands\",D278,IF(EUMED!$H$4=\"Français\",E278)))","v":0}]
[279,null,null,null,null,{"$f":"IF(EUMED!$H$4=\"Deutsch\",C279,IF(EUMED!$H$4=\"Nederlands\",D279,IF(EUMED!$H$4=\"Français\",E279)))","v":0}]
[280,null,null,null,null,{"$f":"IF(EUMED!$H$4=\"Deutsch\",C280,IF(EUMED!$H$4=\"Nederlands\",D280,IF(EUMED!$H$4=\"Français\",E280)))","v":0}]
[281,null,null,null,null,{"$f":"IF(EUMED!$H$4=\"Deutsch\",C281,IF(EUMED!$H$4=\"Nederlands\",D281,IF(EUMED!$H$4=\"Français\",E281)))","v":0}]
[282,null,null,null,null,{"$f":"IF(EUMED!$H$4=\"Deutsch\",C282,IF(EUMED!$H$4=\"Nederlands\",D282,IF(EUMED!$H$4=\"Français\",E282)))","v":0}]
[283,null,null,null,null,{"$f":"IF(EUMED!$H$4=\"Deutsch\",C283,IF(EUMED!$H$4=\"Nederlands\",D283,IF(EUMED!$H$4=\"Français\",E283)))","v":0}]
[284,null,null,null,null,{"$f":"IF(EUMED!$H$4=\"Deutsch\",C284,IF(EUMED!$H$4=\"Nederlands\",D284,IF(EUMED!$H$4=\"Français\",E284)))","v":0}]
[285,null,null,null,null,{"$f":"IF(EUMED!$H$4=\"Deutsch\",C285,IF(EUMED!$H$4=\"Nederlands\",D285,IF(EUMED!$H$4=\"Français\",E285)))","v":0}]
[286,null,null,null,null,{"$f":"IF(EUMED!$H$4=\"Deutsch\",C286,IF(EUMED!$H$4=\"Nederlands\",D286,IF(EUMED!$H$4=\"Français\",E286)))","v":0}]
[287,null,null,null,null,{"$f":"IF(EUMED!$H$4=\"Deutsch\",C287,IF(EUMED!$H$4=\"Nederlands\",D287,IF(EUMED!$H$4=\"Français\",E287)))","v":0}]
[288,null,null,null,null,{"$f":"IF(EUMED!$H$4=\"Deutsch\",C288,IF(EUMED!$H$4=\"Nederlands\",D288,IF(EUMED!$H$4=\"Français\",E288)))","v":0}]
[289,null,null,null,null,{"$f":"IF(EUMED!$H$4=\"Deutsch\",C289,IF(EUMED!$H$4=\"Nederlands\",D289,IF(EUMED!$H$4=\"Français\",E289)))","v":0}]
[290,null,null,null,null,{"$f":"IF(EUMED!$H$4=\"Deutsch\",C290,IF(EUMED!$H$4=\"Nederlands\",D290,IF(EUMED!$H$4=\"Français\",E290)))","v":0}]
[291,null,null,null,null,{"$f":"IF(EUMED!$H$4=\"Deutsch\",C291,IF(EUMED!$H$4=\"Nederlands\",D291,IF(EUMED!$H$4=\"Français\",E291)))","v":0}]
[292,null,null,null,null,{"$f":"IF(EUMED!$H$4=\"Deutsch\",C292,IF(EUMED!$H$4=\"Nederlands\",D292,IF(EUMED!$H$4=\"Français\",E292)))","v":0}]
[293,null,null,null,null,{"$f":"IF(EUMED!$H$4=\"Deutsch\",C293,IF(EUMED!$H$4=\"Nederlands\",D293,IF(EUMED!$H$4=\"Français\",E293)))","v":0}]
[294,null,null,null,null,{"$f":"IF(EUMED!$H$4=\"Deutsch\",C294,IF(EUMED!$H$4=\"Nederlands\",D294,IF(EUMED!$H$4=\"Français\",E294)))","v":0}]
[295,null,null,null,null,{"$f":"IF(EUMED!$H$4=\"Deutsch\",C295,IF(EUMED!$H$4=\"Nederlands\",D295,IF(EUMED!$H$4=\"Français\",E295)))","v":0}]
[296,null,null,null,null,{"$f":"IF(EUMED!$H$4=\"Deutsch\",C296,IF(EUMED!$H$4=\"Nederlands\",D296,IF(EUMED!$H$4=\"Français\",E296)))","v":0}]
[297,null,null,null,null,{"$f":"IF(EUMED!$H$4=\"Deutsch\",C297,IF(EUMED!$H$4=\"Nederlands\",D297,IF(EUMED!$H$4=\"Français\",E297)))","v":0}]
[298,null,null,null,null,{"$f":"IF(EUMED!$H$4=\"Deutsch\",C298,IF(EUMED!$H$4=\"Nederlands\",D298,IF(EUMED!$H$4=\"Français\",E298)))","v":0}]
[299,null,null,null,null,{"$f":"IF(EUMED!$H$4=\"Deutsch\",C299,IF(EUMED!$H$4=\"Nederlands\",D299,IF(EUMED!$H$4=\"Français\",E299)))","v":0}]
[300,null,null,null,null,{"$f":"IF(EUMED!$H$4=\"Deutsch\",C300,IF(EUMED!$H$4=\"Nederlands\",D300,IF(EUMED!$H$4=\"Français\",E300)))","v":0}]
[301,null,null,null,null,{"$f":"IF(EUMED!$H$4=\"Deutsch\",C301,IF(EUMED!$H$4=\"Nederlands\",D301,IF(EUMED!$H$4=\"Français\",E301)))","v":0}]
[302,null,null,null,null,{"$f":"IF(EUMED!$H$4=\"Deutsch\",C302,IF(EUMED!$H$4=\"Nederlands\",D302,IF(EUMED!$H$4=\"Français\",E302)))","v":0}]
[303,null,null,null,null,{"$f":"IF(EUMED!$H$4=\"Deutsch\",C303,IF(EUMED!$H$4=\"Nederlands\",D303,IF(EUMED!$H$4=\"Français\",E303)))","v":0}]
[304,null,null,null,null,{"$f":"IF(EUMED!$H$4=\"Deutsch\",C304,IF(EUMED!$H$4=\"Nederlands\",D304,IF(EUMED!$H$4=\"Français\",E304)))","v":0}]
[305,null,null,null,null,{"$f":"IF(EUMED!$H$4=\"Deutsch\",C305,IF(EUMED!$H$4=\"Nederlands\",D305,IF(EUMED!$H$4=\"Français\",E305)))","v":0}]
[306,null,null,null,null,{"$f":"IF(EUMED!$H$4=\"Deutsch\",C306,IF(EUMED!$H$4=\"Nederlands\",D306,IF(EUMED!$H$4=\"Français\",E306)))","v":0}]
[307,null,null,null,null,{"$f":"IF(EUMED!$H$4=\"Deutsch\",C307,IF(EUMED!$H$4=\"Nederlands\",D307,IF(EUMED!$H$4=\"Français\",E307)))","v":0}]
[308,null,null,null,null,{"$f":"IF(EUMED!$H$4=\"Deutsch\",C308,IF(EUMED!$H$4=\"Nederlands\",D308,IF(EUMED!$H$4=\"Français\",E308)))","v":0}]
[309,null,null,null,null,{"$f":"IF(EUMED!$H$4=\"Deutsch\",C309,IF(EUMED!$H$4=\"Nederlands\",D309,IF(EUMED!$H$4=\"Français\",E309)))","v":0}]
[310,null,null,null,null,{"$f":"IF(EUMED!$H$4=\"Deutsch\",C310,IF(EUMED!$H$4=\"Nederlands\",D310,IF(EUMED!$H$4=\"Français\",E310)))","v":0}]
[311,null,null,null,null,{"$f":"IF(EUMED!$H$4=\"Deutsch\",C311,IF(EUMED!$H$4=\"Nederlands\",D311,IF(EUMED!$H$4=\"Français\",E311)))","v":0}]
[312,null,null,null,null,{"$f":"IF(EUMED!$H$4=\"Deutsch\",C312,IF(EUMED!$H$4=\"Nederlands\",D312,IF(EUMED!$H$4=\"Français\",E312)))","v":0}]
[313,null,null,null,null,{"$f":"IF(EUMED!$H$4=\"Deutsch\",C313,IF(EUMED!$H$4=\"Nederlands\",D313,IF(EUMED!$H$4=\"Français\",E313)))","v":0}]
[314,null,null,null,null,{"$f":"IF(EUMED!$H$4=\"Deutsch\",C314,IF(EUMED!$H$4=\"Nederlands\",D314,IF(EUMED!$H$4=\"Français\",E314)))","v":0}]
[315,null,null,null,null,{"$f":"IF(EUMED!$H$4=\"Deutsch\",C315,IF(EUMED!$H$4=\"Nederlands\",D315,IF(EUMED!$H$4=\"Français\",E315)))","v":0}]
[316,null,null,null,null,{"$f":"IF(EUMED!$H$4=\"Deutsch\",C316,IF(EUMED!$H$4=\"Nederlands\",D316,IF(EUMED!$H$4=\"Français\",E316)))","v":0}]
[317,null,null,null,null,{"$f":"IF(EUMED!$H$4=\"Deutsch\",C317,IF(EUMED!$H$4=\"Nederlands\",D317,IF(EUMED!$H$4=\"Français\",E317)))","v":0}]
[318,null,null,null,null,{"$f":"IF(EUMED!$H$4=\"Deutsch\",C318,IF(EUMED!$H$4=\"Nederlands\",D318,IF(EUMED!$H$4=\"Français\",E318)))","v":0}]
[319,null,null,null,null,{"$f":"IF(EUMED!$H$4=\"Deutsch\",C319,IF(EUMED!$H$4=\"Nederlands\",D319,IF(EUMED!$H$4=\"Français\",E319)))","v":0}]
[320,null,null,null,null,{"$f":"IF(EUMED!$H$4=\"Deutsch\",C320,IF(EUMED!$H$4=\"Nederlands\",D320,IF(EUMED!$H$4=\"Français\",E320)))","v":0}]
[321,null,null,null,null,{"$f":"IF(EUMED!$H$4=\"Deutsch\",C321,IF(EUMED!$H$4=\"Nederlands\",D321,IF(EUMED!$H$4=\"Français\",E321)))","v":0}]
[322,null,null,null,null,{"$f":"IF(EUMED!$H$4=\"Deutsch\",C322,IF(EUMED!$H$4=\"Nederlands\",D322,IF(EUMED!$H$4=\"Français\",E322)))","v":0}]
[323,null,null,null,null,{"$f":"IF(EUMED!$H$4=\"Deutsch\",C323,IF(EUMED!$H$4=\"Nederlands\",D323,IF(EUMED!$H$4=\"Français\",E323)))","v":0}]
[324,null,null,null,null,{"$f":"IF(EUMED!$H$4=\"Deutsch\",C324,IF(EUMED!$H$4=\"Nederlands\",D324,IF(EUMED!$H$4=\"Français\",E324)))","v":0}]
[325,null,null,null,null,{"$f":"IF(EUMED!$H$4=\"Deutsch\",C325,IF(EUMED!$H$4=\"Nederlands\",D325,IF(EUMED!$H$4=\"Français\",E325)))","v":0}]
[326,null,null,null,null,{"$f":"IF(EUMED!$H$4=\"Deutsch\",C326,IF(EUMED!$H$4=\"Nederlands\",D326,IF(EUMED!$H$4=\"Français\",E326)))","v":0}]
[327,null,null,null,null,{"$f":"IF(EUMED!$H$4=\"Deutsch\",C327,IF(EUMED!$H$4=\"Nederlands\",D327,IF(EUMED!$H$4=\"Français\",E327)))","v":0}]
[328,null,null,null,null,{"$f":"IF(EUMED!$H$4=\"Deutsch\",C328,IF(EUMED!$H$4=\"Nederlands\",D328,IF(EUMED!$H$4=\"Français\",E328)))","v":0}]
[329,null,null,null,null,{"$f":"IF(EUMED!$H$4=\"Deutsch\",C329,IF(EUMED!$H$4=\"Nederlands\",D329,IF(EUMED!$H$4=\"Français\",E329)))","v":0}]
[330,null,null,null,null,{"$f":"IF(EUMED!$H$4=\"Deutsch\",C330,IF(EUMED!$H$4=\"Nederlands\",D330,IF(EUMED!$H$4=\"Français\",E330)))","v":0}]
[331,null,null,null,null,{"$f":"IF(EUMED!$H$4=\"Deutsch\",C331,IF(EUMED!$H$4=\"Nederlands\",D331,IF(EUMED!$H$4=\"Français\",E331)))","v":0}]
[332,null,null,null,null,{"$f":"IF(EUMED!$H$4=\"Deutsch\",C332,IF(EUMED!$H$4=\"Nederlands\",D332,IF(EUMED!$H$4=\"Français\",E332)))","v":0}]
[333,null,null,null,null,{"$f":"IF(EUMED!$H$4=\"Deutsch\",C333,IF(EUMED!$H$4=\"Nederlands\",D333,IF(EUMED!$H$4=\"Français\",E333)))","v":0}]
[334,null,null,null,null,{"$f":"IF(EUMED!$H$4=\"Deutsch\",C334,IF(EUMED!$H$4=\"Nederlands\",D334,IF(EUMED!$H$4=\"Français\",E334)))","v":0}]
[335,null,null,null,null,{"$f":"IF(EUMED!$H$4=\"Deutsch\",C335,IF(EUMED!$H$4=\"Nederlands\",D335,IF(EUMED!$H$4=\"Français\",E335)))","v":0}]
[336,null,null,null,null,{"$f":"IF(EUMED!$H$4=\"Deutsch\",C336,IF(EUMED!$H$4=\"Nederlands\",D336,IF(EUMED!$H$4=\"Français\",E336)))","v":0}]
[337,null,null,null,null,{"$f":"IF(EUMED!$H$4=\"Deutsch\",C337,IF(EUMED!$H$4=\"Nederlands\",D337,IF(EUMED!$H$4=\"Français\",E337)))","v":0}]
[338,null,null,null,null,{"$f":"IF(EUMED!$H$4=\"Deutsch\",C338,IF(EUMED!$H$4=\"Nederlands\",D338,IF(EUMED!$H$4=\"Français\",E338)))","v":0}]
[339,null,null,null,null,{"$f":"IF(EUMED!$H$4=\"Deutsch\",C339,IF(EUMED!$H$4=\"Nederlands\",D339,IF(EUMED!$H$4=\"Français\",E339)))","v":0}]
[340,null,null,null,null,{"$f":"IF(EUMED!$H$4=\"Deutsch\",C340,IF(EUMED!$H$4=\"Nederlands\",D340,IF(EUMED!$H$4=\"Français\",E340)))","v":0}]
[341,null,null,null,null,{"$f":"IF(EUMED!$H$4=\"Deutsch\",C341,IF(EUMED!$H$4=\"Nederlands\",D341,IF(EUMED!$H$4=\"Français\",E341)))","v":0}]
[342,null,null,null,null,{"$f":"IF(EUMED!$H$4=\"Deutsch\",C342,IF(EUMED!$H$4=\"Nederlands\",D342,IF(EUMED!$H$4=\"Français\",E342)))","v":0}]
[343,null,null,null,null,{"$f":"IF(EUMED!$H$4=\"Deutsch\",C343,IF(EUMED!$H$4=\"Nederlands\",D343,IF(EUMED!$H$4=\"Français\",E343)))","v":0}]
[344,null,null,null,null,{"$f":"IF(EUMED!$H$4=\"Deutsch\",C344,IF(EUMED!$H$4=\"Nederlands\",D344,IF(EUMED!$H$4=\"Français\",E344)))","v":0}]
[345,null,null,null,null,{"$f":"IF(EUMED!$H$4=\"Deutsch\",C345,IF(EUMED!$H$4=\"Nederlands\",D345,IF(EUMED!$H$4=\"Français\",E345)))","v":0}]
[346,null,null,null,null,{"$f":"IF(EUMED!$H$4=\"Deutsch\",C346,IF(EUMED!$H$4=\"Nederlands\",D346,IF(EUMED!$H$4=\"Français\",E346)))","v":0}]
[347,null,null,null,null,{"$f":"IF(EUMED!$H$4=\"Deutsch\",C347,IF(EUMED!$H$4=\"Nederlands\",D347,IF(EUMED!$H$4=\"Français\",E347)))","v":0}]
[348,null,null,null,null,{"$f":"IF(EUMED!$H$4=\"Deutsch\",C348,IF(EUMED!$H$4=\"Nederlands\",D348,IF(EUMED!$H$4=\"Français\",E348)))","v":0}]
[349,null,null,null,null,{"$f":"IF(EUMED!$H$4=\"Deutsch\",C349,IF(EUMED!$H$4=\"Nederlands\",D349,IF(EUMED!$H$4=\"Français\",E349)))","v":0}]
[350,null,null,null,null,{"$f":"IF(EUMED!$H$4=\"Deutsch\",C350,IF(EUMED!$H$4=\"Nederlands\",D350,IF(EUMED!$H$4=\"Français\",E350)))","v":0}]
[351,null,null,null,null,{"$f":"IF(EUMED!$H$4=\"Deutsch\",C351,IF(EUMED!$H$4=\"Nederlands\",D351,IF(EUMED!$H$4=\"Français\",E351)))","v":0}]
[352,null,null,null,null,{"$f":"IF(EUMED!$H$4=\"Deutsch\",C352,IF(EUMED!$H$4=\"Nederlands\",D352,IF(EUMED!$H$4=\"Français\",E352)))","v":0}]
[353,null,null,null,null,{"$f":"IF(EUMED!$H$4=\"Deutsch\",C353,IF(EUMED!$H$4=\"Nederlands\",D353,IF(EUMED!$H$4=\"Français\",E353)))","v":0}]
[354,null,null,null,null,{"$f":"IF(EUMED!$H$4=\"Deutsch\",C354,IF(EUMED!$H$4=\"Nederlands\",D354,IF(EUMED!$H$4=\"Français\",E354)))","v":0}]
[355,null,null,null,null,{"$f":"IF(EUMED!$H$4=\"Deutsch\",C355,IF(EUMED!$H$4=\"Nederlands\",D355,IF(EUMED!$H$4=\"Français\",E355)))","v":0}]
[356,null,null,null,null,{"$f":"IF(EUMED!$H$4=\"Deutsch\",C356,IF(EUMED!$H$4=\"Nederlands\",D356,IF(EUMED!$H$4=\"Français\",E356)))","v":0}]
[357,null,null,null,null,{"$f":"IF(EUMED!$H$4=\"Deutsch\",C357,IF(EUMED!$H$4=\"Nederlands\",D357,IF(EUMED!$H$4=\"Français\",E357)))","v":0}]
[358,null,null,null,null,{"$f":"IF(EUMED!$H$4=\"Deutsch\",C358,IF(EUMED!$H$4=\"Nederlands\",D358,IF(EUMED!$H$4=\"Français\",E358)))","v":0}]
[359,null,null,null,null,{"$f":"IF(EUMED!$H$4=\"Deutsch\",C359,IF(EUMED!$H$4=\"Nederlands\",D359,IF(EUMED!$H$4=\"Français\",E359)))","v":0}]
[360,null,null,null,null,{"$f":"IF(EUMED!$H$4=\"Deutsch\",C360,IF(EUMED!$H$4=\"Nederlands\",D360,IF(EUMED!$H$4=\"Français\",E360)))","v":0}]
[361,null,null,null,null,{"$f":"IF(EUMED!$H$4=\"Deutsch\",C361,IF(EUMED!$H$4=\"Nederlands\",D361,IF(EUMED!$H$4=\"Français\",E361)))","v":0}]
[362,null,null,null,null,{"$f":"IF(EUMED!$H$4=\"Deutsch\",C362,IF(EUMED!$H$4=\"Nederlands\",D362,IF(EUMED!$H$4=\"Français\",E362)))","v":0}]
[363,null,null,null,null,{"$f":"IF(EUMED!$H$4=\"Deutsch\",C363,IF(EUMED!$H$4=\"Nederlands\",D363,IF(EUMED!$H$4=\"Français\",E363)))","v":0}]
[364,null,null,null,null,{"$f":"IF(EUMED!$H$4=\"Deutsch\",C364,IF(EUMED!$H$4=\"Nederlands\",D364,IF(EUMED!$H$4=\"Français\",E364)))","v":0}]
[365,null,null,null,null,{"$f":"IF(EUMED!$H$4=\"Deutsch\",C365,IF(EUMED!$H$4=\"Nederlands\",D365,IF(EUMED!$H$4=\"Français\",E365)))","v":0}]
[366,null,null,null,null,{"$f":"IF(EUMED!$H$4=\"Deutsch\",C366,IF(EUMED!$H$4=\"Nederlands\",D366,IF(EUMED!$H$4=\"Français\",E366)))","v":0}]
[367,null,null,null,null,{"$f":"IF(EUMED!$H$4=\"Deutsch\",C367,IF(EUMED!$H$4=\"Nederlands\",D367,IF(EUMED!$H$4=\"Français\",E367)))","v":0}]
[368,null,null,null,null,{"$f":"IF(EUMED!$H$4=\"Deutsch\",C368,IF(EUMED!$H$4=\"Nederlands\",D368,IF(EUMED!$H$4=\"Français\",E368)))","v":0}]
[369,null,null,null,null,{"$f":"IF(EUMED!$H$4=\"Deutsch\",C369,IF(EUMED!$H$4=\"Nederlands\",D369,IF(EUMED!$H$4=\"Français\",E369)))","v":0}]
[370,null,null,null,null,{"$f":"IF(EUMED!$H$4=\"Deutsch\",C370,IF(EUMED!$H$4=\"Nederlands\",D370,IF(EUMED!$H$4=\"Français\",E370)))","v":0}]
[371,null,null,null,null,{"$f":"IF(EUMED!$H$4=\"Deutsch\",C371,IF(EUMED!$H$4=\"Nederlands\",D371,IF(EUMED!$H$4=\"Français\",E371)))","v":0}]
[372,null,null,null,null,{"$f":"IF(EUMED!$H$4=\"Deutsch\",C372,IF(EUMED!$H$4=\"Nederlands\",D372,IF(EUMED!$H$4=\"Français\",E372)))","v":0}]
[373,null,null,null,null,{"$f":"IF(EUMED!$H$4=\"Deutsch\",C373,IF(EUMED!$H$4=\"Nederlands\",D373,IF(EUMED!$H$4=\"Français\",E373)))","v":0}]
[374,null,null,null,null,{"$f":"IF(EUMED!$H$4=\"Deutsch\",C374,IF(EUMED!$H$4=\"Nederlands\",D374,IF(EUMED!$H$4=\"Français\",E374)))","v":0}]
[375,null,null,null,null,{"$f":"IF(EUMED!$H$4=\"Deutsch\",C375,IF(EUMED!$H$4=\"Nederlands\",D375,IF(EUMED!$H$4=\"Français\",E375)))","v":0}]
[376,null,null,null,null,{"$f":"IF(EUMED!$H$4=\"Deutsch\",C376,IF(EUMED!$H$4=\"Nederlands\",D376,IF(EUMED!$H$4=\"Français\",E376)))","v":0}]
[377,null,null,null,null,{"$f":"IF(EUMED!$H$4=\"Deutsch\",C377,IF(EUMED!$H$4=\"Nederlands\",D377,IF(EUMED!$H$4=\"Français\",E377)))","v":0}]
[378,null,null,null,null,{"$f":"IF(EUMED!$H$4=\"Deutsch\",C378,IF(EUMED!$H$4=\"Nederlands\",D378,IF(EUMED!$H$4=\"Français\",E378)))","v":0}]
[379,null,null,null,null,{"$f":"IF(EUMED!$H$4=\"Deutsch\",C379,IF(EUMED!$H$4=\"Nederlands\",D379,IF(EUMED!$H$4=\"Français\",E379)))","v":0}]
[380,null,null,null,null,{"$f":"IF(EUMED!$H$4=\"Deutsch\",C380,IF(EUMED!$H$4=\"Nederlands\",D380,IF(EUMED!$H$4=\"Français\",E380)))","v":0}]
[381,null,null,null,null,{"$f":"IF(EUMED!$H$4=\"Deutsch\",C381,IF(EUMED!$H$4=\"Nederlands\",D381,IF(EUMED!$H$4=\"Français\",E381)))","v":0}]
[382,null,null,null,null,{"$f":"IF(EUMED!$H$4=\"Deutsch\",C382,IF(EUMED!$H$4=\"Nederlands\",D382,IF(EUMED!$H$4=\"Français\",E382)))","v":0}]
[383,null,null,null,null,{"$f":"IF(EUMED!$H$4=\"Deutsch\",C383,IF(EUMED!$H$4=\"Nederlands\",D383,IF(EUMED!$H$4=\"Français\",E383)))","v":0}]
[384,null,null,null,null,{"$f":"IF(EUMED!$H$4=\"Deutsch\",C384,IF(EUMED!$H$4=\"Nederlands\",D384,IF(EUMED!$H$4=\"Français\",E384)))","v":0}]
[385,null,null,null,null,{"$f":"IF(EUMED!$H$4=\"Deutsch\",C385,IF(EUMED!$H$4=\"Nederlands\",D385,IF(EUMED!$H$4=\"Français\",E385)))","v":0}]
[386,null,null,null,null,{"$f":"IF(EUMED!$H$4=\"Deutsch\",C386,IF(EUMED!$H$4=\"Nederlands\",D386,IF(EUMED!$H$4=\"Français\",E386)))","v":0}]
[387,null,null,null,null,{"$f":"IF(EUMED!$H$4=\"Deutsch\",C387,IF(EUMED!$H$4=\"Nederlands\",D387,IF(EUMED!$H$4=\"Français\",E387)))","v":0}]
[388,null,null,null,null,{"$f":"IF(EUMED!$H$4=\"Deutsch\",C388,IF(EUMED!$H$4=\"Nederlands\",D388,IF(EUMED!$H$4=\"Français\",E388)))","v":0}]
[389,null,null,null,null,{"$f":"IF(EUMED!$H$4=\"Deutsch\",C389,IF(EUMED!$H$4=\"Nederlands\",D389,IF(EUMED!$H$4=\"Français\",E389)))","v":0}]
[390,null,null,null,null,{"$f":"IF(EUMED!$H$4=\"Deutsch\",C390,IF(EUMED!$H$4=\"Nederlands\",D390,IF(EUMED!$H$4=\"Français\",E390)))","v":0}]
[391,null,null,null,null,{"$f":"IF(EUMED!$H$4=\"Deutsch\",C391,IF(EUMED!$H$4=\"Nederlands\",D391,IF(EUMED!$H$4=\"Français\",E391)))","v":0}]
[392,null,null,null,null,{"$f":"IF(EUMED!$H$4=\"Deutsch\",C392,IF(EUMED!$H$4=\"Nederlands\",D392,IF(EUMED!$H$4=\"Français\",E392)))","v":0}]
[393,null,null,null,null,{"$f":"IF(EUMED!$H$4=\"Deutsch\",C393,IF(EUMED!$H$4=\"Nederlands\",D393,IF(EUMED!$H$4=\"Français\",E393)))","v":0}]
[394,null,null,null,null,{"$f":"IF(EUMED!$H$4=\"Deutsch\",C394,IF(EUMED!$H$4=\"Nederlands\",D394,IF(EUMED!$H$4=\"Français\",E394)))","v":0}]
[395,null,null,null,null,{"$f":"IF(EUMED!$H$4=\"Deutsch\",C395,IF(EUMED!$H$4=\"Nederlands\",D395,IF(EUMED!$H$4=\"Français\",E395)))","v":0}]
[396,null,null,null,null,{"$f":"IF(EUMED!$H$4=\"Deutsch\",C396,IF(EUMED!$H$4=\"Nederlands\",D396,IF(EUMED!$H$4=\"Français\",E396)))","v":0}]
[397,null,null,null,null,{"$f":"IF(EUMED!$H$4=\"Deutsch\",C397,IF(EUMED!$H$4=\"Nederlands\",D397,IF(EUMED!$H$4=\"Français\",E397)))","v":0}]
[398,null,null,null,null,{"$f":"IF(EUMED!$H$4=\"Deutsch\",C398,IF(EUMED!$H$4=\"Nederlands\",D398,IF(EUMED!$H$4=\"Français\",E398)))","v":0}]
[399,null,null,null,null,{"$f":"IF(EUMED!$H$4=\"Deutsch\",C399,IF(EUMED!$H$4=\"Nederlands\",D399,IF(EUMED!$H$4=\"Français\",E399)))","v":0}]
[400,null,null,null,null,{"$f":"IF(EUMED!$H$4=\"Deutsch\",C400,IF(EUMED!$H$4=\"Nederlands\",D400,IF(EUMED!$H$4=\"Français\",E400)))","v":0}]
[401,null,null,null,null,{"$f":"IF(EUMED!$H$4=\"Deutsch\",C401,IF(EUMED!$H$4=\"Nederlands\",D401,IF(EUMED!$H$4=\"Français\",E401)))","v":0}]
[402,null,null,null,null,{"$f":"IF(EUMED!$H$4=\"Deutsch\",C402,IF(EUMED!$H$4=\"Nederlands\",D402,IF(EUMED!$H$4=\"Français\",E402)))","v":0}]
[403,null,null,null,null,{"$f":"IF(EUMED!$H$4=\"Deutsch\",C403,IF(EUMED!$H$4=\"Nederlands\",D403,IF(EUMED!$H$4=\"Français\",E403)))","v":0}]
[404,null,null,null,null,{"$f":"IF(EUMED!$H$4=\"Deutsch\",C404,IF(EUMED!$H$4=\"Nederlands\",D404,IF(EUMED!$H$4=\"Français\",E404)))","v":0}]
[405,null,null,null,null,{"$f":"IF(EUMED!$H$4=\"Deutsch\",C405,IF(EUMED!$H$4=\"Nederlands\",D405,IF(EUMED!$H$4=\"Français\",E405)))","v":0}]
[406,null,null,null,null,{"$f":"IF(EUMED!$H$4=\"Deutsch\",C406,IF(EUMED!$H$4=\"Nederlands\",D406,IF(EUMED!$H$4=\"Français\",E406)))","v":0}]
[407,null,null,null,null,{"$f":"IF(EUMED!$H$4=\"Deutsch\",C407,IF(EUMED!$H$4=\"Nederlands\",D407,IF(EUMED!$H$4=\"Français\",E407)))","v":0}]
[408,null,null,null,null,{"$f":"IF(EUMED!$H$4=\"Deutsch\",C408,IF(EUMED!$H$4=\"Nederlands\",D408,IF(EUMED!$H$4=\"Français\",E408)))","v":0}]
[409,null,null,null,null,{"$f":"IF(EUMED!$H$4=\"Deutsch\",C409,IF(EUMED!$H$4=\"Nederlands\",D409,IF(EUMED!$H$4=\"Français\",E409)))","v":0}]
[410,null,null,null,null,{"$f":"IF(EUMED!$H$4=\"Deutsch\",C410,IF(EUMED!$H$4=\"Nederlands\",D410,IF(EUMED!$H$4=\"Français\",E410)))","v":0}]
[411,null,null,null,null,{"$f":"IF(EUMED!$H$4=\"Deutsch\",C411,IF(EUMED!$H$4=\"Nederlands\",D411,IF(EUMED!$H$4=\"Français\",E411)))","v":0}]
[412,null,null,null,null,{"$f":"IF(EUMED!$H$4=\"Deutsch\",C412,IF(EUMED!$H$4=\"Nederlands\",D412,IF(EUMED!$H$4=\"Français\",E412)))","v":0}]
[413,null,null,null,null,{"$f":"IF(EUMED!$H$4=\"Deutsch\",C413,IF(EUMED!$H$4=\"Nederlands\",D413,IF(EUMED!$H$4=\"Français\",E413)))","v":0}]
[414,null,null,null,null,{"$f":"IF(EUMED!$H$4=\"Deutsch\",C414,IF(EUMED!$H$4=\"Nederlands\",D414,IF(EUMED!$H$4=\"Français\",E414)))","v":0}]
[415,null,null,null,null,{"$f":"IF(EUMED!$H$4=\"Deutsch\",C415,IF(EUMED!$H$4=\"Nederlands\",D415,IF(EUMED!$H$4=\"Français\",E415)))","v":0}]
[416,null,null,null,null,{"$f":"IF(EUMED!$H$4=\"Deutsch\",C416,IF(EUMED!$H$4=\"Nederlands\",D416,IF(EUMED!$H$4=\"Français\",E416)))","v":0}]
[417,null,null,null,null,{"$f":"IF(EUMED!$H$4=\"Deutsch\",C417,IF(EUMED!$H$4=\"Nederlands\",D417,IF(EUMED!$H$4=\"Français\",E417)))","v":0}]
[418,null,null,null,null,{"$f":"IF(EUMED!$H$4=\"Deutsch\",C418,IF(EUMED!$H$4=\"Nederlands\",D418,IF(EUMED!$H$4=\"Français\",E418)))","v":0}]
[419,null,null,null,null,{"$f":"IF(EUMED!$H$4=\"Deutsch\",C419,IF(EUMED!$H$4=\"Nederlands\",D419,IF(EUMED!$H$4=\"Français\",E419)))","v":0}]
[420,null,null,null,null,{"$f":"IF(EUMED!$H$4=\"Deutsch\",C420,IF(EUMED!$H$4=\"Nederlands\",D420,IF(EUMED!$H$4=\"Français\",E420)))","v":0}]
[421,null,null,null,null,{"$f":"IF(EUMED!$H$4=\"Deutsch\",C421,IF(EUMED!$H$4=\"Nederlands\",D421,IF(EUMED!$H$4=\"Français\",E421)))","v":0}]
[422,null,null,null,null,{"$f":"IF(EUMED!$H$4=\"Deutsch\",C422,IF(EUMED!$H$4=\"Nederlands\",D422,IF(EUMED!$H$4=\"Français\",E422)))","v":0}]
[423,null,null,null,null,{"$f":"IF(EUMED!$H$4=\"Deutsch\",C423,IF(EUMED!$H$4=\"Nederlands\",D423,IF(EUMED!$H$4=\"Français\",E423)))","v":0}]
[424,null,null,null,null,{"$f":"IF(EUMED!$H$4=\"Deutsch\",C424,IF(EUMED!$H$4=\"Nederlands\",D424,IF(EUMED!$H$4=\"Français\",E424)))","v":0}]
[425,null,null,null,null,{"$f":"IF(EUMED!$H$4=\"Deutsch\",C425,IF(EUMED!$H$4=\"Nederlands\",D425,IF(EUMED!$H$4=\"Français\",E425)))","v":0}]
[426,null,null,null,null,{"$f":"IF(EUMED!$H$4=\"Deutsch\",C426,IF(EUMED!$H$4=\"Nederlands\",D426,IF(EUMED!$H$4=\"Français\",E426)))","v":0}]
[427,null,null,null,null,{"$f":"IF(EUMED!$H$4=\"Deutsch\",C427,IF(EUMED!$H$4=\"Nederlands\",D427,IF(EUMED!$H$4=\"Français\",E427)))","v":0}]
[428,null,null,null,null,{"$f":"IF(EUMED!$H$4=\"Deutsch\",C428,IF(EUMED!$H$4=\"Nederlands\",D428,IF(EUMED!$H$4=\"Français\",E428)))","v":0}]
[429,null,null,null,null,{"$f":"IF(EUMED!$H$4=\"Deutsch\",C429,IF(EUMED!$H$4=\"Nederlands\",D429,IF(EUMED!$H$4=\"Français\",E429)))","v":0}]
[430,null,null,null,null,{"$f":"IF(EUMED!$H$4=\"Deutsch\",C430,IF(EUMED!$H$4=\"Nederlands\",D430,IF(EUMED!$H$4=\"Français\",E430)))","v":0}]
[431,null,null,null,null,{"$f":"IF(EUMED!$H$4=\"Deutsch\",C431,IF(EUMED!$H$4=\"Nederlands\",D431,IF(EUMED!$H$4=\"Français\",E431)))","v":0}]
[432,null,null,null,null,{"$f":"IF(EUMED!$H$4=\"Deutsch\",C432,IF(EUMED!$H$4=\"Nederlands\",D432,IF(EUMED!$H$4=\"Français\",E432)))","v":0}]
[433,null,null,null,null,{"$f":"IF(EUMED!$H$4=\"Deutsch\",C433,IF(EUMED!$H$4=\"Nederlands\",D433,IF(EUMED!$H$4=\"Français\",E433)))","v":0}]
[434,null,null,null,null,{"$f":"IF(EUMED!$H$4=\"Deutsch\",C434,IF(EUMED!$H$4=\"Nederlands\",D434,IF(EUMED!$H$4=\"Français\",E434)))","v":0}]
[435,null,null,null,null,{"$f":"IF(EUMED!$H$4=\"Deutsch\",C435,IF(EUMED!$H$4=\"Nederlands\",D435,IF(EUMED!$H$4=\"Français\",E435)))","v":0}]
[436,null,null,null,null,{"$f":"IF(EUMED!$H$4=\"Deutsch\",C436,IF(EUMED!$H$4=\"Nederlands\",D436,IF(EUMED!$H$4=\"Français\",E436)))","v":0}]
[437,null,null,null,null,{"$f":"IF(EUMED!$H$4=\"Deutsch\",C437,IF(EUMED!$H$4=\"Nederlands\",D437,IF(EUMED!$H$4=\"Français\",E437)))","v":0}]
[438,null,null,null,null,{"$f":"IF(EUMED!$H$4=\"Deutsch\",C438,IF(EUMED!$H$4=\"Nederlands\",D438,IF(EUMED!$H$4=\"Français\",E438)))","v":0}]
[439,null,null,null,null,{"$f":"IF(EUMED!$H$4=\"Deutsch\",C439,IF(EUMED!$H$4=\"Nederlands\",D439,IF(EUMED!$H$4=\"Français\",E439)))","v":0}]
[440,null,null,null,null,{"$f":"IF(EUMED!$H$4=\"Deutsch\",C440,IF(EUMED!$H$4=\"Nederlands\",D440,IF(EUMED!$H$4=\"Français\",E440)))","v":0}]
[441,null,null,null,null,{"$f":"IF(EUMED!$H$4=\"Deutsch\",C441,IF(EUMED!$H$4=\"Nederlands\",D441,IF(EUMED!$H$4=\"Français\",E441)))","v":0}]
[442,null,null,null,null,{"$f":"IF(EUMED!$H$4=\"Deutsch\",C442,IF(EUMED!$H$4=\"Nederlands\",D442,IF(EUMED!$H$4=\"Français\",E442)))","v":0}]
[443,null,null,null,null,{"$f":"IF(EUMED!$H$4=\"Deutsch\",C443,IF(EUMED!$H$4=\"Nederlands\",D443,IF(EUMED!$H$4=\"Français\",E443)))","v":0}]
[444,null,null,null,null,{"$f":"IF(EUMED!$H$4=\"Deutsch\",C444,IF(EUMED!$H$4=\"Nederlands\",D444,IF(EUMED!$H$4=\"Français\",E444)))","v":0}]
[445,null,null,null,null,{"$f":"IF(EUMED!$H$4=\"Deutsch\",C445,IF(EUMED!$H$4=\"Nederlands\",D445,IF(EUMED!$H$4=\"Français\",E445)))","v":0}]
[446,null,null,null,null,{"$f":"IF(EUMED!$H$4=\"Deutsch\",C446,IF(EUMED!$H$4=\"Nederlands\",D446,IF(EUMED!$H$4=\"Français\",E446)))","v":0}]
[447,null,null,null,null,{"$f":"IF(EUMED!$H$4=\"Deutsch\",C447,IF(EUMED!$H$4=\"Nederlands\",D447,IF(EUMED!$H$4=\"Français\",E447)))","v":0}]
[448,null,null,null,null,{"$f":"IF(EUMED!$H$4=\"Deutsch\",C448,IF(EUMED!$H$4=\"Nederlands\",D448,IF(EUMED!$H$4=\"Français\",E448)))","v":0}]
[449,null,null,null,null,{"$f":"IF(EUMED!$H$4=\"Deutsch\",C449,IF(EUMED!$H$4=\"Nederlands\",D449,IF(EUMED!$H$4=\"Français\",E449)))","v":0}]
[450,null,null,null,null,{"$f":"IF(EUMED!$H$4=\"Deutsch\",C450,IF(EUMED!$H$4=\"Nederlands\",D450,IF(EUMED!$H$4=\"Français\",E450)))","v":0}]
[451,null,null,null,null,{"$f":"IF(EUMED!$H$4=\"Deutsch\",C451,IF(EUMED!$H$4=\"Nederlands\",D451,IF(EUMED!$H$4=\"Français\",E451)))","v":0}]
[452,null,null,null,null,{"$f":"IF(EUMED!$H$4=\"Deutsch\",C452,IF(EUMED!$H$4=\"Nederlands\",D452,IF(EUMED!$H$4=\"Français\",E452)))","v":0}]
[453,null,null,null,null,{"$f":"IF(EUMED!$H$4=\"Deutsch\",C453,IF(EUMED!$H$4=\"Nederlands\",D453,IF(EUMED!$H$4=\"Français\",E453)))","v":0}]
[454,null,null,null,null,{"$f":"IF(EUMED!$H$4=\"Deutsch\",C454,IF(EUMED!$H$4=\"Nederlands\",D454,IF(EUMED!$H$4=\"Français\",E454)))","v":0}]
[455,null,null,null,null,{"$f":"IF(EUMED!$H$4=\"Deutsch\",C455,IF(EUMED!$H$4=\"Nederlands\",D455,IF(EUMED!$H$4=\"Français\",E455)))","v":0}]
[456,null,null,null,null,{"$f":"IF(EUMED!$H$4=\"Deutsch\",C456,IF(EUMED!$H$4=\"Nederlands\",D456,IF(EUMED!$H$4=\"Français\",E456)))","v":0}]
[457,null,null,null,null,{"$f":"IF(EUMED!$H$4=\"Deutsch\",C457,IF(EUMED!$H$4=\"Nederlands\",D457,IF(EUMED!$H$4=\"Français\",E457)))","v":0}]
[458,null,null,null,null,{"$f":"IF(EUMED!$H$4=\"Deutsch\",C458,IF(EUMED!$H$4=\"Nederlands\",D458,IF(EUMED!$H$4=\"Français\",E458)))","v":0}]
[459,null,null,null,null,{"$f":"IF(EUMED!$H$4=\"Deutsch\",C459,IF(EUMED!$H$4=\"Nederlands\",D459,IF(EUMED!$H$4=\"Français\",E459)))","v":0}]
[460,null,null,null,null,{"$f":"IF(EUMED!$H$4=\"Deutsch\",C460,IF(EUMED!$H$4=\"Nederlands\",D460,IF(EUMED!$H$4=\"Français\",E460)))","v":0}]
[461,null,null,null,null,{"$f":"IF(EUMED!$H$4=\"Deutsch\",C461,IF(EUMED!$H$4=\"Nederlands\",D461,IF(EUMED!$H$4=\"Français\",E461)))","v":0}]
[462,null,null,null,null,{"$f":"IF(EUMED!$H$4=\"Deutsch\",C462,IF(EUMED!$H$4=\"Nederlands\",D462,IF(EUMED!$H$4=\"Français\",E462)))","v":0}]
[463,null,null,null,null,{"$f":"IF(EUMED!$H$4=\"Deutsch\",C463,IF(EUMED!$H$4=\"Nederlands\",D463,IF(EUMED!$H$4=\"Français\",E463)))","v":0}]
[464,null,null,null,null,{"$f":"IF(EUMED!$H$4=\"Deutsch\",C464,IF(EUMED!$H$4=\"Nederlands\",D464,IF(EUMED!$H$4=\"Français\",E464)))","v":0}]
[465,null,null,null,null,{"$f":"IF(EUMED!$H$4=\"Deutsch\",C465,IF(EUMED!$H$4=\"Nederlands\",D465,IF(EUMED!$H$4=\"Français\",E465)))","v":0}]
[466,null,null,null,null,{"$f":"IF(EUMED!$H$4=\"Deutsch\",C466,IF(EUMED!$H$4=\"Nederlands\",D466,IF(EUMED!$H$4=\"Français\",E466)))","v":0}]
[467,null,null,null,null,{"$f":"IF(EUMED!$H$4=\"Deutsch\",C467,IF(EUMED!$H$4=\"Nederlands\",D467,IF(EUMED!$H$4=\"Français\",E467)))","v":0}]
[468,null,null,null,null,{"$f":"IF(EUMED!$H$4=\"Deutsch\",C468,IF(EUMED!$H$4=\"Nederlands\",D468,IF(EUMED!$H$4=\"Français\",E468)))","v":0}]
[469,null,null,null,null,{"$f":"IF(EUMED!$H$4=\"Deutsch\",C469,IF(EUMED!$H$4=\"Nederlands\",D469,IF(EUMED!$H$4=\"Français\",E469)))","v":0}]
[470,null,null,null,null,{"$f":"IF(EUMED!$H$4=\"Deutsch\",C470,IF(EUMED!$H$4=\"Nederlands\",D470,IF(EUMED!$H$4=\"Français\",E470)))","v":0}]
[471,null,null,null,null,{"$f":"IF(EUMED!$H$4=\"Deutsch\",C471,IF(EUMED!$H$4=\"Nederlands\",D471,IF(EUMED!$H$4=\"Français\",E471)))","v":0}]
[472,null,null,null,null,{"$f":"IF(EUMED!$H$4=\"Deutsch\",C472,IF(EUMED!$H$4=\"Nederlands\",D472,IF(EUMED!$H$4=\"Français\",E472)))","v":0}]
[473,null,null,null,null,{"$f":"IF(EUMED!$H$4=\"Deutsch\",C473,IF(EUMED!$H$4=\"Nederlands\",D473,IF(EUMED!$H$4=\"Français\",E473)))","v":0}]
[474,null,null,null,null,{"$f":"IF(EUMED!$H$4=\"Deutsch\",C474,IF(EUMED!$H$4=\"Nederlands\",D474,IF(EUMED!$H$4=\"Français\",E474)))","v":0}]
[475,null,null,null,null,{"$f":"IF(EUMED!$H$4=\"Deutsch\",C475,IF(EUMED!$H$4=\"Nederlands\",D475,IF(EUMED!$H$4=\"Français\",E475)))","v":0}]
[476,null,null,null,null,{"$f":"IF(EUMED!$H$4=\"Deutsch\",C476,IF(EUMED!$H$4=\"Nederlands\",D476,IF(EUMED!$H$4=\"Français\",E476)))","v":0}]
[477,null,null,null,null,{"$f":"IF(EUMED!$H$4=\"Deutsch\",C477,IF(EUMED!$H$4=\"Nederlands\",D477,IF(EUMED!$H$4=\"Français\",E477)))","v":0}]
[478,null,null,null,null,{"$f":"IF(EUMED!$H$4=\"Deutsch\",C478,IF(EUMED!$H$4=\"Nederlands\",D478,IF(EUMED!$H$4=\"Français\",E478)))","v":0}]
[479,null,null,null,null,{"$f":"IF(EUMED!$H$4=\"Deutsch\",C479,IF(EUMED!$H$4=\"Nederlands\",D479,IF(EUMED!$H$4=\"Français\",E479)))","v":0}]
[480,null,null,null,null,{"$f":"IF(EUMED!$H$4=\"Deutsch\",C480,IF(EUMED!$H$4=\"Nederlands\",D480,IF(EUMED!$H$4=\"Français\",E480)))","v":0}]
[481,null,null,null,null,{"$f":"IF(EUMED!$H$4=\"Deutsch\",C481,IF(EUMED!$H$4=\"Nederlands\",D481,IF(EUMED!$H$4=\"Français\",E481)))","v":0}]
[482,null,null,null,null,{"$f":"IF(EUMED!$H$4=\"Deutsch\",C482,IF(EUMED!$H$4=\"Nederlands\",D482,IF(EUMED!$H$4=\"Français\",E482)))","v":0}]
[483,null,null,null,null,{"$f":"IF(EUMED!$H$4=\"Deutsch\",C483,IF(EUMED!$H$4=\"Nederlands\",D483,IF(EUMED!$H$4=\"Français\",E483)))","v":0}]
[484,null,null,null,null,{"$f":"IF(EUMED!$H$4=\"Deutsch\",C484,IF(EUMED!$H$4=\"Nederlands\",D484,IF(EUMED!$H$4=\"Français\",E484)))","v":0}]
[485,null,null,null,null,{"$f":"IF(EUMED!$H$4=\"Deutsch\",C485,IF(EUMED!$H$4=\"Nederlands\",D485,IF(EUMED!$H$4=\"Français\",E485)))","v":0}]
[486,null,null,null,null,{"$f":"IF(EUMED!$H$4=\"Deutsch\",C486,IF(EUMED!$H$4=\"Nederlands\",D486,IF(EUMED!$H$4=\"Français\",E486)))","v":0}]
[487,null,null,null,null,{"$f":"IF(EUMED!$H$4=\"Deutsch\",C487,IF(EUMED!$H$4=\"Nederlands\",D487,IF(EUMED!$H$4=\"Français\",E487)))","v":0}]
[488,null,null,null,null,{"$f":"IF(EUMED!$H$4=\"Deutsch\",C488,IF(EUMED!$H$4=\"Nederlands\",D488,IF(EUMED!$H$4=\"Français\",E488)))","v":0}]
[489,null,null,null,null,{"$f":"IF(EUMED!$H$4=\"Deutsch\",C489,IF(EUMED!$H$4=\"Nederlands\",D489,IF(EUMED!$H$4=\"Français\",E489)))","v":0}]
[490,null,null,null,null,{"$f":"IF(EUMED!$H$4=\"Deutsch\",C490,IF(EUMED!$H$4=\"Nederlands\",D490,IF(EUMED!$H$4=\"Français\",E490)))","v":0}]
[491,null,null,null,null,{"$f":"IF(EUMED!$H$4=\"Deutsch\",C491,IF(EUMED!$H$4=\"Nederlands\",D491,IF(EUMED!$H$4=\"Français\",E491)))","v":0}]
[492,null,null,null,null,{"$f":"IF(EUMED!$H$4=\"Deutsch\",C492,IF(EUMED!$H$4=\"Nederlands\",D492,IF(EUMED!$H$4=\"Français\",E492)))","v":0}]
[493,null,null,null,null,{"$f":"IF(EUMED!$H$4=\"Deutsch\",C493,IF(EUMED!$H$4=\"Nederlands\",D493,IF(EUMED!$H$4=\"Français\",E493)))","v":0}]
[494,null,null,null,null,{"$f":"IF(EUMED!$H$4=\"Deutsch\",C494,IF(EUMED!$H$4=\"Nederlands\",D494,IF(EUMED!$H$4=\"Français\",E494)))","v":0}]
[495,null,null,null,null,{"$f":"IF(EUMED!$H$4=\"Deutsch\",C495,IF(EUMED!$H$4=\"Nederlands\",D495,IF(EUMED!$H$4=\"Français\",E495)))","v":0}]
[496,null,null,null,null,{"$f":"IF(EUMED!$H$4=\"Deutsch\",C496,IF(EUMED!$H$4=\"Nederlands\",D496,IF(EUMED!$H$4=\"Français\",E496)))","v":0}]
[497,null,null,null,null,{"$f":"IF(EUMED!$H$4=\"Deutsch\",C497,IF(EUMED!$H$4=\"Nederlands\",D497,IF(EUMED!$H$4=\"Français\",E497)))","v":0}]
[498,null,null,null,null,{"$f":"IF(EUMED!$H$4=\"Deutsch\",C498,IF(EUMED!$H$4=\"Nederlands\",D498,IF(EUMED!$H$4=\"Français\",E498)))","v":0}]
[499,null,null,null,null,{"$f":"IF(EUMED!$H$4=\"Deutsch\",C499,IF(EUMED!$H$4=\"Nederlands\",D499,IF(EUMED!$H$4=\"Français\",E499)))","v":0}]
[500,null,null,null,null,{"$f":"IF(EUMED!$H$4=\"Deutsch\",C500,IF(EUMED!$H$4=\"Nederlands\",D500,IF(EUMED!$H$4=\"Français\",E500)))","v":0}]
[501,null,null,null,null,{"$f":"IF(EUMED!$H$4=\"Deutsch\",C501,IF(EUMED!$H$4=\"Nederlands\",D501,IF(EUMED!$H$4=\"Français\",E501)))","v":0}]
[502,null,null,null,null,{"$f":"IF(EUMED!$H$4=\"Deutsch\",C502,IF(EUMED!$H$4=\"Nederlands\",D502,IF(EUMED!$H$4=\"Français\",E502)))","v":0}]
[503,null,null,null,null,{"$f":"IF(EUMED!$H$4=\"Deutsch\",C503,IF(EUMED!$H$4=\"Nederlands\",D503,IF(EUMED!$H$4=\"Français\",E503)))","v":0}]
[504,null,null,null,null,{"$f":"IF(EUMED!$H$4=\"Deutsch\",C504,IF(EUMED!$H$4=\"Nederlands\",D504,IF(EUMED!$H$4=\"Français\",E504)))","v":0}]
[505,null,null,null,null,{"$f":"IF(EUMED!$H$4=\"Deutsch\",C505,IF(EUMED!$H$4=\"Nederlands\",D505,IF(EUMED!$H$4=\"Français\",E505)))","v":0}]
[506,null,null,null,null,{"$f":"IF(EUMED!$H$4=\"Deutsch\",C506,IF(EUMED!$H$4=\"Nederlands\",D506,IF(EUMED!$H$4=\"Français\",E506)))","v":0}]
[507,null,null,null,null,{"$f":"IF(EUMED!$H$4=\"Deutsch\",C507,IF(EUMED!$H$4=\"Nederlands\",D507,IF(EUMED!$H$4=\"Français\",E507)))","v":0}]
[508,null,null,null,null,{"$f":"IF(EUMED!$H$4=\"Deutsch\",C508,IF(EUMED!$H$4=\"Nederlands\",D508,IF(EUMED!$H$4=\"Français\",E508)))","v":0}]
[509,null,null,null,null,{"$f":"IF(EUMED!$H$4=\"Deutsch\",C509,IF(EUMED!$H$4=\"Nederlands\",D509,IF(EUMED!$H$4=\"Français\",E509)))","v":0}]
[510,null,null,null,null,{"$f":"IF(EUMED!$H$4=\"Deutsch\",C510,IF(EUMED!$H$4=\"Nederlands\",D510,IF(EUMED!$H$4=\"Français\",E510)))","v":0}]
[511,null,null,null,null,{"$f":"IF(EUMED!$H$4=\"Deutsch\",C511,IF(EUMED!$H$4=\"Nederlands\",D511,IF(EUMED!$H$4=\"Français\",E511)))","v":0}]
[512,null,null,null,null,{"$f":"IF(EUMED!$H$4=\"Deutsch\",C512,IF(EUMED!$H$4=\"Nederlands\",D512,IF(EUMED!$H$4=\"Français\",E512)))","v":0}]
[513,null,null,null,null,{"$f":"IF(EUMED!$H$4=\"Deutsch\",C513,IF(EUMED!$H$4=\"Nederlands\",D513,IF(EUMED!$H$4=\"Français\",E513)))","v":0}]
[514,null,null,null,null,{"$f":"IF(EUMED!$H$4=\"Deutsch\",C514,IF(EUMED!$H$4=\"Nederlands\",D514,IF(EUMED!$H$4=\"Français\",E514)))","v":0}]
[515,null,null,null,null,{"$f":"IF(EUMED!$H$4=\"Deutsch\",C515,IF(EUMED!$H$4=\"Nederlands\",D515,IF(EUMED!$H$4=\"Français\",E515)))","v":0}]
[516,null,null,null,null,{"$f":"IF(EUMED!$H$4=\"Deutsch\",C516,IF(EUMED!$H$4=\"Nederlands\",D516,IF(EUMED!$H$4=\"Français\",E516)))","v":0}]
[517,null,null,null,null,{"$f":"IF(EUMED!$H$4=\"Deutsch\",C517,IF(EUMED!$H$4=\"Nederlands\",D517,IF(EUMED!$H$4=\"Français\",E517)))","v":0}]
[518,null,null,null,null,{"$f":"IF(EUMED!$H$4=\"Deutsch\",C518,IF(EUMED!$H$4=\"Nederlands\",D518,IF(EUMED!$H$4=\"Français\",E518)))","v":0}]
[519,null,null,null,null,{"$f":"IF(EUMED!$H$4=\"Deutsch\",C519,IF(EUMED!$H$4=\"Nederlands\",D519,IF(EUMED!$H$4=\"Français\",E519)))","v":0}]
[520,null,null,null,null,{"$f":"IF(EUMED!$H$4=\"Deutsch\",C520,IF(EUMED!$H$4=\"Nederlands\",D520,IF(EUMED!$H$4=\"Français\",E520)))","v":0}]
[521,null,null,null,null,{"$f":"IF(EUMED!$H$4=\"Deutsch\",C521,IF(EUMED!$H$4=\"Nederlands\",D521,IF(EUMED!$H$4=\"Français\",E521)))","v":0}]
[522,null,null,null,null,{"$f":"IF(EUMED!$H$4=\"Deutsch\",C522,IF(EUMED!$H$4=\"Nederlands\",D522,IF(EUMED!$H$4=\"Français\",E522)))","v":0}]
[523,null,null,null,null,{"$f":"IF(EUMED!$H$4=\"Deutsch\",C523,IF(EUMED!$H$4=\"Nederlands\",D523,IF(EUMED!$H$4=\"Français\",E523)))","v":0}]
[524,null,null,null,null,{"$f":"IF(EUMED!$H$4=\"Deutsch\",C524,IF(EUMED!$H$4=\"Nederlands\",D524,IF(EUMED!$H$4=\"Français\",E524)))","v":0}]
[525,null,null,null,null,{"$f":"IF(EUMED!$H$4=\"Deutsch\",C525,IF(EUMED!$H$4=\"Nederlands\",D525,IF(EUMED!$H$4=\"Français\",E525)))","v":0}]
[526,null,null,null,null,{"$f":"IF(EUMED!$H$4=\"Deutsch\",C526,IF(EUMED!$H$4=\"Nederlands\",D526,IF(EUMED!$H$4=\"Français\",E526)))","v":0}]
[527,null,null,null,null,{"$f":"IF(EUMED!$H$4=\"Deutsch\",C527,IF(EUMED!$H$4=\"Nederlands\",D527,IF(EUMED!$H$4=\"Français\",E527)))","v":0}]
[528,null,null,null,null,{"$f":"IF(EUMED!$H$4=\"Deutsch\",C528,IF(EUMED!$H$4=\"Nederlands\",D528,IF(EUMED!$H$4=\"Français\",E528)))","v":0}]
[529,null,null,null,null,{"$f":"IF(EUMED!$H$4=\"Deutsch\",C529,IF(EUMED!$H$4=\"Nederlands\",D529,IF(EUMED!$H$4=\"Français\",E529)))","v":0}]
[530,null,null,null,null,{"$f":"IF(EUMED!$H$4=\"Deutsch\",C530,IF(EUMED!$H$4=\"Nederlands\",D530,IF(EUMED!$H$4=\"Français\",E530)))","v":0}]
[531,null,null,null,null,{"$f":"IF(EUMED!$H$4=\"Deutsch\",C531,IF(EUMED!$H$4=\"Nederlands\",D531,IF(EUMED!$H$4=\"Français\",E531)))","v":0}]
[532,null,null,null,null,{"$f":"IF(EUMED!$H$4=\"Deutsch\",C532,IF(EUMED!$H$4=\"Nederlands\",D532,IF(EUMED!$H$4=\"Français\",E532)))","v":0}]
[533,null,null,null,null,{"$f":"IF(EUMED!$H$4=\"Deutsch\",C533,IF(EUMED!$H$4=\"Nederlands\",D533,IF(EUMED!$H$4=\"Français\",E533)))","v":0}]
[534,null,null,null,null,{"$f":"IF(EUMED!$H$4=\"Deutsch\",C534,IF(EUMED!$H$4=\"Nederlands\",D534,IF(EUMED!$H$4=\"Français\",E534)))","v":0}]
[535,null,null,null,null,{"$f":"IF(EUMED!$H$4=\"Deutsch\",C535,IF(EUMED!$H$4=\"Nederlands\",D535,IF(EUMED!$H$4=\"Français\",E535)))","v":0}]
[536,null,null,null,null,{"$f":"IF(EUMED!$H$4=\"Deutsch\",C536,IF(EUMED!$H$4=\"Nederlands\",D536,IF(EUMED!$H$4=\"Français\",E536)))","v":0}]
[537,null,null,null,null,{"$f":"IF(EUMED!$H$4=\"Deutsch\",C537,IF(EUMED!$H$4=\"Nederlands\",D537,IF(EUMED!$H$4=\"Français\",E537)))","v":0}]
[538,null,null,null,null,{"$f":"IF(EUMED!$H$4=\"Deutsch\",C538,IF(EUMED!$H$4=\"Nederlands\",D538,IF(EUMED!$H$4=\"Français\",E538)))","v":0}]
[539,null,null,null,null,{"$f":"IF(EUMED!$H$4=\"Deutsch\",C539,IF(EUMED!$H$4=\"Nederlands\",D539,IF(EUMED!$H$4=\"Français\",E539)))","v":0}]
[540,null,null,null,null,{"$f":"IF(EUMED!$H$4=\"Deutsch\",C540,IF(EUMED!$H$4=\"Nederlands\",D540,IF(EUMED!$H$4=\"Français\",E540)))","v":0}]
[541,null,null,null,null,{"$f":"IF(EUMED!$H$4=\"Deutsch\",C541,IF(EUMED!$H$4=\"Nederlands\",D541,IF(EUMED!$H$4=\"Français\",E541)))","v":0}]
[542,null,null,null,null,{"$f":"IF(EUMED!$H$4=\"Deutsch\",C542,IF(EUMED!$H$4=\"Nederlands\",D542,IF(EUMED!$H$4=\"Français\",E542)))","v":0}]
[543,null,null,null,null,{"$f":"IF(EUMED!$H$4=\"Deutsch\",C543,IF(EUMED!$H$4=\"Nederlands\",D543,IF(EUMED!$H$4=\"Français\",E543)))","v":0}]
[544,null,null,null,null,{"$f":"IF(EUMED!$H$4=\"Deutsch\",C544,IF(EUMED!$H$4=\"Nederlands\",D544,IF(EUMED!$H$4=\"Français\",E544)))","v":0}]
[545,null,null,null,null,{"$f":"IF(EUMED!$H$4=\"Deutsch\",C545,IF(EUMED!$H$4=\"Nederlands\",D545,IF(EUMED!$H$4=\"Français\",E545)))","v":0}]
[546,null,null,null,null,{"$f":"IF(EUMED!$H$4=\"Deutsch\",C546,IF(EUMED!$H$4=\"Nederlands\",D546,IF(EUMED!$H$4=\"Français\",E546)))","v":0}]
[547,null,null,null,null,{"$f":"IF(EUMED!$H$4=\"Deutsch\",C547,IF(EUMED!$H$4=\"Nederlands\",D547,IF(EUMED!$H$4=\"Français\",E547)))","v":0}]
[548,null,null,null,null,{"$f":"IF(EUMED!$H$4=\"Deutsch\",C548,IF(EUMED!$H$4=\"Nederlands\",D548,IF(EUMED!$H$4=\"Français\",E548)))","v":0}]
[549,null,null,null,null,{"$f":"IF(EUMED!$H$4=\"Deutsch\",C549,IF(EUMED!$H$4=\"Nederlands\",D549,IF(EUMED!$H$4=\"Français\",E549)))","v":0}]
[550,null,null,null,null,{"$f":"IF(EUMED!$H$4=\"Deutsch\",C550,IF(EUMED!$H$4=\"Nederlands\",D550,IF(EUMED!$H$4=\"Français\",E550)))","v":0}]
[551,null,null,null,null,{"$f":"IF(EUMED!$H$4=\"Deutsch\",C551,IF(EUMED!$H$4=\"Nederlands\",D551,IF(EUMED!$H$4=\"Français\",E551)))","v":0}]
[552,null,null,null,null,{"$f":"IF(EUMED!$H$4=\"Deutsch\",C552,IF(EUMED!$H$4=\"Nederlands\",D552,IF(EUMED!$H$4=\"Français\",E552)))","v":0}]
[553,null,null,null,null,{"$f":"IF(EUMED!$H$4=\"Deutsch\",C553,IF(EUMED!$H$4=\"Nederlands\",D553,IF(EUMED!$H$4=\"Français\",E553)))","v":0}]
[554,null,null,null,null,{"$f":"IF(EUMED!$H$4=\"Deutsch\",C554,IF(EUMED!$H$4=\"Nederlands\",D554,IF(EUMED!$H$4=\"Français\",E554)))","v":0}]
[555,null,null,null,null,{"$f":"IF(EUMED!$H$4=\"Deutsch\",C555,IF(EUMED!$H$4=\"Nederlands\",D555,IF(EUMED!$H$4=\"Français\",E555)))","v":0}]
[556,null,null,null,null,{"$f":"IF(EUMED!$H$4=\"Deutsch\",C556,IF(EUMED!$H$4=\"Nederlands\",D556,IF(EUMED!$H$4=\"Français\",E556)))","v":0}]
[557,null,null,null,null,{"$f":"IF(EUMED!$H$4=\"Deutsch\",C557,IF(EUMED!$H$4=\"Nederlands\",D557,IF(EUMED!$H$4=\"Français\",E557)))","v":0}]
[558,null,null,null,null,{"$f":"IF(EUMED!$H$4=\"Deutsch\",C558,IF(EUMED!$H$4=\"Nederlands\",D558,IF(EUMED!$H$4=\"Français\",E558)))","v":0}]
[559,null,null,null,null,{"$f":"IF(EUMED!$H$4=\"Deutsch\",C559,IF(EUMED!$H$4=\"Nederlands\",D559,IF(EUMED!$H$4=\"Français\",E559)))","v":0}]
[560,null,null,null,null,{"$f":"IF(EUMED!$H$4=\"Deutsch\",C560,IF(EUMED!$H$4=\"Nederlands\",D560,IF(EUMED!$H$4=\"Français\",E560)))","v":0}]
[561,null,null,null,null,{"$f":"IF(EUMED!$H$4=\"Deutsch\",C561,IF(EUMED!$H$4=\"Nederlands\",D561,IF(EUMED!$H$4=\"Français\",E561)))","v":0}]
[562,null,null,null,null,{"$f":"IF(EUMED!$H$4=\"Deutsch\",C562,IF(EUMED!$H$4=\"Nederlands\",D562,IF(EUMED!$H$4=\"Français\",E562)))","v":0}]
[563,null,null,null,null,{"$f":"IF(EUMED!$H$4=\"Deutsch\",C563,IF(EUMED!$H$4=\"Nederlands\",D563,IF(EUMED!$H$4=\"Français\",E563)))","v":0}]
[564,null,null,null,null,{"$f":"IF(EUMED!$H$4=\"Deutsch\",C564,IF(EUMED!$H$4=\"Nederlands\",D564,IF(EUMED!$H$4=\"Français\",E564)))","v":0}]
[565,null,null,null,null,{"$f":"IF(EUMED!$H$4=\"Deutsch\",C565,IF(EUMED!$H$4=\"Nederlands\",D565,IF(EUMED!$H$4=\"Français\",E565)))","v":0}]
[566,null,null,null,null,{"$f":"IF(EUMED!$H$4=\"Deutsch\",C566,IF(EUMED!$H$4=\"Nederlands\",D566,IF(EUMED!$H$4=\"Français\",E566)))","v":0}]
[567,null,null,null,null,{"$f":"IF(EUMED!$H$4=\"Deutsch\",C567,IF(EUMED!$H$4=\"Nederlands\",D567,IF(EUMED!$H$4=\"Français\",E567)))","v":0}]
[568,null,null,null,null,{"$f":"IF(EUMED!$H$4=\"Deutsch\",C568,IF(EUMED!$H$4=\"Nederlands\",D568,IF(EUMED!$H$4=\"Français\",E568)))","v":0}]
[569,null,null,null,null,{"$f":"IF(EUMED!$H$4=\"Deutsch\",C569,IF(EUMED!$H$4=\"Nederlands\",D569,IF(EUMED!$H$4=\"Français\",E569)))","v":0}]
[570,null,null,null,null,{"$f":"IF(EUMED!$H$4=\"Deutsch\",C570,IF(EUMED!$H$4=\"Nederlands\",D570,IF(EUMED!$H$4=\"Français\",E570)))","v":0}]
[571,null,null,null,null,{"$f":"IF(EUMED!$H$4=\"Deutsch\",C571,IF(EUMED!$H$4=\"Nederlands\",D571,IF(EUMED!$H$4=\"Français\",E571)))","v":0}]
[572,null,null,null,null,{"$f":"IF(EUMED!$H$4=\"Deutsch\",C572,IF(EUMED!$H$4=\"Nederlands\",D572,IF(EUMED!$H$4=\"Français\",E572)))","v":0}]
[573,null,null,null,null,{"$f":"IF(EUMED!$H$4=\"Deutsch\",C573,IF(EUMED!$H$4=\"Nederlands\",D573,IF(EUMED!$H$4=\"Français\",E573)))","v":0}]
[574,null,null,null,null,{"$f":"IF(EUMED!$H$4=\"Deutsch\",C574,IF(EUMED!$H$4=\"Nederlands\",D574,IF(EUMED!$H$4=\"Français\",E574)))","v":0}]
[575,null,null,null,null,{"$f":"IF(EUMED!$H$4=\"Deutsch\",C575,IF(EUMED!$H$4=\"Nederlands\",D575,IF(EUMED!$H$4=\"Français\",E575)))","v":0}]
[576,null,null,null,null,{"$f":"IF(EUMED!$H$4=\"Deutsch\",C576,IF(EUMED!$H$4=\"Nederlands\",D576,IF(EUMED!$H$4=\"Français\",E576)))","v":0}]
[577,null,null,null,null,{"$f":"IF(EUMED!$H$4=\"Deutsch\",C577,IF(EUMED!$H$4=\"Nederlands\",D577,IF(EUMED!$H$4=\"Français\",E577)))","v":0}]
[578,null,null,null,null,{"$f":"IF(EUMED!$H$4=\"Deutsch\",C578,IF(EUMED!$H$4=\"Nederlands\",D578,IF(EUMED!$H$4=\"Français\",E578)))","v":0}]
[579,null,null,null,null,{"$f":"IF(EUMED!$H$4=\"Deutsch\",C579,IF(EUMED!$H$4=\"Nederlands\",D579,IF(EUMED!$H$4=\"Français\",E579)))","v":0}]
[580,null,null,null,null,{"$f":"IF(EUMED!$H$4=\"Deutsch\",C580,IF(EUMED!$H$4=\"Nederlands\",D580,IF(EUMED!$H$4=\"Français\",E580)))","v":0}]
[581,null,null,null,null,{"$f":"IF(EUMED!$H$4=\"Deutsch\",C581,IF(EUMED!$H$4=\"Nederlands\",D581,IF(EUMED!$H$4=\"Français\",E581)))","v":0}]
[582,null,null,null,null,{"$f":"IF(EUMED!$H$4=\"Deutsch\",C582,IF(EUMED!$H$4=\"Nederlands\",D582,IF(EUMED!$H$4=\"Français\",E582)))","v":0}]
[583,null,null,null,null,{"$f":"IF(EUMED!$H$4=\"Deutsch\",C583,IF(EUMED!$H$4=\"Nederlands\",D583,IF(EUMED!$H$4=\"Français\",E583)))","v":0}]
[584,null,null,null,null,{"$f":"IF(EUMED!$H$4=\"Deutsch\",C584,IF(EUMED!$H$4=\"Nederlands\",D584,IF(EUMED!$H$4=\"Français\",E584)))","v":0}]
[585,null,null,null,null,{"$f":"IF(EUMED!$H$4=\"Deutsch\",C585,IF(EUMED!$H$4=\"Nederlands\",D585,IF(EUMED!$H$4=\"Français\",E585)))","v":0}]
[586,null,null,null,null,{"$f":"IF(EUMED!$H$4=\"Deutsch\",C586,IF(EUMED!$H$4=\"Nederlands\",D586,IF(EUMED!$H$4=\"Français\",E586)))","v":0}]
[587,null,null,null,null,{"$f":"IF(EUMED!$H$4=\"Deutsch\",C587,IF(EUMED!$H$4=\"Nederlands\",D587,IF(EUMED!$H$4=\"Français\",E587)))","v":0}]
[588,null,null,null,null,{"$f":"IF(EUMED!$H$4=\"Deutsch\",C588,IF(EUMED!$H$4=\"Nederlands\",D588,IF(EUMED!$H$4=\"Français\",E588)))","v":0}]
[589,null,null,null,null,{"$f":"IF(EUMED!$H$4=\"Deutsch\",C589,IF(EUMED!$H$4=\"Nederlands\",D589,IF(EUMED!$H$4=\"Français\",E589)))","v":0}]
[590,null,null,null,null,{"$f":"IF(EUMED!$H$4=\"Deutsch\",C590,IF(EUMED!$H$4=\"Nederlands\",D590,IF(EUMED!$H$4=\"Français\",E590)))","v":0}]
[591,null,null,null,null,{"$f":"IF(EUMED!$H$4=\"Deutsch\",C591,IF(EUMED!$H$4=\"Nederlands\",D591,IF(EUMED!$H$4=\"Français\",E591)))","v":0}]
[592,null,null,null,null,{"$f":"IF(EUMED!$H$4=\"Deutsch\",C592,IF(EUMED!$H$4=\"Nederlands\",D592,IF(EUMED!$H$4=\"Français\",E592)))","v":0}]
[593,null,null,null,null,{"$f":"IF(EUMED!$H$4=\"Deutsch\",C593,IF(EUMED!$H$4=\"Nederlands\",D593,IF(EUMED!$H$4=\"Français\",E593)))","v":0}]
[594,null,null,null,null,{"$f":"IF(EUMED!$H$4=\"Deutsch\",C594,IF(EUMED!$H$4=\"Nederlands\",D594,IF(EUMED!$H$4=\"Français\",E594)))","v":0}]
[595,null,null,null,null,{"$f":"IF(EUMED!$H$4=\"Deutsch\",C595,IF(EUMED!$H$4=\"Nederlands\",D595,IF(EUMED!$H$4=\"Français\",E595)))","v":0}]
[596,null,null,null,null,{"$f":"IF(EUMED!$H$4=\"Deutsch\",C596,IF(EUMED!$H$4=\"Nederlands\",D596,IF(EUMED!$H$4=\"Français\",E596)))","v":0}]
[597,null,null,null,null,{"$f":"IF(EUMED!$H$4=\"Deutsch\",C597,IF(EUMED!$H$4=\"Nederlands\",D597,IF(EUMED!$H$4=\"Français\",E597)))","v":0}]
[598,null,null,null,null,{"$f":"IF(EUMED!$H$4=\"Deutsch\",C598,IF(EUMED!$H$4=\"Nederlands\",D598,IF(EUMED!$H$4=\"Français\",E598)))","v":0}]
[599,null,null,null,null,{"$f":"IF(EUMED!$H$4=\"Deutsch\",C599,IF(EUMED!$H$4=\"Nederlands\",D599,IF(EUMED!$H$4=\"Français\",E599)))","v":0}]
[600,null,null,null,null,{"$f":"IF(EUMED!$H$4=\"Deutsch\",C600,IF(EUMED!$H$4=\"Nederlands\",D600,IF(EUMED!$H$4=\"Français\",E600)))","v":0}]
[601,null,null,null,null,{"$f":"IF(EUMED!$H$4=\"Deutsch\",C601,IF(EUMED!$H$4=\"Nederlands\",D601,IF(EUMED!$H$4=\"Français\",E601)))","v":0}]
[602,null,null,null,null,{"$f":"IF(EUMED!$H$4=\"Deutsch\",C602,IF(EUMED!$H$4=\"Nederlands\",D602,IF(EUMED!$H$4=\"Français\",E602)))","v":0}]
[603,null,null,null,null,{"$f":"IF(EUMED!$H$4=\"Deutsch\",C603,IF(EUMED!$H$4=\"Nederlands\",D603,IF(EUMED!$H$4=\"Français\",E603)))","v":0}]
[604,null,null,null,null,{"$f":"IF(EUMED!$H$4=\"Deutsch\",C604,IF(EUMED!$H$4=\"Nederlands\",D604,IF(EUMED!$H$4=\"Français\",E604)))","v":0}]
[605,null,null,null,null,{"$f":"IF(EUMED!$H$4=\"Deutsch\",C605,IF(EUMED!$H$4=\"Nederlands\",D605,IF(EUMED!$H$4=\"Français\",E605)))","v":0}]
[606,null,null,null,null,{"$f":"IF(EUMED!$H$4=\"Deutsch\",C606,IF(EUMED!$H$4=\"Nederlands\",D606,IF(EUMED!$H$4=\"Français\",E606)))","v":0}]
[607,null,null,null,null,{"$f":"IF(EUMED!$H$4=\"Deutsch\",C607,IF(EUMED!$H$4=\"Nederlands\",D607,IF(EUMED!$H$4=\"Français\",E607)))","v":0}]
[608,null,null,null,null,{"$f":"IF(EUMED!$H$4=\"Deutsch\",C608,IF(EUMED!$H$4=\"Nederlands\",D608,IF(EUMED!$H$4=\"Français\",E608)))","v":0}]
[609,null,null,null,null,{"$f":"IF(EUMED!$H$4=\"Deutsch\",C609,IF(EUMED!$H$4=\"Nederlands\",D609,IF(EUMED!$H$4=\"Français\",E609)))","v":0}]
[610,null,null,null,null,{"$f":"IF(EUMED!$H$4=\"Deutsch\",C610,IF(EUMED!$H$4=\"Nederlands\",D610,IF(EUMED!$H$4=\"Français\",E610)))","v":0}]
[611,null,null,null,null,{"$f":"IF(EUMED!$H$4=\"Deutsch\",C611,IF(EUMED!$H$4=\"Nederlands\",D611,IF(EUMED!$H$4=\"Français\",E611)))","v":0}]
[612,null,null,null,null,{"$f":"IF(EUMED!$H$4=\"Deutsch\",C612,IF(EUMED!$H$4=\"Nederlands\",D612,IF(EUMED!$H$4=\"Français\",E612)))","v":0}]
[613,null,null,null,null,{"$f":"IF(EUMED!$H$4=\"Deutsch\",C613,IF(EUMED!$H$4=\"Nederlands\",D613,IF(EUMED!$H$4=\"Français\",E613)))","v":0}]
[614,null,null,null,null,{"$f":"IF(EUMED!$H$4=\"Deutsch\",C614,IF(EUMED!$H$4=\"Nederlands\",D614,IF(EUMED!$H$4=\"Français\",E614)))","v":0}]
[615,null,null,null,null,{"$f":"IF(EUMED!$H$4=\"Deutsch\",C615,IF(EUMED!$H$4=\"Nederlands\",D615,IF(EUMED!$H$4=\"Français\",E615)))","v":0}]
[616,null,null,null,null,{"$f":"IF(EUMED!$H$4=\"Deutsch\",C616,IF(EUMED!$H$4=\"Nederlands\",D616,IF(EUMED!$H$4=\"Français\",E616)))","v":0}]
[617,null,null,null,null,{"$f":"IF(EUMED!$H$4=\"Deutsch\",C617,IF(EUMED!$H$4=\"Nederlands\",D617,IF(EUMED!$H$4=\"Français\",E617)))","v":0}]
[618,null,null,null,null,{"$f":"IF(EUMED!$H$4=\"Deutsch\",C618,IF(EUMED!$H$4=\"Nederlands\",D618,IF(EUMED!$H$4=\"Français\",E618)))","v":0}]
[619,null,null,null,null,{"$f":"IF(EUMED!$H$4=\"Deutsch\",C619,IF(EUMED!$H$4=\"Nederlands\",D619,IF(EUMED!$H$4=\"Français\",E619)))","v":0}]
[620,null,null,null,null,{"$f":"IF(EUMED!$H$4=\"Deutsch\",C620,IF(EUMED!$H$4=\"Nederlands\",D620,IF(EUMED!$H$4=\"Français\",E620)))","v":0}]
[621,null,null,null,null,{"$f":"IF(EUMED!$H$4=\"Deutsch\",C621,IF(EUMED!$H$4=\"Nederlands\",D621,IF(EUMED!$H$4=\"Français\",E621)))","v":0}]
[622,null,null,null,null,{"$f":"IF(EUMED!$H$4=\"Deutsch\",C622,IF(EUMED!$H$4=\"Nederlands\",D622,IF(EUMED!$H$4=\"Français\",E622)))","v":0}]
[623,null,null,null,null,{"$f":"IF(EUMED!$H$4=\"Deutsch\",C623,IF(EUMED!$H$4=\"Nederlands\",D623,IF(EUMED!$H$4=\"Français\",E623)))","v":0}]
[624,null,null,null,null,{"$f":"IF(EUMED!$H$4=\"Deutsch\",C624,IF(EUMED!$H$4=\"Nederlands\",D624,IF(EUMED!$H$4=\"Français\",E624)))","v":0}]
[625,null,null,null,null,{"$f":"IF(EUMED!$H$4=\"Deutsch\",C625,IF(EUMED!$H$4=\"Nederlands\",D625,IF(EUMED!$H$4=\"Français\",E625)))","v":0}]
[626,null,null,null,null,{"$f":"IF(EUMED!$H$4=\"Deutsch\",C626,IF(EUMED!$H$4=\"Nederlands\",D626,IF(EUMED!$H$4=\"Français\",E626)))","v":0}]
[627,null,null,null,null,{"$f":"IF(EUMED!$H$4=\"Deutsch\",C627,IF(EUMED!$H$4=\"Nederlands\",D627,IF(EUMED!$H$4=\"Français\",E627)))","v":0}]
[628,null,null,null,null,{"$f":"IF(EUMED!$H$4=\"Deutsch\",C628,IF(EUMED!$H$4=\"Nederlands\",D628,IF(EUMED!$H$4=\"Français\",E628)))","v":0}]
[629,null,null,null,null,{"$f":"IF(EUMED!$H$4=\"Deutsch\",C629,IF(EUMED!$H$4=\"Nederlands\",D629,IF(EUMED!$H$4=\"Français\",E629)))","v":0}]
[630,null,null,null,null,{"$f":"IF(EUMED!$H$4=\"Deutsch\",C630,IF(EUMED!$H$4=\"Nederlands\",D630,IF(EUMED!$H$4=\"Français\",E630)))","v":0}]
[631,null,null,null,null,{"$f":"IF(EUMED!$H$4=\"Deutsch\",C631,IF(EUMED!$H$4=\"Nederlands\",D631,IF(EUMED!$H$4=\"Français\",E631)))","v":0}]
[632,null,null,null,null,{"$f":"IF(EUMED!$H$4=\"Deutsch\",C632,IF(EUMED!$H$4=\"Nederlands\",D632,IF(EUMED!$H$4=\"Français\",E632)))","v":0}]
[633,null,null,null,null,{"$f":"IF(EUMED!$H$4=\"Deutsch\",C633,IF(EUMED!$H$4=\"Nederlands\",D633,IF(EUMED!$H$4=\"Français\",E633)))","v":0}]
[634,null,null,null,null,{"$f":"IF(EUMED!$H$4=\"Deutsch\",C634,IF(EUMED!$H$4=\"Nederlands\",D634,IF(EUMED!$H$4=\"Français\",E634)))","v":0}]
[635,null,null,null,null,{"$f":"IF(EUMED!$H$4=\"Deutsch\",C635,IF(EUMED!$H$4=\"Nederlands\",D635,IF(EUMED!$H$4=\"Français\",E635)))","v":0}]
[636,null,null,null,null,{"$f":"IF(EUMED!$H$4=\"Deutsch\",C636,IF(EUMED!$H$4=\"Nederlands\",D636,IF(EUMED!$H$4=\"Français\",E636)))","v":0}]
[637,null,null,null,null,{"$f":"IF(EUMED!$H$4=\"Deutsch\",C637,IF(EUMED!$H$4=\"Nederlands\",D637,IF(EUMED!$H$4=\"Français\",E637)))","v":0}]
[638,null,null,null,null,{"$f":"IF(EUMED!$H$4=\"Deutsch\",C638,IF(EUMED!$H$4=\"Nederlands\",D638,IF(EUMED!$H$4=\"Français\",E638)))","v":0}]
[639,null,null,null,null,{"$f":"IF(EUMED!$H$4=\"Deutsch\",C639,IF(EUMED!$H$4=\"Nederlands\",D639,IF(EUMED!$H$4=\"Français\",E639)))","v":0}]
[640,null,null,null,null,{"$f":"IF(EUMED!$H$4=\"Deutsch\",C640,IF(EUMED!$H$4=\"Nederlands\",D640,IF(EUMED!$H$4=\"Français\",E640)))","v":0}]
[641,null,null,null,null,{"$f":"IF(EUMED!$H$4=\"Deutsch\",C641,IF(EUMED!$H$4=\"Nederlands\",D641,IF(EUMED!$H$4=\"Français\",E641)))","v":0}]
[642,null,null,null,null,{"$f":"IF(EUMED!$H$4=\"Deutsch\",C642,IF(EUMED!$H$4=\"Nederlands\",D642,IF(EUMED!$H$4=\"Français\",E642)))","v":0}]
[643,null,null,null,null,{"$f":"IF(EUMED!$H$4=\"Deutsch\",C643,IF(EUMED!$H$4=\"Nederlands\",D643,IF(EUMED!$H$4=\"Français\",E643)))","v":0}]
[644,null,null,null,null,{"$f":"IF(EUMED!$H$4=\"Deutsch\",C644,IF(EUMED!$H$4=\"Nederlands\",D644,IF(EUMED!$H$4=\"Français\",E644)))","v":0}]
[645,null,null,null,null,{"$f":"IF(EUMED!$H$4=\"Deutsch\",C645,IF(EUMED!$H$4=\"Nederlands\",D645,IF(EUMED!$H$4=\"Français\",E645)))","v":0}]
[646,null,null,null,null,{"$f":"IF(EUMED!$H$4=\"Deutsch\",C646,IF(EUMED!$H$4=\"Nederlands\",D646,IF(EUMED!$H$4=\"Français\",E646)))","v":0}]
[647,null,null,null,null,{"$f":"IF(EUMED!$H$4=\"Deutsch\",C647,IF(EUMED!$H$4=\"Nederlands\",D647,IF(EUMED!$H$4=\"Français\",E647)))","v":0}]
[648,null,null,null,null,{"$f":"IF(EUMED!$H$4=\"Deutsch\",C648,IF(EUMED!$H$4=\"Nederlands\",D648,IF(EUMED!$H$4=\"Français\",E648)))","v":0}]
[649,null,null,null,null,{"$f":"IF(EUMED!$H$4=\"Deutsch\",C649,IF(EUMED!$H$4=\"Nederlands\",D649,IF(EUMED!$H$4=\"Français\",E649)))","v":0}]
[650,null,null,null,null,{"$f":"IF(EUMED!$H$4=\"Deutsch\",C650,IF(EUMED!$H$4=\"Nederlands\",D650,IF(EUMED!$H$4=\"Français\",E650)))","v":0}]
[651,null,null,null,null,{"$f":"IF(EUMED!$H$4=\"Deutsch\",C651,IF(EUMED!$H$4=\"Nederlands\",D651,IF(EUMED!$H$4=\"Français\",E651)))","v":0}]
[652,null,null,null,null,{"$f":"IF(EUMED!$H$4=\"Deutsch\",C652,IF(EUMED!$H$4=\"Nederlands\",D652,IF(EUMED!$H$4=\"Français\",E652)))","v":0}]
[653,null,null,null,null,{"$f":"IF(EUMED!$H$4=\"Deutsch\",C653,IF(EUMED!$H$4=\"Nederlands\",D653,IF(EUMED!$H$4=\"Français\",E653)))","v":0}]
[654,null,null,null,null,{"$f":"IF(EUMED!$H$4=\"Deutsch\",C654,IF(EUMED!$H$4=\"Nederlands\",D654,IF(EUMED!$H$4=\"Français\",E654)))","v":0}]
[655,null,null,null,null,{"$f":"IF(EUMED!$H$4=\"Deutsch\",C655,IF(EUMED!$H$4=\"Nederlands\",D655,IF(EUMED!$H$4=\"Français\",E655)))","v":0}]
[656,null,null,null,null,{"$f":"IF(EUMED!$H$4=\"Deutsch\",C656,IF(EUMED!$H$4=\"Nederlands\",D656,IF(EUMED!$H$4=\"Français\",E656)))","v":0}]
[657,null,null,null,null,{"$f":"IF(EUMED!$H$4=\"Deutsch\",C657,IF(EUMED!$H$4=\"Nederlands\",D657,IF(EUMED!$H$4=\"Français\",E657)))","v":0}]
[658,null,null,null,null,{"$f":"IF(EUMED!$H$4=\"Deutsch\",C658,IF(EUMED!$H$4=\"Nederlands\",D658,IF(EUMED!$H$4=\"Français\",E658)))","v":0}]
[659,null,null,null,null,{"$f":"IF(EUMED!$H$4=\"Deutsch\",C659,IF(EUMED!$H$4=\"Nederlands\",D659,IF(EUMED!$H$4=\"Français\",E659)))","v":0}]
[660,null,null,null,null,{"$f":"IF(EUMED!$H$4=\"Deutsch\",C660,IF(EUMED!$H$4=\"Nederlands\",D660,IF(EUMED!$H$4=\"Français\",E660)))","v":0}]
[661,null,null,null,null,{"$f":"IF(EUMED!$H$4=\"Deutsch\",C661,IF(EUMED!$H$4=\"Nederlands\",D661,IF(EUMED!$H$4=\"Français\",E661)))","v":0}]
[662,null,null,null,null,{"$f":"IF(EUMED!$H$4=\"Deutsch\",C662,IF(EUMED!$H$4=\"Nederlands\",D662,IF(EUMED!$H$4=\"Français\",E662)))","v":0}]
[663,null,null,null,null,{"$f":"IF(EUMED!$H$4=\"Deutsch\",C663,IF(EUMED!$H$4=\"Nederlands\",D663,IF(EUMED!$H$4=\"Français\",E663)))","v":0}]
[664,null,null,null,null,{"$f":"IF(EUMED!$H$4=\"Deutsch\",C664,IF(EUMED!$H$4=\"Nederlands\",D664,IF(EUMED!$H$4=\"Français\",E664)))","v":0}]
[665,null,null,null,null,{"$f":"IF(EUMED!$H$4=\"Deutsch\",C665,IF(EUMED!$H$4=\"Nederlands\",D665,IF(EUMED!$H$4=\"Français\",E665)))","v":0}]
[666,null,null,null,null,{"$f":"IF(EUMED!$H$4=\"Deutsch\",C666,IF(EUMED!$H$4=\"Nederlands\",D666,IF(EUMED!$H$4=\"Français\",E666)))","v":0}]
[667,null,null,null,null,{"$f":"IF(EUMED!$H$4=\"Deutsch\",C667,IF(EUMED!$H$4=\"Nederlands\",D667,IF(EUMED!$H$4=\"Français\",E667)))","v":0}]
[668,null,null,null,null,{"$f":"IF(EUMED!$H$4=\"Deutsch\",C668,IF(EUMED!$H$4=\"Nederlands\",D668,IF(EUMED!$H$4=\"Français\",E668)))","v":0}]
[669,null,null,null,null,{"$f":"IF(EUMED!$H$4=\"Deutsch\",C669,IF(EUMED!$H$4=\"Nederlands\",D669,IF(EUMED!$H$4=\"Français\",E669)))","v":0}]
[670,null,null,null,null,{"$f":"IF(EUMED!$H$4=\"Deutsch\",C670,IF(EUMED!$H$4=\"Nederlands\",D670,IF(EUMED!$H$4=\"Français\",E670)))","v":0}]
[671,null,null,null,null,{"$f":"IF(EUMED!$H$4=\"Deutsch\",C671,IF(EUMED!$H$4=\"Nederlands\",D671,IF(EUMED!$H$4=\"Français\",E671)))","v":0}]
[672,null,null,null,null,{"$f":"IF(EUMED!$H$4=\"Deutsch\",C672,IF(EUMED!$H$4=\"Nederlands\",D672,IF(EUMED!$H$4=\"Français\",E672)))","v":0}]
[673,null,null,null,null,{"$f":"IF(EUMED!$H$4=\"Deutsch\",C673,IF(EUMED!$H$4=\"Nederlands\",D673,IF(EUMED!$H$4=\"Français\",E673)))","v":0}]
[674,null,null,null,null,{"$f":"IF(EUMED!$H$4=\"Deutsch\",C674,IF(EUMED!$H$4=\"Nederlands\",D674,IF(EUMED!$H$4=\"Français\",E674)))","v":0}]
[675,null,null,null,null,{"$f":"IF(EUMED!$H$4=\"Deutsch\",C675,IF(EUMED!$H$4=\"Nederlands\",D675,IF(EUMED!$H$4=\"Français\",E675)))","v":0}]
[676,null,null,null,null,{"$f":"IF(EUMED!$H$4=\"Deutsch\",C676,IF(EUMED!$H$4=\"Nederlands\",D676,IF(EUMED!$H$4=\"Français\",E676)))","v":0}]
[677,null,null,null,null,{"$f":"IF(EUMED!$H$4=\"Deutsch\",C677,IF(EUMED!$H$4=\"Nederlands\",D677,IF(EUMED!$H$4=\"Français\",E677)))","v":0}]
[678,null,null,null,null,{"$f":"IF(EUMED!$H$4=\"Deutsch\",C678,IF(EUMED!$H$4=\"Nederlands\",D678,IF(EUMED!$H$4=\"Français\",E678)))","v":0}]
[679,null,null,null,null,{"$f":"IF(EUMED!$H$4=\"Deutsch\",C679,IF(EUMED!$H$4=\"Nederlands\",D679,IF(EUMED!$H$4=\"Français\",E679)))","v":0}]
[680,null,null,null,null,{"$f":"IF(EUMED!$H$4=\"Deutsch\",C680,IF(EUMED!$H$4=\"Nederlands\",D680,IF(EUMED!$H$4=\"Français\",E680)))","v":0}]
[681,null,null,null,null,{"$f":"IF(EUMED!$H$4=\"Deutsch\",C681,IF(EUMED!$H$4=\"Nederlands\",D681,IF(EUMED!$H$4=\"Français\",E681)))","v":0}]
[682,null,null,null,null,{"$f":"IF(EUMED!$H$4=\"Deutsch\",C682,IF(EUMED!$H$4=\"Nederlands\",D682,IF(EUMED!$H$4=\"Français\",E682)))","v":0}]
[683,null,null,null,null,{"$f":"IF(EUMED!$H$4=\"Deutsch\",C683,IF(EUMED!$H$4=\"Nederlands\",D683,IF(EUMED!$H$4=\"Français\",E683)))","v":0}]
[684,null,null,null,null,{"$f":"IF(EUMED!$H$4=\"Deutsch\",C684,IF(EUMED!$H$4=\"Nederlands\",D684,IF(EUMED!$H$4=\"Français\",E684)))","v":0}]
[685,null,null,null,null,{"$f":"IF(EUMED!$H$4=\"Deutsch\",C685,IF(EUMED!$H$4=\"Nederlands\",D685,IF(EUMED!$H$4=\"Français\",E685)))","v":0}]
[686,null,null,null,null,{"$f":"IF(EUMED!$H$4=\"Deutsch\",C686,IF(EUMED!$H$4=\"Nederlands\",D686,IF(EUMED!$H$4=\"Français\",E686)))","v":0}]
[687,null,null,null,null,{"$f":"IF(EUMED!$H$4=\"Deutsch\",C687,IF(EUMED!$H$4=\"Nederlands\",D687,IF(EUMED!$H$4=\"Français\",E687)))","v":0}]
[688,null,null,null,null,{"$f":"IF(EUMED!$H$4=\"Deutsch\",C688,IF(EUMED!$H$4=\"Nederlands\",D688,IF(EUMED!$H$4=\"Français\",E688)))","v":0}]
[689,null,null,null,null,{"$f":"IF(EUMED!$H$4=\"Deutsch\",C689,IF(EUMED!$H$4=\"Nederlands\",D689,IF(EUMED!$H$4=\"Français\",E689)))","v":0}]
[690,null,null,null,null,{"$f":"IF(EUMED!$H$4=\"Deutsch\",C690,IF(EUMED!$H$4=\"Nederlands\",D690,IF(EUMED!$H$4=\"Français\",E690)))","v":0}]
[691,null,null,null,null,{"$f":"IF(EUMED!$H$4=\"Deutsch\",C691,IF(EUMED!$H$4=\"Nederlands\",D691,IF(EUMED!$H$4=\"Français\",E691)))","v":0}]
[692,null,null,null,null,{"$f":"IF(EUMED!$H$4=\"Deutsch\",C692,IF(EUMED!$H$4=\"Nederlands\",D692,IF(EUMED!$H$4=\"Français\",E692)))","v":0}]
[693,null,null,null,null,{"$f":"IF(EUMED!$H$4=\"Deutsch\",C693,IF(EUMED!$H$4=\"Nederlands\",D693,IF(EUMED!$H$4=\"Français\",E693)))","v":0}]
[694,null,null,null,null,{"$f":"IF(EUMED!$H$4=\"Deutsch\",C694,IF(EUMED!$H$4=\"Nederlands\",D694,IF(EUMED!$H$4=\"Français\",E694)))","v":0}]
[695,null,null,null,null,{"$f":"IF(EUMED!$H$4=\"Deutsch\",C695,IF(EUMED!$H$4=\"Nederlands\",D695,IF(EUMED!$H$4=\"Français\",E695)))","v":0}]
[696,null,null,null,null,{"$f":"IF(EUMED!$H$4=\"Deutsch\",C696,IF(EUMED!$H$4=\"Nederlands\",D696,IF(EUMED!$H$4=\"Français\",E696)))","v":0}]
[697,null,null,null,null,{"$f":"IF(EUMED!$H$4=\"Deutsch\",C697,IF(EUMED!$H$4=\"Nederlands\",D697,IF(EUMED!$H$4=\"Français\",E697)))","v":0}]
[698,null,null,null,null,{"$f":"IF(EUMED!$H$4=\"Deutsch\",C698,IF(EUMED!$H$4=\"Nederlands\",D698,IF(EUMED!$H$4=\"Français\",E698)))","v":0}]
[699,null,null,null,null,{"$f":"IF(EUMED!$H$4=\"Deutsch\",C699,IF(EUMED!$H$4=\"Nederlands\",D699,IF(EUMED!$H$4=\"Français\",E699)))","v":0}]
[700,null,null,null,null,{"$f":"IF(EUMED!$H$4=\"Deutsch\",C700,IF(EUMED!$H$4=\"Nederlands\",D700,IF(EUMED!$H$4=\"Français\",E700)))","v":0}]
[701,null,null,null,null,{"$f":"IF(EUMED!$H$4=\"Deutsch\",C701,IF(EUMED!$H$4=\"Nederlands\",D701,IF(EUMED!$H$4=\"Français\",E701)))","v":0}]
[702,null,null,null,null,{"$f":"IF(EUMED!$H$4=\"Deutsch\",C702,IF(EUMED!$H$4=\"Nederlands\",D702,IF(EUMED!$H$4=\"Français\",E702)))","v":0}]
[703,null,null,null,null,{"$f":"IF(EUMED!$H$4=\"Deutsch\",C703,IF(EUMED!$H$4=\"Nederlands\",D703,IF(EUMED!$H$4=\"Français\",E703)))","v":0}]
[704,null,null,null,null,{"$f":"IF(EUMED!$H$4=\"Deutsch\",C704,IF(EUMED!$H$4=\"Nederlands\",D704,IF(EUMED!$H$4=\"Français\",E704)))","v":0}]
[705,null,null,null,null,{"$f":"IF(EUMED!$H$4=\"Deutsch\",C705,IF(EUMED!$H$4=\"Nederlands\",D705,IF(EUMED!$H$4=\"Français\",E705)))","v":0}]
[706,null,null,null,null,{"$f":"IF(EUMED!$H$4=\"Deutsch\",C706,IF(EUMED!$H$4=\"Nederlands\",D706,IF(EUMED!$H$4=\"Français\",E706)))","v":0}]
[707,null,null,null,null,{"$f":"IF(EUMED!$H$4=\"Deutsch\",C707,IF(EUMED!$H$4=\"Nederlands\",D707,IF(EUMED!$H$4=\"Français\",E707)))","v":0}]
[708,null,null,null,null,{"$f":"IF(EUMED!$H$4=\"Deutsch\",C708,IF(EUMED!$H$4=\"Nederlands\",D708,IF(EUMED!$H$4=\"Français\",E708)))","v":0}]
[709,null,null,null,null,{"$f":"IF(EUMED!$H$4=\"Deutsch\",C709,IF(EUMED!$H$4=\"Nederlands\",D709,IF(EUMED!$H$4=\"Français\",E709)))","v":0}]
[710,null,null,null,null,{"$f":"IF(EUMED!$H$4=\"Deutsch\",C710,IF(EUMED!$H$4=\"Nederlands\",D710,IF(EUMED!$H$4=\"Français\",E710)))","v":0}]
[711,null,null,null,null,{"$f":"IF(EUMED!$H$4=\"Deutsch\",C711,IF(EUMED!$H$4=\"Nederlands\",D711,IF(EUMED!$H$4=\"Français\",E711)))","v":0}]
[712,null,null,null,null,{"$f":"IF(EUMED!$H$4=\"Deutsch\",C712,IF(EUMED!$H$4=\"Nederlands\",D712,IF(EUMED!$H$4=\"Français\",E712)))","v":0}]
[713,null,null,null,null,{"$f":"IF(EUMED!$H$4=\"Deutsch\",C713,IF(EUMED!$H$4=\"Nederlands\",D713,IF(EUMED!$H$4=\"Français\",E713)))","v":0}]
[714,null,null,null,null,{"$f":"IF(EUMED!$H$4=\"Deutsch\",C714,IF(EUMED!$H$4=\"Nederlands\",D714,IF(EUMED!$H$4=\"Français\",E714)))","v":0}]
[715,null,null,null,null,{"$f":"IF(EUMED!$H$4=\"Deutsch\",C715,IF(EUMED!$H$4=\"Nederlands\",D715,IF(EUMED!$H$4=\"Français\",E715)))","v":0}]
[716,null,null,null,null,{"$f":"IF(EUMED!$H$4=\"Deutsch\",C716,IF(EUMED!$H$4=\"Nederlands\",D716,IF(EUMED!$H$4=\"Français\",E716)))","v":0}]
[717,null,null,null,null,{"$f":"IF(EUMED!$H$4=\"Deutsch\",C717,IF(EUMED!$H$4=\"Nederlands\",D717,IF(EUMED!$H$4=\"Français\",E717)))","v":0}]
[718,null,null,null,null,{"$f":"IF(EUMED!$H$4=\"Deutsch\",C718,IF(EUMED!$H$4=\"Nederlands\",D718,IF(EUMED!$H$4=\"Français\",E718)))","v":0}]
[719,null,null,null,null,{"$f":"IF(EUMED!$H$4=\"Deutsch\",C719,IF(EUMED!$H$4=\"Nederlands\",D719,IF(EUMED!$H$4=\"Français\",E719)))","v":0}]
[720,null,null,null,null,{"$f":"IF(EUMED!$H$4=\"Deutsch\",C720,IF(EUMED!$H$4=\"Nederlands\",D720,IF(EUMED!$H$4=\"Français\",E720)))","v":0}]
[721,null,null,null,null,{"$f":"IF(EUMED!$H$4=\"Deutsch\",C721,IF(EUMED!$H$4=\"Nederlands\",D721,IF(EUMED!$H$4=\"Français\",E721)))","v":0}]
[722,null,null,null,null,{"$f":"IF(EUMED!$H$4=\"Deutsch\",C722,IF(EUMED!$H$4=\"Nederlands\",D722,IF(EUMED!$H$4=\"Français\",E722)))","v":0}]
[723,null,null,null,null,{"$f":"IF(EUMED!$H$4=\"Deutsch\",C723,IF(EUMED!$H$4=\"Nederlands\",D723,IF(EUMED!$H$4=\"Français\",E723)))","v":0}]
[724,null,null,null,null,{"$f":"IF(EUMED!$H$4=\"Deutsch\",C724,IF(EUMED!$H$4=\"Nederlands\",D724,IF(EUMED!$H$4=\"Français\",E724)))","v":0}]
[725,null,null,null,null,{"$f":"IF(EUMED!$H$4=\"Deutsch\",C725,IF(EUMED!$H$4=\"Nederlands\",D725,IF(EUMED!$H$4=\"Français\",E725)))","v":0}]
[726,null,null,null,null,{"$f":"IF(EUMED!$H$4=\"Deutsch\",C726,IF(EUMED!$H$4=\"Nederlands\",D726,IF(EUMED!$H$4=\"Français\",E726)))","v":0}]
[727,null,null,null,null,{"$f":"IF(EUMED!$H$4=\"Deutsch\",C727,IF(EUMED!$H$4=\"Nederlands\",D727,IF(EUMED!$H$4=\"Français\",E727)))","v":0}]
[728,null,null,null,null,{"$f":"IF(EUMED!$H$4=\"Deutsch\",C728,IF(EUMED!$H$4=\"Nederlands\",D728,IF(EUMED!$H$4=\"Français\",E728)))","v":0}]
[729,null,null,null,null,{"$f":"IF(EUMED!$H$4=\"Deutsch\",C729,IF(EUMED!$H$4=\"Nederlands\",D729,IF(EUMED!$H$4=\"Français\",E729)))","v":0}]
[730,null,null,null,null,{"$f":"IF(EUMED!$H$4=\"Deutsch\",C730,IF(EUMED!$H$4=\"Nederlands\",D730,IF(EUMED!$H$4=\"Français\",E730)))","v":0}]
[731,null,null,null,null,{"$f":"IF(EUMED!$H$4=\"Deutsch\",C731,IF(EUMED!$H$4=\"Nederlands\",D731,IF(EUMED!$H$4=\"Français\",E731)))","v":0}]
[732,null,null,null,null,{"$f":"IF(EUMED!$H$4=\"Deutsch\",C732,IF(EUMED!$H$4=\"Nederlands\",D732,IF(EUMED!$H$4=\"Français\",E732)))","v":0}]
[733,null,null,null,null,{"$f":"IF(EUMED!$H$4=\"Deutsch\",C733,IF(EUMED!$H$4=\"Nederlands\",D733,IF(EUMED!$H$4=\"Français\",E733)))","v":0}]
[734,null,null,null,null,{"$f":"IF(EUMED!$H$4=\"Deutsch\",C734,IF(EUMED!$H$4=\"Nederlands\",D734,IF(EUMED!$H$4=\"Français\",E734)))","v":0}]
[735,null,null,null,null,{"$f":"IF(EUMED!$H$4=\"Deutsch\",C735,IF(EUMED!$H$4=\"Nederlands\",D735,IF(EUMED!$H$4=\"Français\",E735)))","v":0}]
[736,null,null,null,null,{"$f":"IF(EUMED!$H$4=\"Deutsch\",C736,IF(EUMED!$H$4=\"Nederlands\",D736,IF(EUMED!$H$4=\"Français\",E736)))","v":0}]
[737,null,null,null,null,{"$f":"IF(EUMED!$H$4=\"Deutsch\",C737,IF(EUMED!$H$4=\"Nederlands\",D737,IF(EUMED!$H$4=\"Français\",E737)))","v":0}]
[738,null,null,null,null,{"$f":"IF(EUMED!$H$4=\"Deutsch\",C738,IF(EUMED!$H$4=\"Nederlands\",D738,IF(EUMED!$H$4=\"Français\",E738)))","v":0}]
[739,null,null,null,null,{"$f":"IF(EUMED!$H$4=\"Deutsch\",C739,IF(EUMED!$H$4=\"Nederlands\",D739,IF(EUMED!$H$4=\"Français\",E739)))","v":0}]
[740,null,null,null,null,{"$f":"IF(EUMED!$H$4=\"Deutsch\",C740,IF(EUMED!$H$4=\"Nederlands\",D740,IF(EUMED!$H$4=\"Français\",E740)))","v":0}]
[741,null,null,null,null,{"$f":"IF(EUMED!$H$4=\"Deutsch\",C741,IF(EUMED!$H$4=\"Nederlands\",D741,IF(EUMED!$H$4=\"Français\",E741)))","v":0}]
[742,null,null,null,null,{"$f":"IF(EUMED!$H$4=\"Deutsch\",C742,IF(EUMED!$H$4=\"Nederlands\",D742,IF(EUMED!$H$4=\"Français\",E742)))","v":0}]
[743,null,null,null,null,{"$f":"IF(EUMED!$H$4=\"Deutsch\",C743,IF(EUMED!$H$4=\"Nederlands\",D743,IF(EUMED!$H$4=\"Français\",E743)))","v":0}]
[744,null,null,null,null,{"$f":"IF(EUMED!$H$4=\"Deutsch\",C744,IF(EUMED!$H$4=\"Nederlands\",D744,IF(EUMED!$H$4=\"Français\",E744)))","v":0}]
[745,null,null,null,null,{"$f":"IF(EUMED!$H$4=\"Deutsch\",C745,IF(EUMED!$H$4=\"Nederlands\",D745,IF(EUMED!$H$4=\"Français\",E745)))","v":0}]
[746,null,null,null,null,{"$f":"IF(EUMED!$H$4=\"Deutsch\",C746,IF(EUMED!$H$4=\"Nederlands\",D746,IF(EUMED!$H$4=\"Français\",E746)))","v":0}]
[747,null,null,null,null,{"$f":"IF(EUMED!$H$4=\"Deutsch\",C747,IF(EUMED!$H$4=\"Nederlands\",D747,IF(EUMED!$H$4=\"Français\",E747)))","v":0}]
[748,null,null,null,null,{"$f":"IF(EUMED!$H$4=\"Deutsch\",C748,IF(EUMED!$H$4=\"Nederlands\",D748,IF(EUMED!$H$4=\"Français\",E748)))","v":0}]
[749,null,null,null,null,{"$f":"IF(EUMED!$H$4=\"Deutsch\",C749,IF(EUMED!$H$4=\"Nederlands\",D749,IF(EUMED!$H$4=\"Français\",E749)))","v":0}]
[750,null,null,null,null,{"$f":"IF(EUMED!$H$4=\"Deutsch\",C750,IF(EUMED!$H$4=\"Nederlands\",D750,IF(EUMED!$H$4=\"Français\",E750)))","v":0}]
[751,null,null,null,null,{"$f":"IF(EUMED!$H$4=\"Deutsch\",C751,IF(EUMED!$H$4=\"Nederlands\",D751,IF(EUMED!$H$4=\"Français\",E751)))","v":0}]
[752,null,null,null,null,{"$f":"IF(EUMED!$H$4=\"Deutsch\",C752,IF(EUMED!$H$4=\"Nederlands\",D752,IF(EUMED!$H$4=\"Français\",E752)))","v":0}]
[753,null,null,null,null,{"$f":"IF(EUMED!$H$4=\"Deutsch\",C753,IF(EUMED!$H$4=\"Nederlands\",D753,IF(EUMED!$H$4=\"Français\",E753)))","v":0}]
[754,null,null,null,null,{"$f":"IF(EUMED!$H$4=\"Deutsch\",C754,IF(EUMED!$H$4=\"Nederlands\",D754,IF(EUMED!$H$4=\"Français\",E754)))","v":0}]
[755,null,null,null,null,{"$f":"IF(EUMED!$H$4=\"Deutsch\",C755,IF(EUMED!$H$4=\"Nederlands\",D755,IF(EUMED!$H$4=\"Français\",E755)))","v":0}]
[756,null,null,null,null,{"$f":"IF(EUMED!$H$4=\"Deutsch\",C756,IF(EUMED!$H$4=\"Nederlands\",D756,IF(EUMED!$H$4=\"Français\",E756)))","v":0}]
[757,null,null,null,null,{"$f":"IF(EUMED!$H$4=\"Deutsch\",C757,IF(EUMED!$H$4=\"Nederlands\",D757,IF(EUMED!$H$4=\"Français\",E757)))","v":0}]
[758,null,null,null,null,{"$f":"IF(EUMED!$H$4=\"Deutsch\",C758,IF(EUMED!$H$4=\"Nederlands\",D758,IF(EUMED!$H$4=\"Français\",E758)))","v":0}]
[759,null,null,null,null,{"$f":"IF(EUMED!$H$4=\"Deutsch\",C759,IF(EUMED!$H$4=\"Nederlands\",D759,IF(EUMED!$H$4=\"Français\",E759)))","v":0}]
[760,null,null,null,null,{"$f":"IF(EUMED!$H$4=\"Deutsch\",C760,IF(EUMED!$H$4=\"Nederlands\",D760,IF(EUMED!$H$4=\"Français\",E760)))","v":0}]
[761,null,null,null,null,{"$f":"IF(EUMED!$H$4=\"Deutsch\",C761,IF(EUMED!$H$4=\"Nederlands\",D761,IF(EUMED!$H$4=\"Français\",E761)))","v":0}]
[762,null,null,null,null,{"$f":"IF(EUMED!$H$4=\"Deutsch\",C762,IF(EUMED!$H$4=\"Nederlands\",D762,IF(EUMED!$H$4=\"Français\",E762)))","v":0}]
[763,null,null,null,null,{"$f":"IF(EUMED!$H$4=\"Deutsch\",C763,IF(EUMED!$H$4=\"Nederlands\",D763,IF(EUMED!$H$4=\"Français\",E763)))","v":0}]
[764,null,null,null,null,{"$f":"IF(EUMED!$H$4=\"Deutsch\",C764,IF(EUMED!$H$4=\"Nederlands\",D764,IF(EUMED!$H$4=\"Français\",E764)))","v":0}]
[765,null,null,null,null,{"$f":"IF(EUMED!$H$4=\"Deutsch\",C765,IF(EUMED!$H$4=\"Nederlands\",D765,IF(EUMED!$H$4=\"Français\",E765)))","v":0}]
[766,null,null,null,null,{"$f":"IF(EUMED!$H$4=\"Deutsch\",C766,IF(EUMED!$H$4=\"Nederlands\",D766,IF(EUMED!$H$4=\"Français\",E766)))","v":0}]
[767,null,null,null,null,{"$f":"IF(EUMED!$H$4=\"Deutsch\",C767,IF(EUMED!$H$4=\"Nederlands\",D767,IF(EUMED!$H$4=\"Français\",E767)))","v":0}]
[768,null,null,null,null,{"$f":"IF(EUMED!$H$4=\"Deutsch\",C768,IF(EUMED!$H$4=\"Nederlands\",D768,IF(EUMED!$H$4=\"Français\",E768)))","v":0}]
[769,null,null,null,null,{"$f":"IF(EUMED!$H$4=\"Deutsch\",C769,IF(EUMED!$H$4=\"Nederlands\",D769,IF(EUMED!$H$4=\"Français\",E769)))","v":0}]
[770,null,null,null,null,{"$f":"IF(EUMED!$H$4=\"Deutsch\",C770,IF(EUMED!$H$4=\"Nederlands\",D770,IF(EUMED!$H$4=\"Français\",E770)))","v":0}]
[771,null,null,null,null,{"$f":"IF(EUMED!$H$4=\"Deutsch\",C771,IF(EUMED!$H$4=\"Nederlands\",D771,IF(EUMED!$H$4=\"Français\",E771)))","v":0}]
[772,null,null,null,null,{"$f":"IF(EUMED!$H$4=\"Deutsch\",C772,IF(EUMED!$H$4=\"Nederlands\",D772,IF(EUMED!$H$4=\"Français\",E772)))","v":0}]
[773,null,null,null,null,{"$f":"IF(EUMED!$H$4=\"Deutsch\",C773,IF(EUMED!$H$4=\"Nederlands\",D773,IF(EUMED!$H$4=\"Français\",E773)))","v":0}]
[774,null,null,null,null,{"$f":"IF(EUMED!$H$4=\"Deutsch\",C774,IF(EUMED!$H$4=\"Nederlands\",D774,IF(EUMED!$H$4=\"Français\",E774)))","v":0}]
[775,null,null,null,null,{"$f":"IF(EUMED!$H$4=\"Deutsch\",C775,IF(EUMED!$H$4=\"Nederlands\",D775,IF(EUMED!$H$4=\"Français\",E775)))","v":0}]
[776,null,null,null,null,{"$f":"IF(EUMED!$H$4=\"Deutsch\",C776,IF(EUMED!$H$4=\"Nederlands\",D776,IF(EUMED!$H$4=\"Français\",E776)))","v":0}]
[777,null,null,null,null,{"$f":"IF(EUMED!$H$4=\"Deutsch\",C777,IF(EUMED!$H$4=\"Nederlands\",D777,IF(EUMED!$H$4=\"Français\",E777)))","v":0}]
[778,null,null,null,null,{"$f":"IF(EUMED!$H$4=\"Deutsch\",C778,IF(EUMED!$H$4=\"Nederlands\",D778,IF(EUMED!$H$4=\"Français\",E778)))","v":0}]
[779,null,null,null,null,{"$f":"IF(EUMED!$H$4=\"Deutsch\",C779,IF(EUMED!$H$4=\"Nederlands\",D779,IF(EUMED!$H$4=\"Français\",E779)))","v":0}]
[780,null,null,null,null,{"$f":"IF(EUMED!$H$4=\"Deutsch\",C780,IF(EUMED!$H$4=\"Nederlands\",D780,IF(EUMED!$H$4=\"Français\",E780)))","v":0}]
[781,null,null,null,null,{"$f":"IF(EUMED!$H$4=\"Deutsch\",C781,IF(EUMED!$H$4=\"Nederlands\",D781,IF(EUMED!$H$4=\"Français\",E781)))","v":0}]
[782,null,null,null,null,{"$f":"IF(EUMED!$H$4=\"Deutsch\",C782,IF(EUMED!$H$4=\"Nederlands\",D782,IF(EUMED!$H$4=\"Français\",E782)))","v":0}]
[783,null,null,null,null,{"$f":"IF(EUMED!$H$4=\"Deutsch\",C783,IF(EUMED!$H$4=\"Nederlands\",D783,IF(EUMED!$H$4=\"Français\",E783)))","v":0}]
[784,null,null,null,null,{"$f":"IF(EUMED!$H$4=\"Deutsch\",C784,IF(EUMED!$H$4=\"Nederlands\",D784,IF(EUMED!$H$4=\"Français\",E784)))","v":0}]
[785,null,null,null,null,{"$f":"IF(EUMED!$H$4=\"Deutsch\",C785,IF(EUMED!$H$4=\"Nederlands\",D785,IF(EUMED!$H$4=\"Français\",E785)))","v":0}]
[786,null,null,null,null,{"$f":"IF(EUMED!$H$4=\"Deutsch\",C786,IF(EUMED!$H$4=\"Nederlands\",D786,IF(EUMED!$H$4=\"Français\",E786)))","v":0}]
[787,null,null,null,null,{"$f":"IF(EUMED!$H$4=\"Deutsch\",C787,IF(EUMED!$H$4=\"Nederlands\",D787,IF(EUMED!$H$4=\"Français\",E787)))","v":0}]
[788,null,null,null,null,{"$f":"IF(EUMED!$H$4=\"Deutsch\",C788,IF(EUMED!$H$4=\"Nederlands\",D788,IF(EUMED!$H$4=\"Français\",E788)))","v":0}]
[789,null,null,null,null,{"$f":"IF(EUMED!$H$4=\"Deutsch\",C789,IF(EUMED!$H$4=\"Nederlands\",D789,IF(EUMED!$H$4=\"Français\",E789)))","v":0}]
[790,null,null,null,null,{"$f":"IF(EUMED!$H$4=\"Deutsch\",C790,IF(EUMED!$H$4=\"Nederlands\",D790,IF(EUMED!$H$4=\"Français\",E790)))","v":0}]
[791,null,null,null,null,{"$f":"IF(EUMED!$H$4=\"Deutsch\",C791,IF(EUMED!$H$4=\"Nederlands\",D791,IF(EUMED!$H$4=\"Français\",E791)))","v":0}]
[792,null,null,null,null,{"$f":"IF(EUMED!$H$4=\"Deutsch\",C792,IF(EUMED!$H$4=\"Nederlands\",D792,IF(EUMED!$H$4=\"Français\",E792)))","v":0}]
[793,null,null,null,null,{"$f":"IF(EUMED!$H$4=\"Deutsch\",C793,IF(EUMED!$H$4=\"Nederlands\",D793,IF(EUMED!$H$4=\"Français\",E793)))","v":0}]
[794,null,null,null,null,{"$f":"IF(EUMED!$H$4=\"Deutsch\",C794,IF(EUMED!$H$4=\"Nederlands\",D794,IF(EUMED!$H$4=\"Français\",E794)))","v":0}]
[795,null,null,null,null,{"$f":"IF(EUMED!$H$4=\"Deutsch\",C795,IF(EUMED!$H$4=\"Nederlands\",D795,IF(EUMED!$H$4=\"Français\",E795)))","v":0}]
[796,null,null,null,null,{"$f":"IF(EUMED!$H$4=\"Deutsch\",C796,IF(EUMED!$H$4=\"Nederlands\",D796,IF(EUMED!$H$4=\"Français\",E796)))","v":0}]
[797,null,null,null,null,{"$f":"IF(EUMED!$H$4=\"Deutsch\",C797,IF(EUMED!$H$4=\"Nederlands\",D797,IF(EUMED!$H$4=\"Français\",E797)))","v":0}]
[798,null,null,null,null,{"$f":"IF(EUMED!$H$4=\"Deutsch\",C798,IF(EUMED!$H$4=\"Nederlands\",D798,IF(EUMED!$H$4=\"Français\",E798)))","v":0}]
[799,null,null,null,null,{"$f":"IF(EUMED!$H$4=\"Deutsch\",C799,IF(EUMED!$H$4=\"Nederlands\",D799,IF(EUMED!$H$4=\"Français\",E799)))","v":0}]
[800,null,null,null,null,{"$f":"IF(EUMED!$H$4=\"Deutsch\",C800,IF(EUMED!$H$4=\"Nederlands\",D800,IF(EUMED!$H$4=\"Français\",E800)))","v":0}]
[801,null,null,null,null,{"$f":"IF(EUMED!$H$4=\"Deutsch\",C801,IF(EUMED!$H$4=\"Nederlands\",D801,IF(EUMED!$H$4=\"Français\",E801)))","v":0}]
[802,null,null,null,null,{"$f":"IF(EUMED!$H$4=\"Deutsch\",C802,IF(EUMED!$H$4=\"Nederlands\",D802,IF(EUMED!$H$4=\"Français\",E802)))","v":0}]
[803,null,null,null,null,{"$f":"IF(EUMED!$H$4=\"Deutsch\",C803,IF(EUMED!$H$4=\"Nederlands\",D803,IF(EUMED!$H$4=\"Français\",E803)))","v":0}]
[804,null,null,null,null,{"$f":"IF(EUMED!$H$4=\"Deutsch\",C804,IF(EUMED!$H$4=\"Nederlands\",D804,IF(EUMED!$H$4=\"Français\",E804)))","v":0}]
[805,null,null,null,null,{"$f":"IF(EUMED!$H$4=\"Deutsch\",C805,IF(EUMED!$H$4=\"Nederlands\",D805,IF(EUMED!$H$4=\"Français\",E805)))","v":0}]
[806,null,null,null,null,{"$f":"IF(EUMED!$H$4=\"Deutsch\",C806,IF(EUMED!$H$4=\"Nederlands\",D806,IF(EUMED!$H$4=\"Français\",E806)))","v":0}]
[807,null,null,null,null,{"$f":"IF(EUMED!$H$4=\"Deutsch\",C807,IF(EUMED!$H$4=\"Nederlands\",D807,IF(EUMED!$H$4=\"Français\",E807)))","v":0}]
[808,null,null,null,null,{"$f":"IF(EUMED!$H$4=\"Deutsch\",C808,IF(EUMED!$H$4=\"Nederlands\",D808,IF(EUMED!$H$4=\"Français\",E808)))","v":0}]
[809,null,null,null,null,{"$f":"IF(EUMED!$H$4=\"Deutsch\",C809,IF(EUMED!$H$4=\"Nederlands\",D809,IF(EUMED!$H$4=\"Français\",E809)))","v":0}]
[810,null,null,null,null,{"$f":"IF(EUMED!$H$4=\"Deutsch\",C810,IF(EUMED!$H$4=\"Nederlands\",D810,IF(EUMED!$H$4=\"Français\",E810)))","v":0}]
[811,null,null,null,null,{"$f":"IF(EUMED!$H$4=\"Deutsch\",C811,IF(EUMED!$H$4=\"Nederlands\",D811,IF(EUMED!$H$4=\"Français\",E811)))","v":0}]
[812,null,null,null,null,{"$f":"IF(EUMED!$H$4=\"Deutsch\",C812,IF(EUMED!$H$4=\"Nederlands\",D812,IF(EUMED!$H$4=\"Français\",E812)))","v":0}]
[813,null,null,null,null,{"$f":"IF(EUMED!$H$4=\"Deutsch\",C813,IF(EUMED!$H$4=\"Nederlands\",D813,IF(EUMED!$H$4=\"Français\",E813)))","v":0}]
[814,null,null,null,null,{"$f":"IF(EUMED!$H$4=\"Deutsch\",C814,IF(EUMED!$H$4=\"Nederlands\",D814,IF(EUMED!$H$4=\"Français\",E814)))","v":0}]
[815,null,null,null,null,{"$f":"IF(EUMED!$H$4=\"Deutsch\",C815,IF(EUMED!$H$4=\"Nederlands\",D815,IF(EUMED!$H$4=\"Français\",E815)))","v":0}]
[816,null,null,null,null,{"$f":"IF(EUMED!$H$4=\"Deutsch\",C816,IF(EUMED!$H$4=\"Nederlands\",D816,IF(EUMED!$H$4=\"Français\",E816)))","v":0}]
[817,null,null,null,null,{"$f":"IF(EUMED!$H$4=\"Deutsch\",C817,IF(EUMED!$H$4=\"Nederlands\",D817,IF(EUMED!$H$4=\"Français\",E817)))","v":0}]
[818,null,null,null,null,{"$f":"IF(EUMED!$H$4=\"Deutsch\",C818,IF(EUMED!$H$4=\"Nederlands\",D818,IF(EUMED!$H$4=\"Français\",E818)))","v":0}]
[819,null,null,null,null,{"$f":"IF(EUMED!$H$4=\"Deutsch\",C819,IF(EUMED!$H$4=\"Nederlands\",D819,IF(EUMED!$H$4=\"Français\",E819)))","v":0}]
[820,null,null,null,null,{"$f":"IF(EUMED!$H$4=\"Deutsch\",C820,IF(EUMED!$H$4=\"Nederlands\",D820,IF(EUMED!$H$4=\"Français\",E820)))","v":0}]
[821,null,null,null,null,{"$f":"IF(EUMED!$H$4=\"Deutsch\",C821,IF(EUMED!$H$4=\"Nederlands\",D821,IF(EUMED!$H$4=\"Français\",E821)))","v":0}]
[822,null,null,null,null,{"$f":"IF(EUMED!$H$4=\"Deutsch\",C822,IF(EUMED!$H$4=\"Nederlands\",D822,IF(EUMED!$H$4=\"Français\",E822)))","v":0}]
[823,null,null,null,null,{"$f":"IF(EUMED!$H$4=\"Deutsch\",C823,IF(EUMED!$H$4=\"Nederlands\",D823,IF(EUMED!$H$4=\"Français\",E823)))","v":0}]
[824,null,null,null,null,{"$f":"IF(EUMED!$H$4=\"Deutsch\",C824,IF(EUMED!$H$4=\"Nederlands\",D824,IF(EUMED!$H$4=\"Français\",E824)))","v":0}]
[825,null,null,null,null,{"$f":"IF(EUMED!$H$4=\"Deutsch\",C825,IF(EUMED!$H$4=\"Nederlands\",D825,IF(EUMED!$H$4=\"Français\",E825)))","v":0}]
[826,null,null,null,null,{"$f":"IF(EUMED!$H$4=\"Deutsch\",C826,IF(EUMED!$H$4=\"Nederlands\",D826,IF(EUMED!$H$4=\"Français\",E826)))","v":0}]
[827,null,null,null,null,{"$f":"IF(EUMED!$H$4=\"Deutsch\",C827,IF(EUMED!$H$4=\"Nederlands\",D827,IF(EUMED!$H$4=\"Français\",E827)))","v":0}]
[828,null,null,null,null,{"$f":"IF(EUMED!$H$4=\"Deutsch\",C828,IF(EUMED!$H$4=\"Nederlands\",D828,IF(EUMED!$H$4=\"Français\",E828)))","v":0}]
[829,null,null,null,null,{"$f":"IF(EUMED!$H$4=\"Deutsch\",C829,IF(EUMED!$H$4=\"Nederlands\",D829,IF(EUMED!$H$4=\"Français\",E829)))","v":0}]
[830,null,null,null,null,{"$f":"IF(EUMED!$H$4=\"Deutsch\",C830,IF(EUMED!$H$4=\"Nederlands\",D830,IF(EUMED!$H$4=\"Français\",E830)))","v":0}]
[831,null,null,null,null,{"$f":"IF(EUMED!$H$4=\"Deutsch\",C831,IF(EUMED!$H$4=\"Nederlands\",D831,IF(EUMED!$H$4=\"Français\",E831)))","v":0}]
[832,null,null,null,null,{"$f":"IF(EUMED!$H$4=\"Deutsch\",C832,IF(EUMED!$H$4=\"Nederlands\",D832,IF(EUMED!$H$4=\"Français\",E832)))","v":0}]
[833,null,null,null,null,{"$f":"IF(EUMED!$H$4=\"Deutsch\",C833,IF(EUMED!$H$4=\"Nederlands\",D833,IF(EUMED!$H$4=\"Français\",E833)))","v":0}]
[834,null,null,null,null,{"$f":"IF(EUMED!$H$4=\"Deutsch\",C834,IF(EUMED!$H$4=\"Nederlands\",D834,IF(EUMED!$H$4=\"Français\",E834)))","v":0}]
[835,null,null,null,null,{"$f":"IF(EUMED!$H$4=\"Deutsch\",C835,IF(EUMED!$H$4=\"Nederlands\",D835,IF(EUMED!$H$4=\"Français\",E835)))","v":0}]
[836,null,null,null,null,{"$f":"IF(EUMED!$H$4=\"Deutsch\",C836,IF(EUMED!$H$4=\"Nederlands\",D836,IF(EUMED!$H$4=\"Français\",E836)))","v":0}]
[837,null,null,null,null,{"$f":"IF(EUMED!$H$4=\"Deutsch\",C837,IF(EUMED!$H$4=\"Nederlands\",D837,IF(EUMED!$H$4=\"Français\",E837)))","v":0}]
[838,null,null,null,null,{"$f":"IF(EUMED!$H$4=\"Deutsch\",C838,IF(EUMED!$H$4=\"Nederlands\",D838,IF(EUMED!$H$4=\"Français\",E838)))","v":0}]
[839,null,null,null,null,{"$f":"IF(EUMED!$H$4=\"Deutsch\",C839,IF(EUMED!$H$4=\"Nederlands\",D839,IF(EUMED!$H$4=\"Français\",E839)))","v":0}]
[840,null,null,null,null,{"$f":"IF(EUMED!$H$4=\"Deutsch\",C840,IF(EUMED!$H$4=\"Nederlands\",D840,IF(EUMED!$H$4=\"Français\",E840)))","v":0}]
[841,null,null,null,null,{"$f":"IF(EUMED!$H$4=\"Deutsch\",C841,IF(EUMED!$H$4=\"Nederlands\",D841,IF(EUMED!$H$4=\"Français\",E841)))","v":0}]
[842,null,null,null,null,{"$f":"IF(EUMED!$H$4=\"Deutsch\",C842,IF(EUMED!$H$4=\"Nederlands\",D842,IF(EUMED!$H$4=\"Français\",E842)))","v":0}]
[843,null,null,null,null,{"$f":"IF(EUMED!$H$4=\"Deutsch\",C843,IF(EUMED!$H$4=\"Nederlands\",D843,IF(EUMED!$H$4=\"Français\",E843)))","v":0}]
[844,null,null,null,null,{"$f":"IF(EUMED!$H$4=\"Deutsch\",C844,IF(EUMED!$H$4=\"Nederlands\",D844,IF(EUMED!$H$4=\"Français\",E844)))","v":0}]
[845,null,null,null,null,{"$f":"IF(EUMED!$H$4=\"Deutsch\",C845,IF(EUMED!$H$4=\"Nederlands\",D845,IF(EUMED!$H$4=\"Français\",E845)))","v":0}]
[846,null,null,null,null,{"$f":"IF(EUMED!$H$4=\"Deutsch\",C846,IF(EUMED!$H$4=\"Nederlands\",D846,IF(EUMED!$H$4=\"Français\",E846)))","v":0}]
[847,null,null,null,null,{"$f":"IF(EUMED!$H$4=\"Deutsch\",C847,IF(EUMED!$H$4=\"Nederlands\",D847,IF(EUMED!$H$4=\"Français\",E847)))","v":0}]
[848,null,null,null,null,{"$f":"IF(EUMED!$H$4=\"Deutsch\",C848,IF(EUMED!$H$4=\"Nederlands\",D848,IF(EUMED!$H$4=\"Français\",E848)))","v":0}]
[849,null,null,null,null,{"$f":"IF(EUMED!$H$4=\"Deutsch\",C849,IF(EUMED!$H$4=\"Nederlands\",D849,IF(EUMED!$H$4=\"Français\",E849)))","v":0}]
[850,null,null,null,null,{"$f":"IF(EUMED!$H$4=\"Deutsch\",C850,IF(EUMED!$H$4=\"Nederlands\",D850,IF(EUMED!$H$4=\"Français\",E850)))","v":0}]
[851,null,null,null,null,{"$f":"IF(EUMED!$H$4=\"Deutsch\",C851,IF(EUMED!$H$4=\"Nederlands\",D851,IF(EUMED!$H$4=\"Français\",E851)))","v":0}]
[852,null,null,null,null,{"$f":"IF(EUMED!$H$4=\"Deutsch\",C852,IF(EUMED!$H$4=\"Nederlands\",D852,IF(EUMED!$H$4=\"Français\",E852)))","v":0}]
[853,null,null,null,null,{"$f":"IF(EUMED!$H$4=\"Deutsch\",C853,IF(EUMED!$H$4=\"Nederlands\",D853,IF(EUMED!$H$4=\"Français\",E853)))","v":0}]
[854,null,null,null,null,{"$f":"IF(EUMED!$H$4=\"Deutsch\",C854,IF(EUMED!$H$4=\"Nederlands\",D854,IF(EUMED!$H$4=\"Français\",E854)))","v":0}]
[855,null,null,null,null,{"$f":"IF(EUMED!$H$4=\"Deutsch\",C855,IF(EUMED!$H$4=\"Nederlands\",D855,IF(EUMED!$H$4=\"Français\",E855)))","v":0}]
[856,null,null,null,null,{"$f":"IF(EUMED!$H$4=\"Deutsch\",C856,IF(EUMED!$H$4=\"Nederlands\",D856,IF(EUMED!$H$4=\"Français\",E856)))","v":0}]
[857,null,null,null,null,{"$f":"IF(EUMED!$H$4=\"Deutsch\",C857,IF(EUMED!$H$4=\"Nederlands\",D857,IF(EUMED!$H$4=\"Français\",E857)))","v":0}]
[858,null,null,null,null,{"$f":"IF(EUMED!$H$4=\"Deutsch\",C858,IF(EUMED!$H$4=\"Nederlands\",D858,IF(EUMED!$H$4=\"Français\",E858)))","v":0}]
[859,null,null,null,null,{"$f":"IF(EUMED!$H$4=\"Deutsch\",C859,IF(EUMED!$H$4=\"Nederlands\",D859,IF(EUMED!$H$4=\"Français\",E859)))","v":0}]
[860,null,null,null,null,{"$f":"IF(EUMED!$H$4=\"Deutsch\",C860,IF(EUMED!$H$4=\"Nederlands\",D860,IF(EUMED!$H$4=\"Français\",E860)))","v":0}]
[861,null,null,null,null,{"$f":"IF(EUMED!$H$4=\"Deutsch\",C861,IF(EUMED!$H$4=\"Nederlands\",D861,IF(EUMED!$H$4=\"Français\",E861)))","v":0}]
[862,null,null,null,null,{"$f":"IF(EUMED!$H$4=\"Deutsch\",C862,IF(EUMED!$H$4=\"Nederlands\",D862,IF(EUMED!$H$4=\"Français\",E862)))","v":0}]
[863,null,null,null,null,{"$f":"IF(EUMED!$H$4=\"Deutsch\",C863,IF(EUMED!$H$4=\"Nederlands\",D863,IF(EUMED!$H$4=\"Français\",E863)))","v":0}]
[864,null,null,null,null,{"$f":"IF(EUMED!$H$4=\"Deutsch\",C864,IF(EUMED!$H$4=\"Nederlands\",D864,IF(EUMED!$H$4=\"Français\",E864)))","v":0}]
[865,null,null,null,null,{"$f":"IF(EUMED!$H$4=\"Deutsch\",C865,IF(EUMED!$H$4=\"Nederlands\",D865,IF(EUMED!$H$4=\"Français\",E865)))","v":0}]
[866,null,null,null,null,{"$f":"IF(EUMED!$H$4=\"Deutsch\",C866,IF(EUMED!$H$4=\"Nederlands\",D866,IF(EUMED!$H$4=\"Français\",E866)))","v":0}]
[867,null,null,null,null,{"$f":"IF(EUMED!$H$4=\"Deutsch\",C867,IF(EUMED!$H$4=\"Nederlands\",D867,IF(EUMED!$H$4=\"Français\",E867)))","v":0}]
[868,null,null,null,null,{"$f":"IF(EUMED!$H$4=\"Deutsch\",C868,IF(EUMED!$H$4=\"Nederlands\",D868,IF(EUMED!$H$4=\"Français\",E868)))","v":0}]
[869,null,null,null,null,{"$f":"IF(EUMED!$H$4=\"Deutsch\",C869,IF(EUMED!$H$4=\"Nederlands\",D869,IF(EUMED!$H$4=\"Français\",E869)))","v":0}]
[870,null,null,null,null,{"$f":"IF(EUMED!$H$4=\"Deutsch\",C870,IF(EUMED!$H$4=\"Nederlands\",D870,IF(EUMED!$H$4=\"Français\",E870)))","v":0}]
[871,null,null,null,null,{"$f":"IF(EUMED!$H$4=\"Deutsch\",C871,IF(EUMED!$H$4=\"Nederlands\",D871,IF(EUMED!$H$4=\"Français\",E871)))","v":0}]
[872,null,null,null,null,{"$f":"IF(EUMED!$H$4=\"Deutsch\",C872,IF(EUMED!$H$4=\"Nederlands\",D872,IF(EUMED!$H$4=\"Français\",E872)))","v":0}]
[873,null,null,null,null,{"$f":"IF(EUMED!$H$4=\"Deutsch\",C873,IF(EUMED!$H$4=\"Nederlands\",D873,IF(EUMED!$H$4=\"Français\",E873)))","v":0}]
[874,null,null,null,null,{"$f":"IF(EUMED!$H$4=\"Deutsch\",C874,IF(EUMED!$H$4=\"Nederlands\",D874,IF(EUMED!$H$4=\"Français\",E874)))","v":0}]
[875,null,null,null,null,{"$f":"IF(EUMED!$H$4=\"Deutsch\",C875,IF(EUMED!$H$4=\"Nederlands\",D875,IF(EUMED!$H$4=\"Français\",E875)))","v":0}]
[876,null,null,null,null,{"$f":"IF(EUMED!$H$4=\"Deutsch\",C876,IF(EUMED!$H$4=\"Nederlands\",D876,IF(EUMED!$H$4=\"Français\",E876)))","v":0}]
[877,null,null,null,null,{"$f":"IF(EUMED!$H$4=\"Deutsch\",C877,IF(EUMED!$H$4=\"Nederlands\",D877,IF(EUMED!$H$4=\"Français\",E877)))","v":0}]
[878,null,null,null,null,{"$f":"IF(EUMED!$H$4=\"Deutsch\",C878,IF(EUMED!$H$4=\"Nederlands\",D878,IF(EUMED!$H$4=\"Français\",E878)))","v":0}]
[879,null,null,null,null,{"$f":"IF(EUMED!$H$4=\"Deutsch\",C879,IF(EUMED!$H$4=\"Nederlands\",D879,IF(EUMED!$H$4=\"Français\",E879)))","v":0}]
[880,null,null,null,null,{"$f":"IF(EUMED!$H$4=\"Deutsch\",C880,IF(EUMED!$H$4=\"Nederlands\",D880,IF(EUMED!$H$4=\"Français\",E880)))","v":0}]
[881,null,null,null,null,{"$f":"IF(EUMED!$H$4=\"Deutsch\",C881,IF(EUMED!$H$4=\"Nederlands\",D881,IF(EUMED!$H$4=\"Français\",E881)))","v":0}]
[882,null,null,null,null,{"$f":"IF(EUMED!$H$4=\"Deutsch\",C882,IF(EUMED!$H$4=\"Nederlands\",D882,IF(EUMED!$H$4=\"Français\",E882)))","v":0}]
[883,null,null,null,null,{"$f":"IF(EUMED!$H$4=\"Deutsch\",C883,IF(EUMED!$H$4=\"Nederlands\",D883,IF(EUMED!$H$4=\"Français\",E883)))","v":0}]
[884,null,null,null,null,{"$f":"IF(EUMED!$H$4=\"Deutsch\",C884,IF(EUMED!$H$4=\"Nederlands\",D884,IF(EUMED!$H$4=\"Français\",E884)))","v":0}]
[885,null,null,null,null,{"$f":"IF(EUMED!$H$4=\"Deutsch\",C885,IF(EUMED!$H$4=\"Nederlands\",D885,IF(EUMED!$H$4=\"Français\",E885)))","v":0}]
[886,null,null,null,null,{"$f":"IF(EUMED!$H$4=\"Deutsch\",C886,IF(EUMED!$H$4=\"Nederlands\",D886,IF(EUMED!$H$4=\"Français\",E886)))","v":0}]
[887,null,null,null,null,{"$f":"IF(EUMED!$H$4=\"Deutsch\",C887,IF(EUMED!$H$4=\"Nederlands\",D887,IF(EUMED!$H$4=\"Français\",E887)))","v":0}]
[888,null,null,null,null,{"$f":"IF(EUMED!$H$4=\"Deutsch\",C888,IF(EUMED!$H$4=\"Nederlands\",D888,IF(EUMED!$H$4=\"Français\",E888)))","v":0}]
[889,null,null,null,null,{"$f":"IF(EUMED!$H$4=\"Deutsch\",C889,IF(EUMED!$H$4=\"Nederlands\",D889,IF(EUMED!$H$4=\"Français\",E889)))","v":0}]
[890,null,null,null,null,{"$f":"IF(EUMED!$H$4=\"Deutsch\",C890,IF(EUMED!$H$4=\"Nederlands\",D890,IF(EUMED!$H$4=\"Français\",E890)))","v":0}]
[891,null,null,null,null,{"$f":"IF(EUMED!$H$4=\"Deutsch\",C891,IF(EUMED!$H$4=\"Nederlands\",D891,IF(EUMED!$H$4=\"Français\",E891)))","v":0}]
[892,null,null,null,null,{"$f":"IF(EUMED!$H$4=\"Deutsch\",C892,IF(EUMED!$H$4=\"Nederlands\",D892,IF(EUMED!$H$4=\"Français\",E892)))","v":0}]
[893,null,null,null,null,{"$f":"IF(EUMED!$H$4=\"Deutsch\",C893,IF(EUMED!$H$4=\"Nederlands\",D893,IF(EUMED!$H$4=\"Français\",E893)))","v":0}]
[894,null,null,null,null,{"$f":"IF(EUMED!$H$4=\"Deutsch\",C894,IF(EUMED!$H$4=\"Nederlands\",D894,IF(EUMED!$H$4=\"Français\",E894)))","v":0}]
[895,null,null,null,null,{"$f":"IF(EUMED!$H$4=\"Deutsch\",C895,IF(EUMED!$H$4=\"Nederlands\",D895,IF(EUMED!$H$4=\"Français\",E895)))","v":0}]
[896,null,null,null,null,{"$f":"IF(EUMED!$H$4=\"Deutsch\",C896,IF(EUMED!$H$4=\"Nederlands\",D896,IF(EUMED!$H$4=\"Français\",E896)))","v":0}]
[897,null,null,null,null,{"$f":"IF(EUMED!$H$4=\"Deutsch\",C897,IF(EUMED!$H$4=\"Nederlands\",D897,IF(EUMED!$H$4=\"Français\",E897)))","v":0}]
[898,null,null,null,null,{"$f":"IF(EUMED!$H$4=\"Deutsch\",C898,IF(EUMED!$H$4=\"Nederlands\",D898,IF(EUMED!$H$4=\"Français\",E898)))","v":0}]
[899,null,null,null,null,{"$f":"IF(EUMED!$H$4=\"Deutsch\",C899,IF(EUMED!$H$4=\"Nederlands\",D899,IF(EUMED!$H$4=\"Français\",E899)))","v":0}]
[900,null,null,null,null,{"$f":"IF(EUMED!$H$4=\"Deutsch\",C900,IF(EUMED!$H$4=\"Nederlands\",D900,IF(EUMED!$H$4=\"Français\",E900)))","v":0}]
[901,null,null,null,null,{"$f":"IF(EUMED!$H$4=\"Deutsch\",C901,IF(EUMED!$H$4=\"Nederlands\",D901,IF(EUMED!$H$4=\"Français\",E901)))","v":0}]
[902,null,null,null,null,{"$f":"IF(EUMED!$H$4=\"Deutsch\",C902,IF(EUMED!$H$4=\"Nederlands\",D902,IF(EUMED!$H$4=\"Français\",E902)))","v":0}]
[903,null,null,null,null,{"$f":"IF(EUMED!$H$4=\"Deutsch\",C903,IF(EUMED!$H$4=\"Nederlands\",D903,IF(EUMED!$H$4=\"Français\",E903)))","v":0}]
[904,null,null,null,null,{"$f":"IF(EUMED!$H$4=\"Deutsch\",C904,IF(EUMED!$H$4=\"Nederlands\",D904,IF(EUMED!$H$4=\"Français\",E904)))","v":0}]
[905,null,null,null,null,{"$f":"IF(EUMED!$H$4=\"Deutsch\",C905,IF(EUMED!$H$4=\"Nederlands\",D905,IF(EUMED!$H$4=\"Français\",E905)))","v":0}]
[906,null,null,null,null,{"$f":"IF(EUMED!$H$4=\"Deutsch\",C906,IF(EUMED!$H$4=\"Nederlands\",D906,IF(EUMED!$H$4=\"Français\",E906)))","v":0}]
[907,null,null,null,null,{"$f":"IF(EUMED!$H$4=\"Deutsch\",C907,IF(EUMED!$H$4=\"Nederlands\",D907,IF(EUMED!$H$4=\"Français\",E907)))","v":0}]
[908,null,null,null,null,{"$f":"IF(EUMED!$H$4=\"Deutsch\",C908,IF(EUMED!$H$4=\"Nederlands\",D908,IF(EUMED!$H$4=\"Français\",E908)))","v":0}]
[909,null,null,null,null,{"$f":"IF(EUMED!$H$4=\"Deutsch\",C909,IF(EUMED!$H$4=\"Nederlands\",D909,IF(EUMED!$H$4=\"Français\",E909)))","v":0}]
[910,null,null,null,null,{"$f":"IF(EUMED!$H$4=\"Deutsch\",C910,IF(EUMED!$H$4=\"Nederlands\",D910,IF(EUMED!$H$4=\"Français\",E910)))","v":0}]
[911,null,null,null,null,{"$f":"IF(EUMED!$H$4=\"Deutsch\",C911,IF(EUMED!$H$4=\"Nederlands\",D911,IF(EUMED!$H$4=\"Français\",E911)))","v":0}]
[912,null,null,null,null,{"$f":"IF(EUMED!$H$4=\"Deutsch\",C912,IF(EUMED!$H$4=\"Nederlands\",D912,IF(EUMED!$H$4=\"Français\",E912)))","v":0}]
[913,null,null,null,null,{"$f":"IF(EUMED!$H$4=\"Deutsch\",C913,IF(EUMED!$H$4=\"Nederlands\",D913,IF(EUMED!$H$4=\"Français\",E913)))","v":0}]
[914,null,null,null,null,{"$f":"IF(EUMED!$H$4=\"Deutsch\",C914,IF(EUMED!$H$4=\"Nederlands\",D914,IF(EUMED!$H$4=\"Français\",E914)))","v":0}]
[915,null,null,null,null,{"$f":"IF(EUMED!$H$4=\"Deutsch\",C915,IF(EUMED!$H$4=\"Nederlands\",D915,IF(EUMED!$H$4=\"Français\",E915)))","v":0}]
[916,null,null,null,null,{"$f":"IF(EUMED!$H$4=\"Deutsch\",C916,IF(EUMED!$H$4=\"Nederlands\",D916,IF(EUMED!$H$4=\"Français\",E916)))","v":0}]
[917,null,null,null,null,{"$f":"IF(EUMED!$H$4=\"Deutsch\",C917,IF(EUMED!$H$4=\"Nederlands\",D917,IF(EUMED!$H$4=\"Français\",E917)))","v":0}]
[918,null,null,null,null,{"$f":"IF(EUMED!$H$4=\"Deutsch\",C918,IF(EUMED!$H$4=\"Nederlands\",D918,IF(EUMED!$H$4=\"Français\",E918)))","v":0}]
[919,null,null,null,null,{"$f":"IF(EUMED!$H$4=\"Deutsch\",C919,IF(EUMED!$H$4=\"Nederlands\",D919,IF(EUMED!$H$4=\"Français\",E919)))","v":0}]
[920,null,null,null,null,{"$f":"IF(EUMED!$H$4=\"Deutsch\",C920,IF(EUMED!$H$4=\"Nederlands\",D920,IF(EUMED!$H$4=\"Français\",E920)))","v":0}]
[921,null,null,null,null,{"$f":"IF(EUMED!$H$4=\"Deutsch\",C921,IF(EUMED!$H$4=\"Nederlands\",D921,IF(EUMED!$H$4=\"Français\",E921)))","v":0}]
[922,null,null,null,null,{"$f":"IF(EUMED!$H$4=\"Deutsch\",C922,IF(EUMED!$H$4=\"Nederlands\",D922,IF(EUMED!$H$4=\"Français\",E922)))","v":0}]
[923,null,null,null,null,{"$f":"IF(EUMED!$H$4=\"Deutsch\",C923,IF(EUMED!$H$4=\"Nederlands\",D923,IF(EUMED!$H$4=\"Français\",E923)))","v":0}]
[924,null,null,null,null,{"$f":"IF(EUMED!$H$4=\"Deutsch\",C924,IF(EUMED!$H$4=\"Nederlands\",D924,IF(EUMED!$H$4=\"Français\",E924)))","v":0}]
[925,null,null,null,null,{"$f":"IF(EUMED!$H$4=\"Deutsch\",C925,IF(EUMED!$H$4=\"Nederlands\",D925,IF(EUMED!$H$4=\"Français\",E925)))","v":0}]
[926,null,null,null,null,{"$f":"IF(EUMED!$H$4=\"Deutsch\",C926,IF(EUMED!$H$4=\"Nederlands\",D926,IF(EUMED!$H$4=\"Français\",E926)))","v":0}]
[927,null,null,null,null,{"$f":"IF(EUMED!$H$4=\"Deutsch\",C927,IF(EUMED!$H$4=\"Nederlands\",D927,IF(EUMED!$H$4=\"Français\",E927)))","v":0}]
[928,null,null,null,null,{"$f":"IF(EUMED!$H$4=\"Deutsch\",C928,IF(EUMED!$H$4=\"Nederlands\",D928,IF(EUMED!$H$4=\"Français\",E928)))","v":0}]
[929,null,null,null,null,{"$f":"IF(EUMED!$H$4=\"Deutsch\",C929,IF(EUMED!$H$4=\"Nederlands\",D929,IF(EUMED!$H$4=\"Français\",E929)))","v":0}]
[930,null,null,null,null,{"$f":"IF(EUMED!$H$4=\"Deutsch\",C930,IF(EUMED!$H$4=\"Nederlands\",D930,IF(EUMED!$H$4=\"Français\",E930)))","v":0}]
[931,null,null,null,null,{"$f":"IF(EUMED!$H$4=\"Deutsch\",C931,IF(EUMED!$H$4=\"Nederlands\",D931,IF(EUMED!$H$4=\"Français\",E931)))","v":0}]
[932,null,null,null,null,{"$f":"IF(EUMED!$H$4=\"Deutsch\",C932,IF(EUMED!$H$4=\"Nederlands\",D932,IF(EUMED!$H$4=\"Français\",E932)))","v":0}]
[933,null,null,null,null,{"$f":"IF(EUMED!$H$4=\"Deutsch\",C933,IF(EUMED!$H$4=\"Nederlands\",D933,IF(EUMED!$H$4=\"Français\",E933)))","v":0}]
[934,null,null,null,null,{"$f":"IF(EUMED!$H$4=\"Deutsch\",C934,IF(EUMED!$H$4=\"Nederlands\",D934,IF(EUMED!$H$4=\"Français\",E934)))","v":0}]
[935,null,null,null,null,{"$f":"IF(EUMED!$H$4=\"Deutsch\",C935,IF(EUMED!$H$4=\"Nederlands\",D935,IF(EUMED!$H$4=\"Français\",E935)))","v":0}]
[936,null,null,null,null,{"$f":"IF(EUMED!$H$4=\"Deutsch\",C936,IF(EUMED!$H$4=\"Nederlands\",D936,IF(EUMED!$H$4=\"Français\",E936)))","v":0}]
[937,null,null,null,null,{"$f":"IF(EUMED!$H$4=\"Deutsch\",C937,IF(EUMED!$H$4=\"Nederlands\",D937,IF(EUMED!$H$4=\"Français\",E937)))","v":0}]
[938,null,null,null,null,{"$f":"IF(EUMED!$H$4=\"Deutsch\",C938,IF(EUMED!$H$4=\"Nederlands\",D938,IF(EUMED!$H$4=\"Français\",E938)))","v":0}]
[939,null,null,null,null,{"$f":"IF(EUMED!$H$4=\"Deutsch\",C939,IF(EUMED!$H$4=\"Nederlands\",D939,IF(EUMED!$H$4=\"Français\",E939)))","v":0}]
[940,null,null,null,null,{"$f":"IF(EUMED!$H$4=\"Deutsch\",C940,IF(EUMED!$H$4=\"Nederlands\",D940,IF(EUMED!$H$4=\"Français\",E940)))","v":0}]
[941,null,null,null,null,{"$f":"IF(EUMED!$H$4=\"Deutsch\",C941,IF(EUMED!$H$4=\"Nederlands\",D941,IF(EUMED!$H$4=\"Français\",E941)))","v":0}]
[942,null,null,null,null,{"$f":"IF(EUMED!$H$4=\"Deutsch\",C942,IF(EUMED!$H$4=\"Nederlands\",D942,IF(EUMED!$H$4=\"Français\",E942)))","v":0}]
[943,null,null,null,null,{"$f":"IF(EUMED!$H$4=\"Deutsch\",C943,IF(EUMED!$H$4=\"Nederlands\",D943,IF(EUMED!$H$4=\"Français\",E943)))","v":0}]
[944,null,null,null,null,{"$f":"IF(EUMED!$H$4=\"Deutsch\",C944,IF(EUMED!$H$4=\"Nederlands\",D944,IF(EUMED!$H$4=\"Français\",E944)))","v":0}]
[945,null,null,null,null,{"$f":"IF(EUMED!$H$4=\"Deutsch\",C945,IF(EUMED!$H$4=\"Nederlands\",D945,IF(EUMED!$H$4=\"Français\",E945)))","v":0}]
[946,null,null,null,null,{"$f":"IF(EUMED!$H$4=\"Deutsch\",C946,IF(EUMED!$H$4=\"Nederlands\",D946,IF(EUMED!$H$4=\"Français\",E946)))","v":0}]
[947,null,null,null,null,{"$f":"IF(EUMED!$H$4=\"Deutsch\",C947,IF(EUMED!$H$4=\"Nederlands\",D947,IF(EUMED!$H$4=\"Français\",E947)))","v":0}]
[948,null,null,null,null,{"$f":"IF(EUMED!$H$4=\"Deutsch\",C948,IF(EUMED!$H$4=\"Nederlands\",D948,IF(EUMED!$H$4=\"Français\",E948)))","v":0}]
[949,null,null,null,null,{"$f":"IF(EUMED!$H$4=\"Deutsch\",C949,IF(EUMED!$H$4=\"Nederlands\",D949,IF(EUMED!$H$4=\"Français\",E949)))","v":0}]
[950,null,null,null,null,{"$f":"IF(EUMED!$H$4=\"Deutsch\",C950,IF(EUMED!$H$4=\"Nederlands\",D950,IF(EUMED!$H$4=\"Français\",E950)))","v":0}]
[951,null,null,null,null,{"$f":"IF(EUMED!$H$4=\"Deutsch\",C951,IF(EUMED!$H$4=\"Nederlands\",D951,IF(EUMED!$H$4=\"Français\",E951)))","v":0}]
[952,null,null,null,null,{"$f":"IF(EUMED!$H$4=\"Deutsch\",C952,IF(EUMED!$H$4=\"Nederlands\",D952,IF(EUMED!$H$4=\"Français\",E952)))","v":0}]
[953,null,null,null,null,{"$f":"IF(EUMED!$H$4=\"Deutsch\",C953,IF(EUMED!$H$4=\"Nederlands\",D953,IF(EUMED!$H$4=\"Français\",E953)))","v":0}]
[954,null,null,null,null,{"$f":"IF(EUMED!$H$4=\"Deutsch\",C954,IF(EUMED!$H$4=\"Nederlands\",D954,IF(EUMED!$H$4=\"Français\",E954)))","v":0}]
[955,null,null,null,null,{"$f":"IF(EUMED!$H$4=\"Deutsch\",C955,IF(EUMED!$H$4=\"Nederlands\",D955,IF(EUMED!$H$4=\"Français\",E955)))","v":0}]
[956,null,null,null,null,{"$f":"IF(EUMED!$H$4=\"Deutsch\",C956,IF(EUMED!$H$4=\"Nederlands\",D956,IF(EUMED!$H$4=\"Français\",E956)))","v":0}]
[957,null,null,null,null,{"$f":"IF(EUMED!$H$4=\"Deutsch\",C957,IF(EUMED!$H$4=\"Nederlands\",D957,IF(EUMED!$H$4=\"Français\",E957)))","v":0}]
[958,null,null,null,null,{"$f":"IF(EUMED!$H$4=\"Deutsch\",C958,IF(EUMED!$H$4=\"Nederlands\",D958,IF(EUMED!$H$4=\"Français\",E958)))","v":0}]
[959,null,null,null,null,{"$f":"IF(EUMED!$H$4=\"Deutsch\",C959,IF(EUMED!$H$4=\"Nederlands\",D959,IF(EUMED!$H$4=\"Français\",E959)))","v":0}]
[960,null,null,null,null,{"$f":"IF(EUMED!$H$4=\"Deutsch\",C960,IF(EUMED!$H$4=\"Nederlands\",D960,IF(EUMED!$H$4=\"Français\",E960)))","v":0}]
[961,null,null,null,null,{"$f":"IF(EUMED!$H$4=\"Deutsch\",C961,IF(EUMED!$H$4=\"Nederlands\",D961,IF(EUMED!$H$4=\"Français\",E961)))","v":0}]
[962,null,null,null,null,{"$f":"IF(EUMED!$H$4=\"Deutsch\",C962,IF(EUMED!$H$4=\"Nederlands\",D962,IF(EUMED!$H$4=\"Français\",E962)))","v":0}]
[963,null,null,null,null,{"$f":"IF(EUMED!$H$4=\"Deutsch\",C963,IF(EUMED!$H$4=\"Nederlands\",D963,IF(EUMED!$H$4=\"Français\",E963)))","v":0}]
[964,null,null,null,null,{"$f":"IF(EUMED!$H$4=\"Deutsch\",C964,IF(EUMED!$H$4=\"Nederlands\",D964,IF(EUMED!$H$4=\"Français\",E964)))","v":0}]
[965,null,null,null,null,{"$f":"IF(EUMED!$H$4=\"Deutsch\",C965,IF(EUMED!$H$4=\"Nederlands\",D965,IF(EUMED!$H$4=\"Français\",E965)))","v":0}]
[966,null,null,null,null,{"$f":"IF(EUMED!$H$4=\"Deutsch\",C966,IF(EUMED!$H$4=\"Nederlands\",D966,IF(EUMED!$H$4=\"Français\",E966)))","v":0}]
[967,null,null,null,null,{"$f":"IF(EUMED!$H$4=\"Deutsch\",C967,IF(EUMED!$H$4=\"Nederlands\",D967,IF(EUMED!$H$4=\"Français\",E967)))","v":0}]
[968,null,null,null,null,{"$f":"IF(EUMED!$H$4=\"Deutsch\",C968,IF(EUMED!$H$4=\"Nederlands\",D968,IF(EUMED!$H$4=\"Français\",E968)))","v":0}]
[969,null,null,null,null,{"$f":"IF(EUMED!$H$4=\"Deutsch\",C969,IF(EUMED!$H$4=\"Nederlands\",D969,IF(EUMED!$H$4=\"Français\",E969)))","v":0}]
[970,null,null,null,null,{"$f":"IF(EUMED!$H$4=\"Deutsch\",C970,IF(EUMED!$H$4=\"Nederlands\",D970,IF(EUMED!$H$4=\"Français\",E970)))","v":0}]
[971,null,null,null,null,{"$f":"IF(EUMED!$H$4=\"Deutsch\",C971,IF(EUMED!$H$4=\"Nederlands\",D971,IF(EUMED!$H$4=\"Français\",E971)))","v":0}]
[972,null,null,null,null,{"$f":"IF(EUMED!$H$4=\"Deutsch\",C972,IF(EUMED!$H$4=\"Nederlands\",D972,IF(EUMED!$H$4=\"Français\",E972)))","v":0}]
[973,null,null,null,null,{"$f":"IF(EUMED!$H$4=\"Deutsch\",C973,IF(EUMED!$H$4=\"Nederlands\",D973,IF(EUMED!$H$4=\"Français\",E973)))","v":0}]
[974,null,null,null,null,{"$f":"IF(EUMED!$H$4=\"Deutsch\",C974,IF(EUMED!$H$4=\"Nederlands\",D974,IF(EUMED!$H$4=\"Français\",E974)))","v":0}]
[975,null,null,null,null,{"$f":"IF(EUMED!$H$4=\"Deutsch\",C975,IF(EUMED!$H$4=\"Nederlands\",D975,IF(EUMED!$H$4=\"Français\",E975)))","v":0}]
[976,null,null,null,null,{"$f":"IF(EUMED!$H$4=\"Deutsch\",C976,IF(EUMED!$H$4=\"Nederlands\",D976,IF(EUMED!$H$4=\"Français\",E976)))","v":0}]
[977,null,null,null,null,{"$f":"IF(EUMED!$H$4=\"Deutsch\",C977,IF(EUMED!$H$4=\"Nederlands\",D977,IF(EUMED!$H$4=\"Français\",E977)))","v":0}]
[978,null,null,null,null,{"$f":"IF(EUMED!$H$4=\"Deutsch\",C978,IF(EUMED!$H$4=\"Nederlands\",D978,IF(EUMED!$H$4=\"Français\",E978)))","v":0}]
[979,null,null,null,null,{"$f":"IF(EUMED!$H$4=\"Deutsch\",C979,IF(EUMED!$H$4=\"Nederlands\",D979,IF(EUMED!$H$4=\"Français\",E979)))","v":0}]
[980,null,null,null,null,{"$f":"IF(EUMED!$H$4=\"Deutsch\",C980,IF(EUMED!$H$4=\"Nederlands\",D980,IF(EUMED!$H$4=\"Français\",E980)))","v":0}]
[981,null,null,null,null,{"$f":"IF(EUMED!$H$4=\"Deutsch\",C981,IF(EUMED!$H$4=\"Nederlands\",D981,IF(EUMED!$H$4=\"Français\",E981)))","v":0}]
[982,null,null,null,null,{"$f":"IF(EUMED!$H$4=\"Deutsch\",C982,IF(EUMED!$H$4=\"Nederlands\",D982,IF(EUMED!$H$4=\"Français\",E982)))","v":0}]
[983,null,null,null,null,{"$f":"IF(EUMED!$H$4=\"Deutsch\",C983,IF(EUMED!$H$4=\"Nederlands\",D983,IF(EUMED!$H$4=\"Français\",E983)))","v":0}]
[984,null,null,null,null,{"$f":"IF(EUMED!$H$4=\"Deutsch\",C984,IF(EUMED!$H$4=\"Nederlands\",D984,IF(EUMED!$H$4=\"Français\",E984)))","v":0}]
[985,null,null,null,null,{"$f":"IF(EUMED!$H$4=\"Deutsch\",C985,IF(EUMED!$H$4=\"Nederlands\",D985,IF(EUMED!$H$4=\"Français\",E985)))","v":0}]
[986,null,null,null,null,{"$f":"IF(EUMED!$H$4=\"Deutsch\",C986,IF(EUMED!$H$4=\"Nederlands\",D986,IF(EUMED!$H$4=\"Français\",E986)))","v":0}]
[987,null,null,null,null,{"$f":"IF(EUMED!$H$4=\"Deutsch\",C987,IF(EUMED!$H$4=\"Nederlands\",D987,IF(EUMED!$H$4=\"Français\",E987)))","v":0}]
[988,null,null,null,null,{"$f":"IF(EUMED!$H$4=\"Deutsch\",C988,IF(EUMED!$H$4=\"Nederlands\",D988,IF(EUMED!$H$4=\"Français\",E988)))","v":0}]
[989,null,null,null,null,{"$f":"IF(EUMED!$H$4=\"Deutsch\",C989,IF(EUMED!$H$4=\"Nederlands\",D989,IF(EUMED!$H$4=\"Français\",E989)))","v":0}]
[990,null,null,null,null,{"$f":"IF(EUMED!$H$4=\"Deutsch\",C990,IF(EUMED!$H$4=\"Nederlands\",D990,IF(EUMED!$H$4=\"Français\",E990)))","v":0}]
[991,null,null,null,null,{"$f":"IF(EUMED!$H$4=\"Deutsch\",C991,IF(EUMED!$H$4=\"Nederlands\",D991,IF(EUMED!$H$4=\"Français\",E991)))","v":0}]
[992,null,null,null,null,{"$f":"IF(EUMED!$H$4=\"Deutsch\",C992,IF(EUMED!$H$4=\"Nederlands\",D992,IF(EUMED!$H$4=\"Français\",E992)))","v":0}]
[993,null,null,null,null,{"$f":"IF(EUMED!$H$4=\"Deutsch\",C993,IF(EUMED!$H$4=\"Nederlands\",D993,IF(EUMED!$H$4=\"Français\",E993)))","v":0}]
[994,null,null,null,null,{"$f":"IF(EUMED!$H$4=\"Deutsch\",C994,IF(EUMED!$H$4=\"Nederlands\",D994,IF(EUMED!$H$4=\"Français\",E994)))","v":0}]
[995,null,null,null,null,{"$f":"IF(EUMED!$H$4=\"Deutsch\",C995,IF(EUMED!$H$4=\"Nederlands\",D995,IF(EUMED!$H$4=\"Français\",E995)))","v":0}]
[996,null,null,null,null,{"$f":"IF(EUMED!$H$4=\"Deutsch\",C996,IF(EUMED!$H$4=\"Nederlands\",D996,IF(EUMED!$H$4=\"Français\",E996)))","v":0}]
[997,null,null,null,null,{"$f":"IF(EUMED!$H$4=\"Deutsch\",C997,IF(EUMED!$H$4=\"Nederlands\",D997,IF(EUMED!$H$4=\"Français\",E997)))","v":0}]
[998,null,null,null,null,{"$f":"IF(EUMED!$H$4=\"Deutsch\",C998,IF(EUMED!$H$4=\"Nederlands\",D998,IF(EUMED!$H$4=\"Français\",E998)))","v":0}]
[999,null,null,null,null,{"$f":"IF(EUMED!$H$4=\"Deutsch\",C999,IF(EUMED!$H$4=\"Nederlands\",D999,IF(EUMED!$H$4=\"Français\",E999)))","v":0}]
[1000,null,null,null,null,{"$f":"IF(EUMED!$H$4=\"Deutsch\",C1000,IF(EUMED!$H$4=\"Nederlands\",D1000,IF(EUMED!$H$4=\"Français\",E1000)))","v":0}]
[1001,null,null,null,null,{"$f":"IF(EUMED!$H$4=\"Deutsch\",C1001,IF(EUMED!$H$4=\"Nederlands\",D1001,IF(EUMED!$H$4=\"Français\",E1001)))","v":0}]
[1002,null,null,null,null,{"$f":"IF(EUMED!$H$4=\"Deutsch\",C1002,IF(EUMED!$H$4=\"Nederlands\",D1002,IF(EUMED!$H$4=\"Français\",E1002)))","v":0}]
[1003,null,null,null,null,{"$f":"IF(EUMED!$H$4=\"Deutsch\",C1003,IF(EUMED!$H$4=\"Nederlands\",D1003,IF(EUMED!$H$4=\"Français\",E1003)))","v":0}]
[1004,null,null,null,null,{"$f":"IF(EUMED!$H$4=\"Deutsch\",C1004,IF(EUMED!$H$4=\"Nederlands\",D1004,IF(EUMED!$H$4=\"Français\",E1004)))","v":0}]
[1005,null,null,null,null,{"$f":"IF(EUMED!$H$4=\"Deutsch\",C1005,IF(EUMED!$H$4=\"Nederlands\",D1005,IF(EUMED!$H$4=\"Français\",E1005)))","v":0}]
[1006,null,null,null,null,{"$f":"IF(EUMED!$H$4=\"Deutsch\",C1006,IF(EUMED!$H$4=\"Nederlands\",D1006,IF(EUMED!$H$4=\"Français\",E1006)))","v":0}]
[1007,null,null,null,null,{"$f":"IF(EUMED!$H$4=\"Deutsch\",C1007,IF(EUMED!$H$4=\"Nederlands\",D1007,IF(EUMED!$H$4=\"Français\",E1007)))","v":0}]
[1008,null,null,null,null,{"$f":"IF(EUMED!$H$4=\"Deutsch\",C1008,IF(EUMED!$H$4=\"Nederlands\",D1008,IF(EUMED!$H$4=\"Français\",E1008)))","v":0}]
[1009,null,null,null,null,{"$f":"IF(EUMED!$H$4=\"Deutsch\",C1009,IF(EUMED!$H$4=\"Nederlands\",D1009,IF(EUMED!$H$4=\"Français\",E1009)))","v":0}]
[1010,null,null,null,null,{"$f":"IF(EUMED!$H$4=\"Deutsch\",C1010,IF(EUMED!$H$4=\"Nederlands\",D1010,IF(EUMED!$H$4=\"Français\",E1010)))","v":0}]
[1011,null,null,null,null,{"$f":"IF(EUMED!$H$4=\"Deutsch\",C1011,IF(EUMED!$H$4=\"Nederlands\",D1011,IF(EUMED!$H$4=\"Français\",E1011)))","v":0}]
[1012,null,null,null,null,{"$f":"IF(EUMED!$H$4=\"Deutsch\",C1012,IF(EUMED!$H$4=\"Nederlands\",D1012,IF(EUMED!$H$4=\"Français\",E1012)))","v":0}]
[1013,null,null,null,null,{"$f":"IF(EUMED!$H$4=\"Deutsch\",C1013,IF(EUMED!$H$4=\"Nederlands\",D1013,IF(EUMED!$H$4=\"Français\",E1013)))","v":0}]
[1014,null,null,null,null,{"$f":"IF(EUMED!$H$4=\"Deutsch\",C1014,IF(EUMED!$H$4=\"Nederlands\",D1014,IF(EUMED!$H$4=\"Français\",E1014)))","v":0}]
[1015,null,null,null,null,{"$f":"IF(EUMED!$H$4=\"Deutsch\",C1015,IF(EUMED!$H$4=\"Nederlands\",D1015,IF(EUMED!$H$4=\"Français\",E1015)))","v":0}]
[1016,null,null,null,null,{"$f":"IF(EUMED!$H$4=\"Deutsch\",C1016,IF(EUMED!$H$4=\"Nederlands\",D1016,IF(EUMED!$H$4=\"Français\",E1016)))","v":0}]
[1017,null,null,null,null,{"$f":"IF(EUMED!$H$4=\"Deutsch\",C1017,IF(EUMED!$H$4=\"Nederlands\",D1017,IF(EUMED!$H$4=\"Français\",E1017)))","v":0}]
[1018,null,null,null,null,{"$f":"IF(EUMED!$H$4=\"Deutsch\",C1018,IF(EUMED!$H$4=\"Nederlands\",D1018,IF(EUMED!$H$4=\"Français\",E1018)))","v":0}]
[1019,null,null,null,null,{"$f":"IF(EUMED!$H$4=\"Deutsch\",C1019,IF(EUMED!$H$4=\"Nederlands\",D1019,IF(EUMED!$H$4=\"Français\",E1019)))","v":0}]
[1020,null,null,null,null,{"$f":"IF(EUMED!$H$4=\"Deutsch\",C1020,IF(EUMED!$H$4=\"Nederlands\",D1020,IF(EUMED!$H$4=\"Français\",E1020)))","v":0}]
[1021,null,null,null,null,{"$f":"IF(EUMED!$H$4=\"Deutsch\",C1021,IF(EUMED!$H$4=\"Nederlands\",D1021,IF(EUMED!$H$4=\"Français\",E1021)))","v":0}]
[1022,null,null,null,null,{"$f":"IF(EUMED!$H$4=\"Deutsch\",C1022,IF(EUMED!$H$4=\"Nederlands\",D1022,IF(EUMED!$H$4=\"Français\",E1022)))","v":0}]
[1023,null,null,null,null,{"$f":"IF(EUMED!$H$4=\"Deutsch\",C1023,IF(EUMED!$H$4=\"Nederlands\",D1023,IF(EUMED!$H$4=\"Français\",E1023)))","v":0}]
[1024,null,null,null,null,{"$f":"IF(EUMED!$H$4=\"Deutsch\",C1024,IF(EUMED!$H$4=\"Nederlands\",D1024,IF(EUMED!$H$4=\"Français\",E1024)))","v":0}]
[1025,null,null,null,null,{"$f":"IF(EUMED!$H$4=\"Deutsch\",C1025,IF(EUMED!$H$4=\"Nederlands\",D1025,IF(EUMED!$H$4=\"Français\",E1025)))","v":0}]
[1026,null,null,null,null,{"$f":"IF(EUMED!$H$4=\"Deutsch\",C1026,IF(EUMED!$H$4=\"Nederlands\",D1026,IF(EUMED!$H$4=\"Français\",E1026)))","v":0}]
[1027,null,null,null,null,{"$f":"IF(EUMED!$H$4=\"Deutsch\",C1027,IF(EUMED!$H$4=\"Nederlands\",D1027,IF(EUMED!$H$4=\"Français\",E1027)))","v":0}]
[1028,null,null,null,null,{"$f":"IF(EUMED!$H$4=\"Deutsch\",C1028,IF(EUMED!$H$4=\"Nederlands\",D1028,IF(EUMED!$H$4=\"Français\",E1028)))","v":0}]
[1029,null,null,null,null,{"$f":"IF(EUMED!$H$4=\"Deutsch\",C1029,IF(EUMED!$H$4=\"Nederlands\",D1029,IF(EUMED!$H$4=\"Français\",E1029)))","v":0}]
[1030,null,null,null,null,{"$f":"IF(EUMED!$H$4=\"Deutsch\",C1030,IF(EUMED!$H$4=\"Nederlands\",D1030,IF(EUMED!$H$4=\"Français\",E1030)))","v":0}]
[1031,null,null,null,null,{"$f":"IF(EUMED!$H$4=\"Deutsch\",C1031,IF(EUMED!$H$4=\"Nederlands\",D1031,IF(EUMED!$H$4=\"Français\",E1031)))","v":0}]
[1032,null,null,null,null,{"$f":"IF(EUMED!$H$4=\"Deutsch\",C1032,IF(EUMED!$H$4=\"Nederlands\",D1032,IF(EUMED!$H$4=\"Français\",E1032)))","v":0}]
[1033,null,null,null,null,{"$f":"IF(EUMED!$H$4=\"Deutsch\",C1033,IF(EUMED!$H$4=\"Nederlands\",D1033,IF(EUMED!$H$4=\"Français\",E1033)))","v":0}]
[1034,null,null,null,null,{"$f":"IF(EUMED!$H$4=\"Deutsch\",C1034,IF(EUMED!$H$4=\"Nederlands\",D1034,IF(EUMED!$H$4=\"Français\",E1034)))","v":0}]
[1035,null,null,null,null,{"$f":"IF(EUMED!$H$4=\"Deutsch\",C1035,IF(EUMED!$H$4=\"Nederlands\",D1035,IF(EUMED!$H$4=\"Français\",E1035)))","v":0}]
[1036,null,null,null,null,{"$f":"IF(EUMED!$H$4=\"Deutsch\",C1036,IF(EUMED!$H$4=\"Nederlands\",D1036,IF(EUMED!$H$4=\"Français\",E1036)))","v":0}]
[1037,null,null,null,null,{"$f":"IF(EUMED!$H$4=\"Deutsch\",C1037,IF(EUMED!$H$4=\"Nederlands\",D1037,IF(EUMED!$H$4=\"Français\",E1037)))","v":0}]
[1038,null,null,null,null,{"$f":"IF(EUMED!$H$4=\"Deutsch\",C1038,IF(EUMED!$H$4=\"Nederlands\",D1038,IF(EUMED!$H$4=\"Français\",E1038)))","v":0}]
[1039,null,null,null,null,{"$f":"IF(EUMED!$H$4=\"Deutsch\",C1039,IF(EUMED!$H$4=\"Nederlands\",D1039,IF(EUMED!$H$4=\"Français\",E1039)))","v":0}]
[1040,null,null,null,null,{"$f":"IF(EUMED!$H$4=\"Deutsch\",C1040,IF(EUMED!$H$4=\"Nederlands\",D1040,IF(EUMED!$H$4=\"Français\",E1040)))","v":0}]
[1041,null,null,null,null,{"$f":"IF(EUMED!$H$4=\"Deutsch\",C1041,IF(EUMED!$H$4=\"Nederlands\",D1041,IF(EUMED!$H$4=\"Français\",E1041)))","v":0}]
[1042,null,null,null,null,{"$f":"IF(EUMED!$H$4=\"Deutsch\",C1042,IF(EUMED!$H$4=\"Nederlands\",D1042,IF(EUMED!$H$4=\"Français\",E1042)))","v":0}]
[1043,null,null,null,null,{"$f":"IF(EUMED!$H$4=\"Deutsch\",C1043,IF(EUMED!$H$4=\"Nederlands\",D1043,IF(EUMED!$H$4=\"Français\",E1043)))","v":0}]
[1044,null,null,null,null,{"$f":"IF(EUMED!$H$4=\"Deutsch\",C1044,IF(EUMED!$H$4=\"Nederlands\",D1044,IF(EUMED!$H$4=\"Français\",E1044)))","v":0}]
[1045,null,null,null,null,{"$f":"IF(EUMED!$H$4=\"Deutsch\",C1045,IF(EUMED!$H$4=\"Nederlands\",D1045,IF(EUMED!$H$4=\"Français\",E1045)))","v":0}]
[1046,null,null,null,null,{"$f":"IF(EUMED!$H$4=\"Deutsch\",C1046,IF(EUMED!$H$4=\"Nederlands\",D1046,IF(EUMED!$H$4=\"Français\",E1046)))","v":0}]
[1047,null,null,null,null,{"$f":"IF(EUMED!$H$4=\"Deutsch\",C1047,IF(EUMED!$H$4=\"Nederlands\",D1047,IF(EUMED!$H$4=\"Français\",E1047)))","v":0}]
[1048,null,null,null,null,{"$f":"IF(EUMED!$H$4=\"Deutsch\",C1048,IF(EUMED!$H$4=\"Nederlands\",D1048,IF(EUMED!$H$4=\"Français\",E1048)))","v":0}]
[1049,null,null,null,null,{"$f":"IF(EUMED!$H$4=\"Deutsch\",C1049,IF(EUMED!$H$4=\"Nederlands\",D1049,IF(EUMED!$H$4=\"Français\",E1049)))","v":0}]
[1050,null,null,null,null,{"$f":"IF(EUMED!$H$4=\"Deutsch\",C1050,IF(EUMED!$H$4=\"Nederlands\",D1050,IF(EUMED!$H$4=\"Français\",E1050)))","v":0}]
[1051,null,null,null,null,{"$f":"IF(EUMED!$H$4=\"Deutsch\",C1051,IF(EUMED!$H$4=\"Nederlands\",D1051,IF(EUMED!$H$4=\"Français\",E1051)))","v":0}]
[1052,null,null,null,null,{"$f":"IF(EUMED!$H$4=\"Deutsch\",C1052,IF(EUMED!$H$4=\"Nederlands\",D1052,IF(EUMED!$H$4=\"Français\",E1052)))","v":0}]
[1053,null,null,null,null,{"$f":"IF(EUMED!$H$4=\"Deutsch\",C1053,IF(EUMED!$H$4=\"Nederlands\",D1053,IF(EUMED!$H$4=\"Français\",E1053)))","v":0}]
[1054,null,null,null,null,{"$f":"IF(EUMED!$H$4=\"Deutsch\",C1054,IF(EUMED!$H$4=\"Nederlands\",D1054,IF(EUMED!$H$4=\"Français\",E1054)))","v":0}]
[1055,null,null,null,null,{"$f":"IF(EUMED!$H$4=\"Deutsch\",C1055,IF(EUMED!$H$4=\"Nederlands\",D1055,IF(EUMED!$H$4=\"Français\",E1055)))","v":0}]
[1056,null,null,null,null,{"$f":"IF(EUMED!$H$4=\"Deutsch\",C1056,IF(EUMED!$H$4=\"Nederlands\",D1056,IF(EUMED!$H$4=\"Français\",E1056)))","v":0}]
[1057,null,null,null,null,{"$f":"IF(EUMED!$H$4=\"Deutsch\",C1057,IF(EUMED!$H$4=\"Nederlands\",D1057,IF(EUMED!$H$4=\"Français\",E1057)))","v":0}]
[1058,null,null,null,null,{"$f":"IF(EUMED!$H$4=\"Deutsch\",C1058,IF(EUMED!$H$4=\"Nederlands\",D1058,IF(EUMED!$H$4=\"Français\",E1058)))","v":0}]
[1059,null,null,null,null,{"$f":"IF(EUMED!$H$4=\"Deutsch\",C1059,IF(EUMED!$H$4=\"Nederlands\",D1059,IF(EUMED!$H$4=\"Français\",E1059)))","v":0}]
[1060,null,null,null,null,{"$f":"IF(EUMED!$H$4=\"Deutsch\",C1060,IF(EUMED!$H$4=\"Nederlands\",D1060,IF(EUMED!$H$4=\"Français\",E1060)))","v":0}]
[1061,null,null,null,null,{"$f":"IF(EUMED!$H$4=\"Deutsch\",C1061,IF(EUMED!$H$4=\"Nederlands\",D1061,IF(EUMED!$H$4=\"Français\",E1061)))","v":0}]
[1062,null,null,null,null,{"$f":"IF(EUMED!$H$4=\"Deutsch\",C1062,IF(EUMED!$H$4=\"Nederlands\",D1062,IF(EUMED!$H$4=\"Français\",E1062)))","v":0}]
[1063,null,null,null,null,{"$f":"IF(EUMED!$H$4=\"Deutsch\",C1063,IF(EUMED!$H$4=\"Nederlands\",D1063,IF(EUMED!$H$4=\"Français\",E1063)))","v":0}]
[1064,null,null,null,null,{"$f":"IF(EUMED!$H$4=\"Deutsch\",C1064,IF(EUMED!$H$4=\"Nederlands\",D1064,IF(EUMED!$H$4=\"Français\",E1064)))","v":0}]
[1065,null,null,null,null,{"$f":"IF(EUMED!$H$4=\"Deutsch\",C1065,IF(EUMED!$H$4=\"Nederlands\",D1065,IF(EUMED!$H$4=\"Français\",E1065)))","v":0}]
[1066,null,null,null,null,{"$f":"IF(EUMED!$H$4=\"Deutsch\",C1066,IF(EUMED!$H$4=\"Nederlands\",D1066,IF(EUMED!$H$4=\"Français\",E1066)))","v":0}]
[1067,null,null,null,null,{"$f":"IF(EUMED!$H$4=\"Deutsch\",C1067,IF(EUMED!$H$4=\"Nederlands\",D1067,IF(EUMED!$H$4=\"Français\",E1067)))","v":0}]
[1068,null,null,null,null,{"$f":"IF(EUMED!$H$4=\"Deutsch\",C1068,IF(EUMED!$H$4=\"Nederlands\",D1068,IF(EUMED!$H$4=\"Français\",E1068)))","v":0}]
[1069,null,null,null,null,{"$f":"IF(EUMED!$H$4=\"Deutsch\",C1069,IF(EUMED!$H$4=\"Nederlands\",D1069,IF(EUMED!$H$4=\"Français\",E1069)))","v":0}]
[1070,null,null,null,null,{"$f":"IF(EUMED!$H$4=\"Deutsch\",C1070,IF(EUMED!$H$4=\"Nederlands\",D1070,IF(EUMED!$H$4=\"Français\",E1070)))","v":0}]
[1071,null,null,null,null,{"$f":"IF(EUMED!$H$4=\"Deutsch\",C1071,IF(EUMED!$H$4=\"Nederlands\",D1071,IF(EUMED!$H$4=\"Français\",E1071)))","v":0}]
[1072,null,null,null,null,{"$f":"IF(EUMED!$H$4=\"Deutsch\",C1072,IF(EUMED!$H$4=\"Nederlands\",D1072,IF(EUMED!$H$4=\"Français\",E1072)))","v":0}]
[1073,null,null,null,null,{"$f":"IF(EUMED!$H$4=\"Deutsch\",C1073,IF(EUMED!$H$4=\"Nederlands\",D1073,IF(EUMED!$H$4=\"Français\",E1073)))","v":0}]
[1074,null,null,null,null,{"$f":"IF(EUMED!$H$4=\"Deutsch\",C1074,IF(EUMED!$H$4=\"Nederlands\",D1074,IF(EUMED!$H$4=\"Français\",E1074)))","v":0}]
[1075,null,null,null,null,{"$f":"IF(EUMED!$H$4=\"Deutsch\",C1075,IF(EUMED!$H$4=\"Nederlands\",D1075,IF(EUMED!$H$4=\"Français\",E1075)))","v":0}]
[1076,null,null,null,null,{"$f":"IF(EUMED!$H$4=\"Deutsch\",C1076,IF(EUMED!$H$4=\"Nederlands\",D1076,IF(EUMED!$H$4=\"Français\",E1076)))","v":0}]
[1077,null,null,null,null,{"$f":"IF(EUMED!$H$4=\"Deutsch\",C1077,IF(EUMED!$H$4=\"Nederlands\",D1077,IF(EUMED!$H$4=\"Français\",E1077)))","v":0}]
[1078,null,null,null,null,{"$f":"IF(EUMED!$H$4=\"Deutsch\",C1078,IF(EUMED!$H$4=\"Nederlands\",D1078,IF(EUMED!$H$4=\"Français\",E1078)))","v":0}]
[1079,null,null,null,null,{"$f":"IF(EUMED!$H$4=\"Deutsch\",C1079,IF(EUMED!$H$4=\"Nederlands\",D1079,IF(EUMED!$H$4=\"Français\",E1079)))","v":0}]
[1080,null,null,null,null,{"$f":"IF(EUMED!$H$4=\"Deutsch\",C1080,IF(EUMED!$H$4=\"Nederlands\",D1080,IF(EUMED!$H$4=\"Français\",E1080)))","v":0}]
[1081,null,null,null,null,{"$f":"IF(EUMED!$H$4=\"Deutsch\",C1081,IF(EUMED!$H$4=\"Nederlands\",D1081,IF(EUMED!$H$4=\"Français\",E1081)))","v":0}]
[1082,null,null,null,null,{"$f":"IF(EUMED!$H$4=\"Deutsch\",C1082,IF(EUMED!$H$4=\"Nederlands\",D1082,IF(EUMED!$H$4=\"Français\",E1082)))","v":0}]
[1083,null,null,null,null,{"$f":"IF(EUMED!$H$4=\"Deutsch\",C1083,IF(EUMED!$H$4=\"Nederlands\",D1083,IF(EUMED!$H$4=\"Français\",E1083)))","v":0}]
[1084,null,null,null,null,{"$f":"IF(EUMED!$H$4=\"Deutsch\",C1084,IF(EUMED!$H$4=\"Nederlands\",D1084,IF(EUMED!$H$4=\"Français\",E1084)))","v":0}]
[1085,null,null,null,null,{"$f":"IF(EUMED!$H$4=\"Deutsch\",C1085,IF(EUMED!$H$4=\"Nederlands\",D1085,IF(EUMED!$H$4=\"Français\",E1085)))","v":0}]
[1086,null,null,null,null,{"$f":"IF(EUMED!$H$4=\"Deutsch\",C1086,IF(EUMED!$H$4=\"Nederlands\",D1086,IF(EUMED!$H$4=\"Français\",E1086)))","v":0}]
[1087,null,null,null,null,{"$f":"IF(EUMED!$H$4=\"Deutsch\",C1087,IF(EUMED!$H$4=\"Nederlands\",D1087,IF(EUMED!$H$4=\"Français\",E1087)))","v":0}]
[1088,null,null,null,null,{"$f":"IF(EUMED!$H$4=\"Deutsch\",C1088,IF(EUMED!$H$4=\"Nederlands\",D1088,IF(EUMED!$H$4=\"Français\",E1088)))","v":0}]
[1089,null,null,null,null,{"$f":"IF(EUMED!$H$4=\"Deutsch\",C1089,IF(EUMED!$H$4=\"Nederlands\",D1089,IF(EUMED!$H$4=\"Français\",E1089)))","v":0}]
[1090,null,null,null,null,{"$f":"IF(EUMED!$H$4=\"Deutsch\",C1090,IF(EUMED!$H$4=\"Nederlands\",D1090,IF(EUMED!$H$4=\"Français\",E1090)))","v":0}]
[1091,null,null,null,null,{"$f":"IF(EUMED!$H$4=\"Deutsch\",C1091,IF(EUMED!$H$4=\"Nederlands\",D1091,IF(EUMED!$H$4=\"Français\",E1091)))","v":0}]
[1092,null,null,null,null,{"$f":"IF(EUMED!$H$4=\"Deutsch\",C1092,IF(EUMED!$H$4=\"Nederlands\",D1092,IF(EUMED!$H$4=\"Français\",E1092)))","v":0}]
[1093,null,null,null,null,{"$f":"IF(EUMED!$H$4=\"Deutsch\",C1093,IF(EUMED!$H$4=\"Nederlands\",D1093,IF(EUMED!$H$4=\"Français\",E1093)))","v":0}]
[1094,null,null,null,null,{"$f":"IF(EUMED!$H$4=\"Deutsch\",C1094,IF(EUMED!$H$4=\"Nederlands\",D1094,IF(EUMED!$H$4=\"Français\",E1094)))","v":0}]
[1095,null,null,null,null,{"$f":"IF(EUMED!$H$4=\"Deutsch\",C1095,IF(EUMED!$H$4=\"Nederlands\",D1095,IF(EUMED!$H$4=\"Français\",E1095)))","v":0}]
[1096,null,null,null,null,{"$f":"IF(EUMED!$H$4=\"Deutsch\",C1096,IF(EUMED!$H$4=\"Nederlands\",D1096,IF(EUMED!$H$4=\"Français\",E1096)))","v":0}]
[1097,null,null,null,null,{"$f":"IF(EUMED!$H$4=\"Deutsch\",C1097,IF(EUMED!$H$4=\"Nederlands\",D1097,IF(EUMED!$H$4=\"Français\",E1097)))","v":0}]
[1098,null,null,null,null,{"$f":"IF(EUMED!$H$4=\"Deutsch\",C1098,IF(EUMED!$H$4=\"Nederlands\",D1098,IF(EUMED!$H$4=\"Français\",E1098)))","v":0}]
[1099,null,null,null,null,{"$f":"IF(EUMED!$H$4=\"Deutsch\",C1099,IF(EUMED!$H$4=\"Nederlands\",D1099,IF(EUMED!$H$4=\"Français\",E1099)))","v":0}]
[1100,null,null,null,null,{"$f":"IF(EUMED!$H$4=\"Deutsch\",C1100,IF(EUMED!$H$4=\"Nederlands\",D1100,IF(EUMED!$H$4=\"Français\",E1100)))","v":0}]
[1101,null,null,null,null,{"$f":"IF(EUMED!$H$4=\"Deutsch\",C1101,IF(EUMED!$H$4=\"Nederlands\",D1101,IF(EUMED!$H$4=\"Français\",E1101)))","v":0}]
[1102,null,null,null,null,{"$f":"IF(EUMED!$H$4=\"Deutsch\",C1102,IF(EUMED!$H$4=\"Nederlands\",D1102,IF(EUMED!$H$4=\"Français\",E1102)))","v":0}]
[1103,null,null,null,null,{"$f":"IF(EUMED!$H$4=\"Deutsch\",C1103,IF(EUMED!$H$4=\"Nederlands\",D1103,IF(EUMED!$H$4=\"Français\",E1103)))","v":0}]
[1104,null,null,null,null,{"$f":"IF(EUMED!$H$4=\"Deutsch\",C1104,IF(EUMED!$H$4=\"Nederlands\",D1104,IF(EUMED!$H$4=\"Français\",E1104)))","v":0}]
[1105,null,null,null,null,{"$f":"IF(EUMED!$H$4=\"Deutsch\",C1105,IF(EUMED!$H$4=\"Nederlands\",D1105,IF(EUMED!$H$4=\"Français\",E1105)))","v":0}]
[1106,null,null,null,null,{"$f":"IF(EUMED!$H$4=\"Deutsch\",C1106,IF(EUMED!$H$4=\"Nederlands\",D1106,IF(EUMED!$H$4=\"Français\",E1106)))","v":0}]
[1107,null,null,null,null,{"$f":"IF(EUMED!$H$4=\"Deutsch\",C1107,IF(EUMED!$H$4=\"Nederlands\",D1107,IF(EUMED!$H$4=\"Français\",E1107)))","v":0}]
[1108,null,null,null,null,{"$f":"IF(EUMED!$H$4=\"Deutsch\",C1108,IF(EUMED!$H$4=\"Nederlands\",D1108,IF(EUMED!$H$4=\"Français\",E1108)))","v":0}]
[1109,null,null,null,null,{"$f":"IF(EUMED!$H$4=\"Deutsch\",C1109,IF(EUMED!$H$4=\"Nederlands\",D1109,IF(EUMED!$H$4=\"Français\",E1109)))","v":0}]
[1110,null,null,null,null,{"$f":"IF(EUMED!$H$4=\"Deutsch\",C1110,IF(EUMED!$H$4=\"Nederlands\",D1110,IF(EUMED!$H$4=\"Français\",E1110)))","v":0}]
[1111,null,null,null,null,{"$f":"IF(EUMED!$H$4=\"Deutsch\",C1111,IF(EUMED!$H$4=\"Nederlands\",D1111,IF(EUMED!$H$4=\"Français\",E1111)))","v":0}]
[1112,null,null,null,null,{"$f":"IF(EUMED!$H$4=\"Deutsch\",C1112,IF(EUMED!$H$4=\"Nederlands\",D1112,IF(EUMED!$H$4=\"Français\",E1112)))","v":0}]
[1113,null,null,null,null,{"$f":"IF(EUMED!$H$4=\"Deutsch\",C1113,IF(EUMED!$H$4=\"Nederlands\",D1113,IF(EUMED!$H$4=\"Français\",E1113)))","v":0}]
[1114,null,null,null,null,{"$f":"IF(EUMED!$H$4=\"Deutsch\",C1114,IF(EUMED!$H$4=\"Nederlands\",D1114,IF(EUMED!$H$4=\"Français\",E1114)))","v":0}]
[1115,null,null,null,null,{"$f":"IF(EUMED!$H$4=\"Deutsch\",C1115,IF(EUMED!$H$4=\"Nederlands\",D1115,IF(EUMED!$H$4=\"Français\",E1115)))","v":0}]
[1116,null,null,null,null,{"$f":"IF(EUMED!$H$4=\"Deutsch\",C1116,IF(EUMED!$H$4=\"Nederlands\",D1116,IF(EUMED!$H$4=\"Français\",E1116)))","v":0}]
[1117,null,null,null,null,{"$f":"IF(EUMED!$H$4=\"Deutsch\",C1117,IF(EUMED!$H$4=\"Nederlands\",D1117,IF(EUMED!$H$4=\"Français\",E1117)))","v":0}]
[1118,null,null,null,null,{"$f":"IF(EUMED!$H$4=\"Deutsch\",C1118,IF(EUMED!$H$4=\"Nederlands\",D1118,IF(EUMED!$H$4=\"Français\",E1118)))","v":0}]
[1119,null,null,null,null,{"$f":"IF(EUMED!$H$4=\"Deutsch\",C1119,IF(EUMED!$H$4=\"Nederlands\",D1119,IF(EUMED!$H$4=\"Français\",E1119)))","v":0}]
[1120,null,null,null,null,{"$f":"IF(EUMED!$H$4=\"Deutsch\",C1120,IF(EUMED!$H$4=\"Nederlands\",D1120,IF(EUMED!$H$4=\"Français\",E1120)))","v":0}]
[1121,null,null,null,null,{"$f":"IF(EUMED!$H$4=\"Deutsch\",C1121,IF(EUMED!$H$4=\"Nederlands\",D1121,IF(EUMED!$H$4=\"Français\",E1121)))","v":0}]
[1122,null,null,null,null,{"$f":"IF(EUMED!$H$4=\"Deutsch\",C1122,IF(EUMED!$H$4=\"Nederlands\",D1122,IF(EUMED!$H$4=\"Français\",E1122)))","v":0}]
[1123,null,null,null,null,{"$f":"IF(EUMED!$H$4=\"Deutsch\",C1123,IF(EUMED!$H$4=\"Nederlands\",D1123,IF(EUMED!$H$4=\"Français\",E1123)))","v":0}]
[1124,null,null,null,null,{"$f":"IF(EUMED!$H$4=\"Deutsch\",C1124,IF(EUMED!$H$4=\"Nederlands\",D1124,IF(EUMED!$H$4=\"Français\",E1124)))","v":0}]
[1125,null,null,null,null,{"$f":"IF(EUMED!$H$4=\"Deutsch\",C1125,IF(EUMED!$H$4=\"Nederlands\",D1125,IF(EUMED!$H$4=\"Français\",E1125)))","v":0}]
[1126,null,null,null,null,{"$f":"IF(EUMED!$H$4=\"Deutsch\",C1126,IF(EUMED!$H$4=\"Nederlands\",D1126,IF(EUMED!$H$4=\"Français\",E1126)))","v":0}]
[1127,null,null,null,null,{"$f":"IF(EUMED!$H$4=\"Deutsch\",C1127,IF(EUMED!$H$4=\"Nederlands\",D1127,IF(EUMED!$H$4=\"Français\",E1127)))","v":0}]
[1128,null,null,null,null,{"$f":"IF(EUMED!$H$4=\"Deutsch\",C1128,IF(EUMED!$H$4=\"Nederlands\",D1128,IF(EUMED!$H$4=\"Français\",E1128)))","v":0}]
[1129,null,null,null,null,{"$f":"IF(EUMED!$H$4=\"Deutsch\",C1129,IF(EUMED!$H$4=\"Nederlands\",D1129,IF(EUMED!$H$4=\"Français\",E1129)))","v":0}]
[1130,null,null,null,null,{"$f":"IF(EUMED!$H$4=\"Deutsch\",C1130,IF(EUMED!$H$4=\"Nederlands\",D1130,IF(EUMED!$H$4=\"Français\",E1130)))","v":0}]
[1131,null,null,null,null,{"$f":"IF(EUMED!$H$4=\"Deutsch\",C1131,IF(EUMED!$H$4=\"Nederlands\",D1131,IF(EUMED!$H$4=\"Français\",E1131)))","v":0}]
[1132,null,null,null,null,{"$f":"IF(EUMED!$H$4=\"Deutsch\",C1132,IF(EUMED!$H$4=\"Nederlands\",D1132,IF(EUMED!$H$4=\"Français\",E1132)))","v":0}]
[1133,null,null,null,null,{"$f":"IF(EUMED!$H$4=\"Deutsch\",C1133,IF(EUMED!$H$4=\"Nederlands\",D1133,IF(EUMED!$H$4=\"Français\",E1133)))","v":0}]
[1134,null,null,null,null,{"$f":"IF(EUMED!$H$4=\"Deutsch\",C1134,IF(EUMED!$H$4=\"Nederlands\",D1134,IF(EUMED!$H$4=\"Français\",E1134)))","v":0}]
[1135,null,null,null,null,{"$f":"IF(EUMED!$H$4=\"Deutsch\",C1135,IF(EUMED!$H$4=\"Nederlands\",D1135,IF(EUMED!$H$4=\"Français\",E1135)))","v":0}]
[1136]
[1137]
[1138]
[1139]
[1140]
[1141]
[1142]
[1143]
[1144]
[1145]
[1146]
[1147]
[1148]
[1149]
[1150]
[1151]
[1152]
[1153]
[1154]
[1155]
[1156]
[1157]
[1158]
[1159]
[1160]
[1161]
[1162]
[1163]
[1164]
[1165]
[1166]
[1167]
[1168]
[1169]
[1170]
[1171]
[1172]
[1173]
[1174]
[1175]
[1176]
[1177]
[1178]
[1179]
[1180]
[1181]
[1182]
[1183]
[1184]
[1185]
[1186]
[1187]
[1188]
[1189]
[1190]
[1191]
[1192]
[1193]
[1194]
[1195]
[1196]
[1197]
[1198]
[1199]
[1200]
[1201]
[1202]
[1203]
[1204]
[1205]
[1206]
[1207]
[1208]
[1209]
[1210]
[1211]
[1212]

{"sheet":"capaciteit_Kapazität_capacité","index":5,"n_rows":21,"n_cols":11,"rows_kept":21,"cut":false,"hidden":false,"merged":[[5,5,7,5],[8,5,10,5],[11,5,12,5],[13,5,14,5],[15,5,16,5],[13,6,14,6],[15,6,16,6],[8,7,10,7],[11,7,12,7],[13,7,14,7],[15,7,16,7],[5,0,16,0],[19,6,20,6],[5,2,7,2],[8,2,10,2],[11,2,12,2],[13,2,14,2],[8,3,10,3],[11,3,12,3],[13,3,14,3],[17,3,18,3],[19,3,20,3],[15,2,16,2],[15,4,16,4],[17,1,18,1],[17,4,18,4],[5,3,7,3],[19,9,20,9],[2,10,4,10],[5,10,16,10],[17,10,18,10],[19,10,20,10],[17,9,18,9],[5,9,16,9],[2,9,4,9],[17,7,18,7],[19,1,20,1],[19,4,20,4],[19,7,20,7],[17,6,18,6],[5,8,16,8],[2,1,4,1],[2,2,4,2],[2,4,4,4],[2,7,4,7],[2,8,4,8],[2,5,4,5],[2,3,4,3],[8,4,10,4],[11,4,12,4],[13,4,14,4],[5,4,7,4],[5,6,7,6],[5,7,7,7],[8,6,10,6],[11,6,12,6],[0,8,0,10],[2,6,4,6],[0,1,1,1],[0,2,0,4],[0,5,0,7]]}
[null,null,"EUMED 1",null,null,"EUMED 2",null,null,"EUMED 3"]
[null,null,{"$f":"V!F72","v":"aanrijtijd:"},null,"< 30min",{"$f":"V!F72","v":"aanrijtijd:"},null,"< 60min",{"$f":"V!F72","v":"aanrijtijd:"},null,"> 60min"]
[null,"MKA Zuid-Limburg","3 ambulances",3,{"$f":"V!$F$74","v":"patiënten"},"Eumed 1 + 15 ambulances                    ",18,{"$f":"V!$F$74","v":"patiënten"},"Eumed 2 + 6 ambulances ",24,{"$f":"V!$F$74","v":"patiënten"}]
[]
[]
["NRW Standard","LST","3 RTW + 1 NEF",3,{"$f":"V!$F$74","v":"patiënten"},"PTZ 10 NRW\n(1 ELW, 2 Notärzte, 4 RTW, 4 KTW)",10,{"$f":"V!$F$74","v":"patiënten"},"Eumed 3 = BHP NRW",50,{"$f":"V!F74","v":"patiënten"}]
[null,"Städteregion Aachen"]
[null,"Stadt Aachen"]
[null,"LST ","3 RTW + 1 NEF\noder RTH",2,{"$f":"V!F74","v":"patiënten"},"PTZ 10 NRW\n(1 ELW, 2 Notärzte, 4 RTW, 4 KTW)",10,{"$f":"V!$F$74","v":"patiënten"}]
[null,"Städteregion Aachen"]
[null,"Altkreis Aachen"]
[null,"LST","3 RTW + 1 NEF",3,{"$f":"V!F74","v":"patiënten"},"PTZ 10 NRW\n(1 ELW, 2 Notärzte, 4 RTW, 4 KTW)",10,"Patienten"]
[null,"Kreis Heinsberg"]
[null,"LST","3 RTW + 1 NEF",3,{"$f":"V!$F$74","v":"patiënten"},"PTZ 10 NRW\n(1 ELW, 2 Notärzte, 4 RTW, 4 KTW)",10,"Patienten"]
[null,"Kreis Düren"]
[null,"LST",null,null,null,"PTZ 10 NRW\n(1 ELW, 2 Notärzte, 4 RTW, 4 KTW)",10,"Patienten"]
[null,"Kreis Euskirchen"]
[null,"Centrale 100 Liège","3 ambulances",3,{"$f":"V!F74","v":"patiënten"},"6 ambulances",6,{"$f":"V!$F$74","v":"patiënten"},"6 ambulances",6,{"$f":"V!$F$74","v":"patiënten"}]
[null,null,"1 Smur",null,null,"1 Smur",null,null,"1 Smur"]
[null,"112-centrale Limburg (B)","1 ambulance DGH",1,{"$f":"V!F73","v":"patiënt"},"2 extra ambulances DGH + indien beschikbaar 4 (RK & Vl Kr)","2 (6)",{"$f":"V!$F$74","v":"patiënten"},"2 extra ambulances DGH + indien beschikbaar 4 (RK & Vl Kr)","2 (6)",{"$f":"V!$F$74","v":"patiënten"}]
[null,null,"1 MUG",null,null,"1 MUG",null,null,"1 MUG"]

{"sheet":"CONTACT","index":6,"n_rows":9,"n_cols":7,"rows_kept":9,"cut":false,"hidden":false,"merged":[]}
["Leitstelle","Telefonnummer","E-Mail","Fax","Adresse","Funk","Bemerkungen"]
[{"$f":"V!F85","v":"CS 112 Luik (B)"},"0032 43 41 99 41","dispatchers@cs112.com","0032 43 41 30 87","Centre de Secours 112 de Liège\nRue du Nord Belge, 6\nB - 4020 Liège",null,{"$f":"V!F112","v":"geheim nummer voor meldkamers in de EMR"}]
[{"$f":"V!F86","v":"CS 112 Limburg (B)"},"0032 11 278531","HCS112limburg@ibz.fgov.be","0032 11 27 85 34","Dienst 100 Hasselt\nWillekensmolenstraat 120\nB - 3500 Hasselt"]
[{"$f":"V!F87","v":"Zone-meldkamer Oost-Limburg (B)"},"0032 89 35 28 88","dispatch@bwol.be","0032 89 65 33 00","Brandweerzone Oost-Limburg\nzone-meldkamer\nC-mine 50\nB - 3600 Genk"]
[{"$f":"V!F88","v":"Meldkamer Stad/StädteRegion Aken (D)"},"0049 241 19296","Leitstelle.StaedteRegion.Aachen@mail.aachen.de","0049 241 512527","StädteRegion Aachen\nFeuerwehr Aachen\nStolberger Strasse 155\nD - 52068 Aachen","4m Band Kanal 470 U/G und 468 U/G"]
[{"$f":"V!F89","v":"Meldkamer Kreis Düren (D)"},"0049 2421 5590","Leitstelle@Kreis-Dueren.de","0049 2421 559155","Kreisleitstelle Düren\nMarienstrasse 29\nD - 52372 Kreuzau","Digital: DN_Anruf2101          (4-m-Band 463 U/G)"]
[{"$f":"V!F90","v":"Meldkamer Kreis Euskirchen (D)"},"0049 2251 5036","Leitstelle@Kreis-Euskirchen.de / Leitstelle@Gefahrenabwehr-Kreis-Euskirchen.de","0049 2251 72303","Kreisleitstelle Euskirchen\nJülicher Ring 32\nD - 53879 Euskirchen","Digital: EU_ANRUF                (4m Band Kanal 465 U/G)"]
[{"$f":"V!F91","v":"Meldkamer Kreis Heinsberg (D)"}," 0049 243119296","Leitstelle@Kreis-Heinsberg.de"," 0049 2452 13887000","Feuerschutzzentrum Kreis Heinsberg\nLeitstelle F/R\nZur Feuerwache 6\nD - 41812 Erkelenz","4m Band Kanal 467 U/G    TMO-HS_BOS; HS_ANRUF"]
[{"$f":"V!F92","v":"Meldkamer Ambulancezorg Limburg (NL)"},"0031 88 06 19 123","mka@gmkl.nl","0031 43 32 56 954","Meldkamer Ambulancezorg\nRegionale Alarm Centrale\nMCC\nPrins Bisschopsingel 53\nNL - 6212 AB Maastricht",null,{"$f":"V!F113","v":"speciaal nummer voor meldkamers in de EMR"}]

{"sheet":"Loodsposten-Lotsenstellen-eurog","index":7,"n_rows":88,"n_cols":4,"rows_kept":88,"cut":false,"hidden":false,"merged":[[58,2,58,3],[64,2,64,3],[78,2,78,3],[2,2,2,3],[14,2,14,3],[20,2,20,3],[32,2,32,3],[50,2,50,3]]}
[]
[]
[null,"LIÈGE"]
["#","Adres/Adresse/l'adres","GPS"]
["#","Adres/Adresse/l'adres","GPS N","GPS E"]
[]
["BE-LIE 1","A3/E40 Aix-> Bruxelles | Lichtenbusch | Station Essence TOTAL","50°43'05''N ","6°07'11''E"]
["BE-LIE 2","A3/E40 Aix -> Bruxelles | Barchon | Station essence SHELL (BK 102,2)","50°39'23''N ","5°42'41''E"]
["BE-LIE 3","A25/E25 Maastricht-> Liège | Aire de repos de Visé (BK 0,8)","50°44'54''N ","5°41'34''E"]
["BE-LIE 4","A13/E313 Hasselt-> Liège | Aire de repos de Slins (BK 103,3)","50°44'10''N ","5°34'40''E"]
["BE-LIE 5","A3/E40 Bruxelles-> Liège | Aire de repos de Louhin à Crisnée (BK 78,9)","50°41'16''N ","5°24'47''E"]
["BE-LIE 6","A15/E42 Namur-> Liège | Aire de repos de Verlaine | Station Essence Q8 (BK 15,9)","50°35'31''N ","5°18'14''E"]
[]
[]
[null,"OOST LIMBURG"]
["#","Adres/Adresse/l'adres","GPS N","GPS E"]
[]
["BWOL 1","Bruno's Food Corner Maasmechelen, Rijksweg 471","50°57'19.1''N ","5°41'41.4''E"]
[]
[]
[null,"STADT AACHEN"]
["#","Adres/Adresse/l'adres","GPS N","GPS E"]
[]
["ACS LS 1","Eschweiler, BAB4 Raststätte Aachener Land Nord (20 Fahrzeuge),","50°49'4.17''N ","6°12'50.24''E"]
["ACS LS 2","Aachen, BAB 4 Zollamt Vetschau","50°49'6.54''N ","6°1'27.88''E"]
["ACS LS 3","Aachen, BAB 44 Zollamt Lichtenbusch","50°43'7.36''N ","6°7'16.13''E"]
["ACS LP 4","Würselen, BAB 44 Ausfahrt Broichweiden","50°49'24.04''N ","6°10'33.69''E"]
["ACS LP 5","Aachen, Vaalserquartier, Vaalserstr. Grenzübergang","50°46'15.72''N ","6°1'30.51''E"]
["ACS LP 6","Aachen, Lütticher Straße Grenzübergang Bildchen, Parkstreifen","50°43'49.11''N ","6°2'25.51''E"]
["ACS LP 7","Aachen, Trierer Straße Richtung AC Busspur zw. Debeystr. und Triererplatz","50°45'30.98''N ","6°8'40.26''E"]
[]
[]
[null,"STÄDTEREGION AACHEN"]
["#","Adres/Adresse/l'adres","GPS N","GPS E"]
[]
["Kr.AC B1","Eschweiler, Am Kraftwerk 17 (A4/L 241 Weisweiler, Parkplatz RWE-Power)","50°50'11''N ","6°19'5''E"]
["KrAC LS 2","Baesweiler, Hauptstr. (B 57/B 56 Baesweiler, Puffendorferkreuzung)","50°56'12''N ","6°12'46''E"]
["KrAC LS 3","Alsdorf, L 240 (A44/L 240 AS Alsdorf)","50°51'58''N ","6°13'22''E"]
["KrAC LS 4","Eschweiler, Am Kraftwerk - K 35 (A4/L 241 AS Weisweiler)","50°50'5''N ","6°19'42''E"]
["KrAC LS 5","Eschweiler, Kölnerstraße (B 264 Eschweiler-Weisweiler, Langerweher Str., Ortseingang)","50°49'37''N ","6°20'01''E"]
["KrAC LS 6","Simmerath, Jägerhausstraße (B 399 Simmerath-Lammersdorf, Forsthaus Jägerhaus)","50°40'10''N ","6°17'52''E"]
["KrAC LS 7","Simmerath, Kölnerstraße (L 246 Simmerath-Strauch, Gerstenhof)","50°39'16''N ","6°22'38''E"]
["KrAC LS 8","Simmerath B 266, Rurstraße (B 266 Simmerath-Einruhr /Obersee)","50°34'52''N ","6°22'46''E"]
["KrAC LS 9","Monschau, Hauptstraße (B 258 Monschau-Höfen,Bratherhof)","50°31'28''N ","6°17'43''E"]
["KrAC LS 10","Monschau, Malmedyerstraße (B 399/N 669 Monschau-Kalterherberg Grenzübergang, Malmedyerstr.)","50°30'48''N ","6°12'39''E"]
["KrAC LS 11","Monschau, Eupenerstraße (L 214/N 67d Monschau-Mützenich Grenzübergang, Eupener Str.)","50°33'56''N ","6°11'31''E"]
["KrAC LS 12","Aachen, Monschauerstr./Schleidenerstr. (B 258 Aachen, Relais Königsberg)","50°40'57''N ","6°10'50''E"]
["KrAC LS 13","Geilenkirchenerstraße (B 221/L 232 Herzogenrath-Merkstein (Geilenkirchener Str.))","50°54'07''N ","6°08'11''E"]
[]
[]
[null,"KREIS DÜREN"]
["#","Adres/Adresse/l'adres","GPS N","GPS E"]
[]
["DN 1","Nördlich Kreisgebiet, Parkplatz Brückenkopfpark (Rurauenstr. 11, Jülich)","50°55'27.0012\"N ","6°20'21.0012\"E"]
["DN 2","Mittleres Kreisgebiet, Industriegebiet Großes Tal (Willi Bleicher Str. 19-21, Düren)","50°50'15''N ","6°27'56.0016\"E"]
["DN 3","Südl. Kreisgebiet, Amt für Bevölkerungsschutz Kreis Düren (Marienstr. 29, Kreuzau)","50°45'24.0012''N ","6°31'13.0008''E"]
[]
[]
[null,"KREIS EUSKIRCHEN"]
["#","Adres/Adresse/l'adres","GPS N","GPS E"]
[]
["EUS 1","Bundesstraße B265 / Parkplatz \"Am Weissen Stein\", Hellenthal-Udenbreth","50°24'26''N ","6°22'09''E"]
[]
[]
[null,"KREIS HEINSBERG"]
["#","Adres/Adresse/l'adres","GPS N","GPS E"]
[]
["HS 1","B221 Höhe Ortschaft Arsbeck","51°09'18''N ","6°12'45''E"]
["HS 2","BAB 46 Parkplatz Herrather Linde","51°05'58''N ","6°21'39''E"]
["HS 3","Hückelhoven-Baal, Lövenicher Str. 40, Grundschule","51°02'09''N ","6°17'06''E"]
["HS 4","Parkplatz B56 vor Abfahrt L42","50°57'21''N ","6°06'15''E"]
["HS 5","Übach-Palenberg > Geilenkirchen Parkplatz, B221","50°56'09''N ","6°07'59''E"]
["HS 6","Gangelt Kreisverkehr L410 / B56","50°59'44''N ","5°57'35''E"]
["HS 7","Grenzübergang Selfkant B56n / N297","51°01'45''N ","5°52'37''E"]
["HS 8","Grenzübergang Waldfeucht Brabanter Str.","51°04'10''N ","5°58'55''E"]
["HS 9","Grenzübergang Rothenbach L117","51°08'21''N ","6°07'12''E"]
[]
[]
[null,"ZUID-LIMBURG"]
["#","Adres/Adresse/l'adres","GPS N","GPS E"]
[]
["24LP01 (NL-ZL 1)","A2 (E25) Eindhoven \" Maastricht, Esso tankstation / parkeerplaats \"Het Anker\"","51°03'31.6''N ","5°49'29.5''E"]
["24LP02 (NL-ZL 2)","\"Hotel Stein\" (Van der Valk, Urmond), Mauritslaan 65, Urmond, direct aan A2 (E25) Eindhoven D Maastricht","50°59'16.29''N ","5°46'49.27''E"]
["24LP03 (NL-ZL 3)","\"Apple Park\" P. de Coubertinweg 3, direct aan N2 (E25) Eindhoven D Maastricht","50°51'30.27''N ","5°43'1.42''E"]
["24LP04 (NL-ZL 4)","A2 (E25) Luik \" Maastricht, BP tankstation / parkeerplaats \"Patiel\"","50°46'35.6''N ","5°43'45.4''E"]
["24LP05 (NL-ZL 5)","A76 (E314) Aken \" Heerlen, Esso tankstation / parkeerplaats \"Langveld\"","50°49'24.5''N ","6°01'17.0''E"]
["24LP06 (NL-ZL 6)","Bloemendalstraat 150, Vaals., Hotel \"Kasteel Bloemendal\"","50°46'23.5''N ","6°00'49.5''E"]
["24LP07 (NL-ZL 7)","Leuperweg 2, Schinveld, Brandweerkazerne Onderbanken","50°57'58.4''N ","5°58'17.5''E"]